Workbook

Sheet Introduction and Contents
B1: This workbook contains the Maximum Difference Simulator for all rail passengers surveyed
B3: • | C3: For the simulator to work, you need to come out of 'Protected View' and also 'Enable Content'.
B4: • | C4: Passengers rated their priorities for improvement from a list of 31 possible options.
B5: • | C5: The 'Preference %' shows the percentage share for that 'priority for improvement' option out of the 31 possibilities.
B6: • | C6: The 'Index' shows the share that priority for improvement has relative to a baseline of 100; the value an option would have if it was averagely chosen. The index value works as ratio, so an option with an index value of 200 has double the average share, one of 50 has half the average share.
B7: • | C7: Clicking on an option on the left under (attribute number) will toggle between its inclusion and deselection. For any options deselected, the Simulator recalculates the shares for each of the remaining 'active' priorities for improvement as if the deselected priorities for improvement options were not available to passengers as possible choices.
B8: • | C8: Clicking on the 'Subgroups' button you can scroll through to look at the priorities for improvement for different sub-groupings of passengers.
B9: • | C9: The Subgroups Worksheet shows the priorities for improvement across all selectable sub-groupings as both percentage share and index share (for all 31 options active)
B11: Contents of the workbook
B13: Worksheet | D13: Contents
B14: Custom Subgroup Contents | D14: This worksheet lists the custom subgroups that can be used to filter the simulator along with a summary definition for each subgroup.
B15: Simulator | D15: This worksheet contains the max-diff simulator itself, which is interactive and can be updated to display the improvement priorities of different groups of rail passengers.
B16: Subgroups | D16: This worksheet contains two tables, displaying the results for all subgroups included in the simulator (table 1 displays the preference shares and table 2 displays the index scores)
B17: Subgroups Alt | D17: This worksheet contains the same two tables as the 'Subgroups' worksheet, but with two of the priority categories created by 'netting' individual priorities. This netting has been carried out through selecting (for each individual respondent) the maxim score achieved across the priorities that have been grouped together. The netted groups displayed are: Priorities 2 and 22: able to get a seat / more room to stand Priorities 3, 4 and 5: fewer unplanned disruptions / cancellations / late trains

Sheet Custom Subgroup Contents
B1: Custom Subgroup Contents
C4: Listed below are the custom subgroups that can be used to filter the simulator. A summary definition has been provided for each along with the filtering categories available for each custom subgroup.
C6: Country/Region
C7: This option enables the simulator to be filtered based on the nation/region in which passengers live. This can be done at both national level (England, Wales, Scotland) or regional level (for England)
C8: Filtering options within each custom subgroup:
C9: England
C10: Wales
C11: Scotland
C12: North Of England
C13: North East
C14: North West
C15: Yorkshire
C16: East Midlands
C17: West Midlands
C18: East Of England
C19: London
C20: South East
C21: South West
C24: Journey Purpose
C25: This option enables the simulator to be filtered based on the most frequent type of journey made by passengers.
C26: Filtering options within each custom subgroup:
C27: Commuting
C28: Business
C29: Leisure
C32: Ticket Type
C33: This option enables the simulator to be filtered based on the ticket type used by passengers for their most frequent rail journey. For season tickets, in addition to individual types two net categories have also been provided (Any season and Monthly or longer season)
C34: Filtering options within each custom subgroup:
C35: Anytime single/return
C36: Off peak/super off peak
C37: Advance single/return
C38: PAYG Smartcard
C39: Weekly season
C40: Monthly season
C41: Annual season
C42: Any season
C43: Monthly or longer season
C46: Building Blocks
C47: This option enables the simulator to be filtered based on the building block(s) used by passengers during their most frequent rail journey. Building blocks are individual sections of routes and have been developed in conjunction with individual TOCs
C48: Filtering options within each custom subgroup:
C50: Abellio Greater Anglia - Intercity
C51: Abellio Greater Anglia - Mainline
C52: Abellio Greater Anglia - Rural
C53: Abellio Greater Anglia - Stansted Express
C54: Abellio Greater Anglia - West Anglia
C56: Arriva Trains Wales - Cardiff & Valleys
C57: Arriva Trains Wales - Inter Urban
C58: Arriva Trains Wales - Mid Wales & Borders
C59: Arriva Trains Wales - North Wales & Borders
C60: Arriva Trains Wales - South Wales & Borders / West Wales
C62: c2c - Southend Line
C63: c2c - Tilbury Line
C65: Chiltern Railways - Commuter
C66: Chiltern Railways - Metro
C67: Chiltern Railways - Oxford
C68: Chiltern Railways - West Midlands
C70: CrossCountry - East-West
C71: CrossCountry - North-South Manchester
C72: CrossCountry - North-South Scotland & North East
C74: East Midlands Trains - Liverpool - Norwich
C75: East Midlands Trains - Local
C76: East Midlands Trains - London
C78: First TransPennine Express - North
C79: First TransPennine Express - North West
C80: First TransPennine Express - South
C82: Grand Central - London - Bradford
C83: Grand Central - London - Sunderland
C85: Great Western Railway - Any London Thames Valley
C86: Great Western Railway - Any West
C87: Great Western Railway - Any Long Distance
C88: Great Western Railway - London Thames Valley & Long Distance
C89: Great Western Railway - London Thames Valley only
C90: Great Western Railway - Long Distance & West
C91: Great Western Railway - Long Distance only
C92: Great Western Railway - West only
C94: London Midland - London Commuter
C95: London Midland - West Coast
C96: London Midland - West Midlands
C98: London Overground - Gospel Oak - Barking
C99: London Overground - Highbury & Islington - Croydon
C100: London Overground - Richmond/Clapham Junction - Stratford
C101: London Overground - Watford - Euston
C102: London Overground - West Anglia
C104: Merseyrail - Northern
C105: Merseyrail - Wirral
C107: Northern - Central
C108: Northern - East
C109: Northern - North East
C110: Northern - West
C112: ScotRail - Interurban
C113: ScotRail - Rural
C114: ScotRail - Strathclyde
C115: ScotRail - Urban
C117: Southeastern - High-Speed
C118: Southeastern - Mainline
C119: Southeastern - Metro
C121: Southern - Metro
C122: Southern - Sussex Coast
C124: South West Trains - Island Line
C125: South West Trains - Longer Distance
C126: South West Trains - Metro
C127: South West Trains - Outer Suburban & Local
C129: Thameslink - Kent
C130: Thameslink - Loop
C131: Thameslink - North / South
C133: Virgin Trains - Birmingham - Scotland
C134: Virgin Trains - London - Liverpool
C135: Virgin Trains - London - Manchester
C136: Virgin Trains - London - North Wales
C137: Virgin Trains - London - Scotland
C138: Virgin Trains - London - Wolverhampton
C140: Virgin Trains East Coast: London – Leeds and West Yorkshire
C141: Virgin Trains East Coast: London – Newcastle/Sunderland and East Yorkshire
C142: Virgin Trains East Coast: London - Scotland
C145: Network Rail route
C146: Filtering options within each custom subgroup:
C147: Anglia
C148: London North West/East Midlands
C149: London North West
C150: Scotland
C151: South East
C152: Wales
C153: Western
C154: Wessex
C155: Non Network Rail Route/Not specified
C158: Gender
C159: This option enables the simulator to be filtered based on gender of passengers.
C160: Filtering options within each custom subgroup:
C161: Male
C162: Female
C165: Age
C166: This option enables the simulator to be filtered based on age of passengers.
C167: Filtering options within each custom subgroup:
C168: 16-25
C169: 26-44
C170: 45-64
C171: 65+
C174: Disability
C175: This option enables the simulator to be filtered based on whether passsengers have a disabiltiy relating to mobility/wheelchair use, hearing or eyesight.
C176: Filtering options within each custom subgroup:
C177: Any
C178: None
C179: Mobility / Wheelchair
C180: Hearing
C181: Eyesight
C184: Train Operating Company (TOC)
C185: This option enables the simulator to be filtered based on the Train Operating Company (TOC) used by passengers during their most frequent rail journey.
C186: Filtering options within each custom subgroup:
C187: Arriva Trains Wales
C188: c2c
C189: Chiltern Railways
C190: CrossCountry Trains
C191: East Midlands Trains
C192: Gatwick Express
C193: Grand Central
C194: Greater Anglia
C195: Great Northern
C196: Great Western Railway
C197: Heathrow Connect
C198: Heathrow Express
C199: Hull Trains
C200: London Midland
C201: London Overground
C202: Merseyrail
C203: Northern
C204: Scotrail
C205: South West Trains
C206: Southeastern
C207: Southern
C208: Stansted Express
C209: TfL Rail
C210: Thameslink
C211: Transpennine Express
C212: Virgin Trains East Coast
C213: Virgin Trains

Sheet Simulator
C1: Rail Priorities Simulator
D3: Custom Subgroup 1 (and level within this) | E3: Custom Subgroup 2 (and level within this) | F3: Custom Subgroup 3 (and level within this)
D4: Please click on blue cell below and select a subgroup from the dropdown list. Next select a level within this subgroup by clicking on the 'enter the level' and selecting a level from the dropdown list. E.g. to select passengers in the North East please select: Custom subgroup 1: 'Country/Region' then 'North East' | E4: The custom subgroup 2 options may be used to further narrow down the results E.g. To view the results for passengers from the North East who are commuters please select: Custom subgroup 1: 'Country/Region' then 'North East' Custom subgroup 2: 'Journey Purpose' then 'Commuting' | F4: The custom subgroup 3 options may be used to further narrow down the results E.g. To view the results for passengers from the North East who are commuters aged 16-25 please select: Custom subgroup 1: 'Country/Region' then 'North East' Custom subgroup 2: 'Journey Purpose' then 'Commuting' Custom subgroup 3: 'Age' then '16-25'
D5: None | E5: None | F5: None
D6: None | E6: None | F6: None
D8: =IFERROR("Base Size: " & unweighted.CustomSubgroup.member.count,"") -> Base Size: 12803
D9: =IFERROR(IF(unweighted.CustomSubgroup.member.count=0,"Error: No cases in the subgroup created",IF(unweighted.CustomSubgroup.member.count<20,"Error: Insufficient base size",IF(unweighted.CustomSubgroup.member.count<50,"Warning: Low base size",""))),"Enter a valid subgroup") -> 
C14: Attribute | D14: No. and Caption | G14: Preference % | H14: Index
B15: TRUE | C15: =TRANSPOSE( attr.ordered.customsub ) -> 1 | D15: =IFERROR(INDEX( attr.names, TRANSPOSE(attr.ordered.customsub) ),attr.names) -> Price of train tickets offers better value for money | G15: =IFERROR(IF(AND(INDEX(attr.selection, attr.idx),unweighted.CustomSubgroup.member.count>20), INDEX(output.selection.percent, attr.idx), ""),0) -> 0.1538523475 | H15: =IFERROR(IF( AND(INDEX(attr.selection, attr.idx),unweighted.CustomSubgroup.member.count>20), INDEX(output.selection.values, attr.idx), "" ),0) -> 476.9422771
B16: TRUE | C16: 2 | D16: Passengers able to get a seat on the train | G16: 0.1024495504 | H16: 317.5936062
B17: TRUE | C17: 4 | D17: More trains arrive on time than happens now | G17: 0.05730167343 | H17: 177.6351876
B18: TRUE | C18: 6 | D18: Less frequent major unplanned disruptions to your journey | G18: 0.05355176483 | H18: 166.010471
B19: TRUE | C19: 7 | D19: Fewer trains cancelled than happens now | G19: 0.052080951 | H19: 161.4509481
B20: TRUE | C20: 3 | D20: Trains sufficiently frequent at the times I wish to travel | G20: 0.05021570925 | H20: 155.6686987
B21: TRUE | C21: 13 | D21: Less disruption due to engineering works | G21: 0.03735649604 | H21: 115.8051377
B22: TRUE | C22: 5 | D22: Train company keeps passengers informed about delays | G22: 0.03697608106 | H22: 114.6258513
B23: TRUE | C23: 10 | D23: Free Wi-Fi available on the train | G23: 0.03484691224 | H23: 108.0254279
B24: TRUE | C24: 11 | D24: Inside of train is maintained and cleaned to a high standard | G24: 0.03209119019 | H24: 99.4826896
B25: TRUE | C25: 9 | D25: Journey time is reduced | G25: 0.03147734925 | H25: 97.57978268
B26: TRUE | C26: 8 | D26: Accurate and timely information available at stations | G26: 0.03079304846 | H26: 95.45845022
B27: TRUE | C27: 14 | D27: Well-maintained, clean toilet facilities on every train | G27: 0.02755569396 | H27: 85.42265129
B28: TRUE | C28: 12 | D28: Accurate and timely information provided on trains | G28: 0.02667339287 | H28: 82.68751789
B29: TRUE | C29: 20 | D29: Improved personal security on the train | G29: 0.02518630326 | H29: 78.07754012
B30: TRUE | C30: 15 | D30: Connections with other train services are always good | G30: 0.02335711101 | H30: 72.40704412
B31: TRUE | C31: 16 | D31: Good connections with other public transport at stations | G31: 0.02226566631 | H31: 69.02356556
B32: TRUE | C32: 28 | D32: Easier to buy the right ticket | G32: 0.0209661707 | H32: 64.99512917
B33: TRUE | C33: 21 | D33: Improved personal security at the station | G33: 0.02051078723 | H33: 63.58344041
B34: TRUE | C34: 17 | D34: Seating area on train is more comfortable | G34: 0.01997216507 | H34: 61.91371171
B35: TRUE | C35: 23 | D35: Stations maintained and cleaned to a high standard | G35: 0.01493111561 | H35: 46.28645838
B36: TRUE | C36: 31 | D36: More room to stand comfortably on busy trains | G36: 0.01490562488 | H36: 46.20743713
B37: TRUE | C37: 18 | D37: Train staff have a positive, helpful attitude | G37: 0.01461156078 | H37: 45.29583843
B38: TRUE | C38: 19 | D38: Station staff have a positive, helpful attitude | G38: 0.01420578646 | H38: 44.03793804
B39: TRUE | C39: 25 | D39: Free Wi-Fi available at the station | G39: 0.01360476895 | H39: 42.17478376
B40: TRUE | C40: 22 | D40: Sufficient space on train for passengers’ luggage | G40: 0.01353821137 | H40: 41.96845523
B41: TRUE | C41: 24 | D41: More staff available at stations to help passengers | G41: 0.01334013086 | H41: 41.35440567
B42: TRUE | C42: 26 | D42: More staff available on trains to help passengers | G42: 0.01306952499 | H42: 40.51552746
B43: TRUE | C43: 27 | D43: Access from station entrance to boarding train is step-free | G43: 0.01094403334 | H43: 33.92650336
B44: TRUE | C44: 29 | D44: Easier to claim compensation when delayed | G44: 0.008988151778 | H44: 27.86327051
B45: TRUE | C45: 30 | D45: Better mobile phone signal on trains | G45: 0.008380726971 | H45: 25.98025361
F46: TOTAL : | G46: =SUM(G15:G45) -> 1
B55: FALSE

Sheet Subgroups
C2: Rail Priorities Simulator
C4: Preference
C10: Attribute Number | F10: 1 | G10: 2 | H10: 3 | I10: 4 | J10: 5 | K10: 6 | L10: 7 | M10: 8 | N10: 9 | O10: 10 | P10: 11 | Q10: 12 | R10: 13 | S10: 14 | T10: 15 | U10: 16 | V10: 17 | W10: 18 | X10: 19 | Y10: 20 | Z10: 21 | AA10: 22 | AB10: 23 | AC10: 24 | AD10: 25 | AE10: 26 | AF10: 27 | AG10: 28 | AH10: 29 | AI10: 30 | AJ10: 31
C11: Availability | F11: =IF( INDEX(attr.selection,attr.ordered), CHAR(252), "" ) -> ü | G11: ü | H11: ü | I11: ü | J11: ü | K11: ü | L11: ü | M11: ü | N11: ü | O11: ü | P11: ü | Q11: ü | R11: ü | S11: ü | T11: ü | U11: ü | V11: ü | W11: ü | X11: ü | Y11: ü | Z11: ü | AA11: ü | AB11: ü | AC11: ü | AD11: ü | AE11: ü | AF11: ü | AG11: ü | AH11: ü | AI11: ü | AJ11: ü
C12: Groups | D12: (Sub-grp idx) | E12: Unweighted Base | F12: =INDEX(attr.names,attr.ordered) -> Price of train tickets offers better value for money | G12: Passengers able to get a seat on the train | H12: More trains arrive on time than happens now | I12: Less frequent major unplanned disruptions to your journey | J12: Fewer trains cancelled than happens now | K12: Trains sufficiently frequent at the times I wish to travel | L12: Less disruption due to engineering works | M12: Train company keeps passengers informed about delays | N12: Free Wi-Fi available on the train | O12: Inside of train is maintained and cleaned to a high standard | P12: Journey time is reduced | Q12: Accurate and timely information available at stations | R12: Well-maintained, clean toilet facilities on every train | S12: Accurate and timely information provided on trains | T12: Improved personal security on the train | U12: Connections with other train services are always good | V12: Good connections with other public transport at stations | W12: Easier to buy the right ticket | X12: Improved personal security at the station | Y12: Seating area on train is more comfortable | Z12: Stations maintained and cleaned to a high standard | AA12: More room to stand comfortably on busy trains | AB12: Train staff have a positive, helpful attitude | AC12: Station staff have a positive, helpful attitude | AD12: Free Wi-Fi available at the station | AE12: Sufficient space on train for passengers’ luggage | AF12: More staff available at stations to help passengers | AG12: More staff available on trains to help passengers | AH12: Access from station entrance to boarding train is step-free | AI12: Easier to claim compensation when delayed | AJ12: Better mobile phone signal on trains
C13: =IF( subgroup.idx="", "", INDEX(subgroupData.names,subgroup.idx) ) -> TOTAL (All) | D13: 1 | E13: =INDEX( unweighted.subgroup.member.count, subgroup.idx) -> 12803 | F13: =IF( INDEX(attr.selection, attr.ordered), INDEX( output.array,subgroup.idx, attr.ordered), "" ) -> 0.1538523475 | G13: 0.1024495504 | H13: 0.05730167343 | I13: 0.05355176483 | J13: 0.052080951 | K13: 0.05021570925 | L13: 0.03735649604 | M13: 0.03697608106 | N13: 0.03484691224 | O13: 0.03209119019 | P13: 0.03147734925 | Q13: 0.03079304846 | R13: 0.02755569396 | S13: 0.02667339287 | T13: 0.02518630326 | U13: 0.02335711101 | V13: 0.02226566631 | W13: 0.0209661707 | X13: 0.02051078723 | Y13: 0.01997216507 | Z13: 0.01493111561 | AA13: 0.01490562488 | AB13: 0.01461156078 | AC13: 0.01420578646 | AD13: 0.01360476895 | AE13: 0.01353821137 | AF13: 0.01334013086 | AG13: 0.01306952499 | AH13: 0.01094403334 | AI13: 0.008988151778 | AJ13: 0.008380726971
C15: Custom Subgroup | E15: =IFERROR(unweighted.CustomSubgroup.member.count,"") -> 12803 | F15: =IFERROR(IF( INDEX(attr.selection, attr.ordered), INDEX( output.CustomSub.array,, attr.ordered), "" ),"") -> 0.1538523475 | G15: 0.1024495504 | H15: 0.05730167343 | I15: 0.05355176483 | J15: 0.052080951 | K15: 0.05021570925 | L15: 0.03735649604 | M15: 0.03697608106 | N15: 0.03484691224 | O15: 0.03209119019 | P15: 0.03147734925 | Q15: 0.03079304846 | R15: 0.02755569396 | S15: 0.02667339287 | T15: 0.02518630326 | U15: 0.02335711101 | V15: 0.02226566631 | W15: 0.0209661707 | X15: 0.02051078723 | Y15: 0.01997216507 | Z15: 0.01493111561 | AA15: 0.01490562488 | AB15: 0.01461156078 | AC15: 0.01420578646 | AD15: 0.01360476895 | AE15: 0.01353821137 | AF15: 0.01334013086 | AG15: 0.01306952499 | AH15: 0.01094403334 | AI15: 0.008988151778 | AJ15: 0.008380726971
C17: =IF( subgroup.idx="", "", INDEX(subgroupData.names,subgroup.idx) ) -> Country - England | D17: 2 | E17: =INDEX( unweighted.subgroup.member.count, subgroup.idx) -> 10669 | F17: =IF( INDEX(attr.selection, attr.ordered), INDEX( output.array,subgroup.idx, attr.ordered), "" ) -> 0.1521523967 | G17: 0.1006749777 | H17: 0.05794692177 | I17: 0.0541959824 | J17: 0.05279780636 | K17: 0.0505523159 | L17: 0.03783576293 | M17: 0.03721573226 | N17: 0.03477635817 | O17: 0.03159934397 | P17: 0.03174514097 | Q17: 0.03100743698 | R17: 0.02702896933 | S17: 0.02687061245 | T17: 0.02544737591 | U17: 0.02341207412 | V17: 0.0223650168 | W17: 0.02069325785 | X17: 0.02074969057 | Y17: 0.01971355511 | Z17: 0.01489384302 | AA17: 0.0150558519 | AB17: 0.01464721636 | AC17: 0.01424793567 | AD17: 0.01374593421 | AE17: 0.01337989297 | AF17: 0.01346549717 | AG17: 0.01316776941 | AH17: 0.01103067013 | AI17: 0.009135816575 | AJ17: 0.008448844298
C18: =IF( subgroup.idx="", "", INDEX(subgroupData.names,subgroup.idx) ) -> Country - Wales | D18: 3 | E18: =INDEX( unweighted.subgroup.member.count, subgroup.idx) -> 847 | F18: =IF( INDEX(attr.selection, attr.ordered), INDEX( output.array,subgroup.idx, attr.ordered), "" ) -> 0.1691310036 | G18: 0.1348238695 | H18: 0.04503881252 | I18: 0.04078301149 | J18: 0.03873844423 | K18: 0.04418657372 | L18: 0.02836729441 | M18: 0.03536155222 | N18: 0.0285228493 | O18: 0.04125382995 | P18: 0.02440414515 | Q18: 0.0294887954 | R18: 0.03679863746 | S18: 0.02531168534 | T18: 0.024779586 | U18: 0.0236142168 | V18: 0.02256758847 | W18: 0.02467430068 | X18: 0.01961524847 | Y18: 0.02406837615 | Z18: 0.01666782901 | AA18: 0.01333799798 | AB18: 0.01565419923 | AC18: 0.01512760466 | AD18: 0.01019288679 | AE18: 0.01603276603 | AF18: 0.01349913264 | AG18: 0.01370517083 | AH18: 0.01046679491 | AI18: 0.006745090483 | AJ18: 0.007040706577
C19: =IF( subgroup.idx="", "", INDEX(subgroupData.names,subgroup.idx) ) -> Country - Scotland | D19: 4 | E19: =INDEX( unweighted.subgroup.member.count, subgroup.idx) -> 1287 | F19: =IF( INDEX(attr.selection, attr.ordered), INDEX( output.array,subgroup.idx, attr.ordered), "" ) -> 0.1738713603 | G19: 0.1172432916 | H19: 0.05210514017 | I19: 0.04855881847 | J19: 0.04620321139 | K19: 0.04736806273 | L19: 0.03345240123 | M19: 0.03395344079 | N19: 0.03826365058 | O19: 0.03612098341 | P19: 0.03005794114 | Q19: 0.02803697937 | R19: 0.03208287782 | S19: 0.02419820717 | T19: 0.02139098861 | U19: 0.02243072126 | V19: 0.02065164657 | W19: 0.02371355797 | X19: 0.01723225267 | Y19: 0.02235912189 | Z19: 0.01484912396 | AA19: 0.01321732085 | AB19: 0.01368510195 | AC19: 0.01322606824 | AD19: 0.01273882834 | AE19: 0.01500435207 | AF19: 0.01138596078 | AG19: 0.01134820283 | AH19: 0.009811758692 | AI19: 0.007589591681 | AJ19: 0.007849035487
C21: =IF( subgroup.idx="", "", INDEX(subgroupData.names,subgroup.idx) ) -> Region - North Of England | D21: 5 | E21: =INDEX( unweighted.subgroup.member.count, subgroup.idx) -> 2765 | F21: =IF( INDEX(attr.selection, attr.ordered), INDEX( output.array,subgroup.idx, attr.ordered), "" ) -> 0.150929589 | G21: 0.1074974193 | H21: 0.04430794434 | I21: 0.03894809875 | J21: 0.03812205706 | K21: 0.04329624774 | L21: 0.02856453963 | M21: 0.03594830781 | N21: 0.04092211653 | O21: 0.03765208458 | P21: 0.02657707459 | Q21: 0.03058219163 | R21: 0.03296399412 | S21: 0.02672030015 | T21: 0.03068832006 | U21: 0.02495293313 | V21: 0.02466728035 | W21: 0.02465686475 | X21: 0.02434872934 | Y21: 0.02330839988 | Z21: 0.01748679363 | AA21: 0.01519457148 | AB21: 0.0172529626 | AC21: 0.01672054574 | AD21: 0.01667948016 | AE21: 0.01634033584 | AF21: 0.01587934917 | AG21: 0.01591722557 | AH21: 0.01354243654 | AI21: 0.009272882767 | AJ21: 0.01005892381
C22: =IF( subgroup.idx="", "", INDEX(subgroupData.names,subgroup.idx) ) -> Region - North East | D22: 6 | E22: 483 | F22: =IF( INDEX(attr.selection, attr.ordered), INDEX( output.array,subgroup.idx, attr.ordered), "" ) -> 0.1570116281 | G22: 0.09288472951 | H22: 0.04216480651 | I22: 0.03597666454 | J22: 0.0352166391 | K22: 0.04233212937 | L22: 0.02700792317 | M22: 0.03691425367 | N22: 0.04350353858 | O22: 0.03800198559 | P22: 0.02947634018 | Q22: 0.03191923951 | R22: 0.03409004142 | S22: 0.0281358871 | T22: 0.03037798987 | U22: 0.0251879292 | V22: 0.02502683751 | W22: 0.02687329318 | X22: 0.02464602416 | Y22: 0.02314683007 | Z22: 0.01810908893 | AA22: 0.01520035752 | AB22: 0.01768968173 | AC22: 0.01724726258 | AD22: 0.01660963653 | AE22: 0.01719705377 | AF22: 0.01611337455 | AG22: 0.01586941953 | AH22: 0.01528202991 | AI22: 0.01004226937 | AJ22: 0.0107451153
C23: =IF( subgroup.idx="", "", INDEX(subgroupData.names,subgroup.idx) ) -> Region - North West | D23: 7 | E23: 1272 | F23: =IF( INDEX(attr.selection, attr.ordered), INDEX( output.array,subgroup.idx, attr.ordered), "" ) -> 0.1428057476 | G23: 0.1070435549 | H23: 0.04364769824 | I23: 0.03855813417 | J23: 0.03775395073 | K23: 0.04279811613 | L23: 0.02835367523 | M23: 0.03611517547 | N23: 0.04122042932 | O23: 0.03871869322 | P23: 0.02523697676 | Q23: 0.03060452172 | R23: 0.03375540955 | S23: 0.02671122323 | T23: 0.03490285075 | U23: 0.02550379132 | V23: 0.02561973293 | W23: 0.02330831962 | X23: 0.02706056698 | Y23: 0.02275985431 | Z23: 0.0179381158 | AA23: 0.01471244566 | AB23: 0.01790414519 | AC23: 0.01732773168 | AD23: 0.016886605 | AE23: 0.01617866236 | AF23: 0.01693932379 | AG23: 0.01721198762 | AH23: 0.01410026637 | AI23: 0.008646788548 | AJ23: 0.009675505843
C24: =IF( subgroup.idx="", "", INDEX(subgroupData.names,subgroup.idx) ) -> Region - Yorkshire | D24: 8 | E24: 1010 | F24: =IF( INDEX(attr.selection, attr.ordered), INDEX( output.array,subgroup.idx, attr.ordered), "" ) -> 0.1643849813 | G24: 0.1151716824 | H24: 0.04662255305 | I24: 0.04110483789 | J24: 0.04020445297 | K24: 0.04474030905 | L24: 0.02970754357 | M24: 0.03516688677 | N24: 0.03912950967 | O24: 0.03535378802 | P24: 0.02791887767 | Q24: 0.02991845522 | R24: 0.03085754856 | S24: 0.02608310746 | T24: 0.02239073813 | U24: 0.02374082709 | V24: 0.02259315569 | W24: 0.02633171921 | X24: 0.01877956971 | Y24: 0.02448187992 | Z24: 0.01629474008 | AA24: 0.01615753927 | AB24: 0.01574652599 | AC24: 0.01526056357 | AD24: 0.01629696664 | AE24: 0.0162675168 | AF24: 0.01364798663 | AG24: 0.01334608807 | AH24: 0.01161978525 | AI24: 0.01017068058 | AJ24: 0.01050918372
C25: =IF( subgroup.idx="", "", INDEX(subgroupData.names,subgroup.idx) ) -> Region - East Midlands | D25: 9 | E25: 746 | F25: =IF( INDEX(attr.selection, attr.ordered), INDEX( output.array,subgroup.idx, attr.ordered), "" ) -> 0.1616295984 | G25: 0.1218796935 | H25: 0.04238991095 | I25: 0.03736922785 | J25: 0.03591308651 | K25: 0.0423150601 | L25: 0.02671876341 | M25: 0.03361409008 | N25: 0.03859461915 | O25: 0.04074707557 | P25: 0.02699938095 | Q25: 0.02829320078 | R25: 0.03703613256 | S25: 0.02456298733 | T25: 0.02540675801 | U25: 0.02306851128 | V25: 0.0220185002 | W25: 0.02553681834 | X25: 0.02064831626 | Y25: 0.02701926695 | Z25: 0.01766291751 | AA25: 0.01469169052 | AB25: 0.01675198992 | AC25: 0.01606175834 | AD25: 0.01466594883 | AE25: 0.01856898424 | AF25: 0.01483831723 | AG25: 0.01529435683 | AH25: 0.01222658429 | AI25: 0.008285427491 | AJ25: 0.009191026625
C26: =IF( subgroup.idx="", "", INDEX(subgroupData.names,subgroup.idx) ) -> Region - West Midlands | D26: 10 | E26: 1009 | F26: =IF( INDEX(attr.selection, attr.ordered), INDEX( output.array,subgroup.idx, attr.ordered), "" ) -> 0.1495571293 | G26: 0.1245296337 | H26: 0.04570959336 | I26: 0.03965667627 | J26: 0.039405201 | K26: 0.04447554694 | L26: 0.02871005499 | M26: 0.03557526902 | N26: 0.0448008882 | O26: 0.03636904324 | P26: 0.02762561203 | Q26: 0.03029132887 | R26: 0.0319279959 | S26: 0.02626004076 | T26: 0.02672831963 | U26: 0.02377363515 | V26: 0.02307630051 | W26: 0.02331020094 | X26: 0.02147952082 | Y26: 0.02317988089 | Z26: 0.01627572097 | AA26: 0.01555081282 | AB26: 0.01600590991 | AC26: 0.01550981078 | AD26: 0.01676064798 | AE26: 0.0162768363 | AF26: 0.01442939519 | AG26: 0.01439155286 | AH26: 0.01069457892 | AI26: 0.00851786574 | AJ26: 0.009144997031
C27: =IF( subgroup.idx="", "", INDEX(subgroupData.names,subgroup.idx) ) -> Region - East Of England | D27: 11 | E27: 1070 | F27: =IF( INDEX(attr.selection, attr.ordered), INDEX( output.array,subgroup.idx, attr.ordered), "" ) -> 0.188913826 | G27: 0.1156352749 | H27: 0.06031150131 | I27: 0.05623173866 | J27: 0.0542708487 | K27: 0.05271879833 | L27: 0.03761816541 | M27: 0.03447134938 | N27: 0.0309729413 | O27: 0.03082151568 | P27: 0.03241306041 | Q27: 0.02827635054 | R27: 0.02535695707 | S27: 0.02424233616 | T27: 0.02042471335 | U27: 0.0201759199 | V27: 0.01793206596 | W27: 0.02140617012 | X27: 0.0163923765 | Y27: 0.01882653198 | Z27: 0.01265282441 | AA27: 0.01333893076 | AB27: 0.01193444866 | AC27: 0.01157176215 | AD27: 0.01038124409 | AE27: 0.01074540905 | AF27: 0.01019767179 | AG27: 0.01003169688 | AH27: 0.007802799238 | AI27: 0.00728282924 | AJ27: 0.006647942033
C28: =IF( subgroup.idx="", "", INDEX(subgroupData.names,subgroup.idx) ) -> Region - London | D28: 12 | E28: 2272 | F28: =IF( INDEX(attr.selection, attr.ordered), INDEX( output.array,subgroup.idx, attr.ordered), "" ) -> 0.1261690668 | G28: 0.08324154261 | H28: 0.06428967433 | I28: 0.05851699487 | J28: 0.05938524357 | K28: 0.055500936 | L28: 0.04182738419 | M28: 0.04022796018 | N28: 0.0319187814 | O28: 0.02874585358 | P28: 0.03506506064 | Q28: 0.03396521704 | R28: 0.02469185515 | S28: 0.02963019589 | T28: 0.02637010584 | U28: 0.02577407914 | V28: 0.02574243049 | W28: 0.01744290552 | X28: 0.0222390043 | Y28: 0.01764071455 | Z28: 0.01534876575 | AA28: 0.01691664982 | AB28: 0.01539528617 | AC28: 0.01510593393 | AD28: 0.01496168203 | AE28: 0.01266103071 | AF28: 0.01473378298 | AG28: 0.01405936308 | AH28: 0.01245993814 | AI28: 0.01057056768 | AJ28: 0.009401993641
C29: =IF( subgroup.idx="", "", INDEX(subgroupData.names,subgroup.idx) ) -> Region - South East | D29: 13 | E29: 1946 | F29: =IF( INDEX(attr.selection, attr.ordered), INDEX( output.array,subgroup.idx, attr.ordered), "" ) -> 0.1713457645 | G29: 0.102274517 | H29: 0.06315070294 | I29: 0.06357087533 | J29: 0.05917582182 | K29: 0.05107391061 | L29: 0.04262487695 | M29: 0.03634025357 | N29: 0.03183848983 | O29: 0.02931303464 | P29: 0.03193534964 | Q29: 0.02937887969 | R29: 0.02424936254 | S29: 0.02519093332 | T29: 0.02288141906 | U29: 0.02071588174 | V29: 0.01839081908 | W29: 0.02043120911 | X29: 0.01835757864 | Y29: 0.01834127926 | Z29: 0.01290122447 | AA29: 0.01316789663 | AB29: 0.01260755396 | AC29: 0.01222001344 | AD29: 0.01086709458 | AE29: 0.01158345246 | AF29: 0.01134501358 | AG29: 0.01110922332 | AH29: 0.008788760347 | AI29: 0.008156094564 | AJ29: 0.006672713427
C30: =IF( subgroup.idx="", "", INDEX(subgroupData.names,subgroup.idx) ) -> Region - South West | D30: 14 | E30: 861 | F30: =IF( INDEX(attr.selection, attr.ordered), INDEX( output.array,subgroup.idx, attr.ordered), "" ) -> 0.160056858 | G30: 0.1194515908 | H30: 0.04863508884 | I30: 0.04442846197 | J30: 0.04240972079 | K30: 0.04533351152 | L30: 0.03117204962 | M30: 0.03475777064 | N30: 0.04222719956 | O30: 0.03513071601 | P30: 0.03000525755 | Q30: 0.02890500237 | R30: 0.03081484333 | S30: 0.02497540905 | T30: 0.02505942908 | U30: 0.02297193184 | V30: 0.02157254648 | W30: 0.02420607751 | X30: 0.02003368328 | Y30: 0.02289214019 | Z30: 0.01549464168 | AA30: 0.01491699871 | AB30: 0.01485494849 | AC30: 0.01431185357 | AD30: 0.0142725347 | AE30: 0.0163282534 | AF30: 0.01314833858 | AG30: 0.01306590535 | AH30: 0.01115834964 | AI30: 0.008728777944 | AJ30: 0.00868010955
C32: =IF( subgroup.idx="", "", INDEX(subgroupData.names,subgroup.idx) ) -> Journey Purpose - Commuting | D32: 15 | E32: =INDEX( unweighted.subgroup.member.count, subgroup.idx) -> 2976 | F32: =IF( INDEX(attr.selection, attr.ordered), INDEX( output.array,subgroup.idx, attr.ordered), "" ) -> 0.1413537719 | G32: 0.09334101152 | H32: 0.06323548959 | I32: 0.05873559074 | J32: 0.05816503778 | K32: 0.05393133939 | L32: 0.0411776716 | M32: 0.03776940305 | N32: 0.03525794189 | O32: 0.02809024067 | P32: 0.03534511785 | Q32: 0.0316424116 | R32: 0.02385132683 | S32: 0.02765373706 | T32: 0.02364027646 | U32: 0.02362314624 | V32: 0.02288509092 | W32: 0.01871667211 | X32: 0.01995751893 | Y32: 0.01881274621 | Z32: 0.01443506377 | AA32: 0.01676418441 | AB32: 0.01425112489 | AC32: 0.01393205397 | AD32: 0.01525984411 | AE32: 0.01268545302 | AF32: 0.01312229543 | AG32: 0.01258171236 | AH32: 0.009826922211 | AI32: 0.01046341191 | AJ32: 0.009492391539
C33: =IF( subgroup.idx="", "", INDEX(subgroupData.names,subgroup.idx) ) -> Journey Purpose - Business | D33: 16 | E33: =INDEX( unweighted.subgroup.member.count, subgroup.idx) -> 1298 | F33: =IF( INDEX(attr.selection, attr.ordered), INDEX( output.array,subgroup.idx, attr.ordered), "" ) -> 0.170458994 | G33: 0.1035071155 | H33: 0.05448794493 | I33: 0.05147216358 | J33: 0.0490332394 | K33: 0.04837225148 | L33: 0.03585046755 | M33: 0.03425419151 | N33: 0.04710581726 | O33: 0.03292621695 | P33: 0.03392764812 | Q33: 0.0284265337 | R33: 0.02857720224 | S33: 0.02478653711 | T33: 0.02042552094 | U33: 0.02137944696 | V33: 0.01991297634 | W33: 0.02187532392 | X33: 0.01711100072 | Y33: 0.02157364699 | Z33: 0.01456446198 | AA33: 0.01425879583 | AB33: 0.01354047286 | AC33: 0.01314294709 | AD33: 0.01542421395 | AE33: 0.01348563278 | AF33: 0.01144113591 | AG33: 0.01120349979 | AH33: 0.009071923606 | AI33: 0.008959300061 | AJ33: 0.009443376881
C34: =IF( subgroup.idx="", "", INDEX(subgroupData.names,subgroup.idx) ) -> Journey Purpose - Leisure | D34: 17 | E34: =INDEX( unweighted.subgroup.member.count, subgroup.idx) -> 8496 | F34: =IF( INDEX(attr.selection, attr.ordered), INDEX( output.array,subgroup.idx, attr.ordered), "" ) -> 0.169427228 | G34: 0.1182631651 | H34: 0.04806855012 | I34: 0.04535504088 | J34: 0.04267849735 | K34: 0.04447029985 | L34: 0.03127794367 | M34: 0.03668319136 | N34: 0.02899497544 | O34: 0.03880117368 | P34: 0.02369323669 | Q34: 0.03024898658 | R34: 0.03364975638 | S34: 0.02569932812 | T34: 0.02981654017 | U34: 0.02365076162 | V34: 0.02207315051 | W34: 0.02453220606 | X34: 0.022834348 | Y34: 0.02135403031 | Z34: 0.01592530457 | AA34: 0.01186589345 | AB34: 0.01564718694 | AC34: 0.01508603645 | AD34: 0.009842395401 | AE34: 0.01502041775 | AF34: 0.01445909714 | AG34: 0.0146527674 | AH34: 0.01363825474 | AI34: 0.006361198813 | AJ34: 0.005929037479
C36: =IF( subgroup.idx="", "", INDEX(subgroupData.names,subgroup.idx) ) -> Ticket Type - Anytime single/return | D36: 18 | E36: =INDEX( unweighted.subgroup.member.count, subgroup.idx) -> 4190 | F36: =IF( INDEX(attr.selection, attr.ordered), INDEX( output.array,subgroup.idx, attr.ordered), "" ) -> 0.1565765627 | G36: 0.09802870812 | H36: 0.05176339701 | I36: 0.04780741581 | J36: 0.04615087175 | K36: 0.04665670712 | L36: 0.03395684451 | M36: 0.03591707164 | N36: 0.04436746978 | O36: 0.03326204814 | P36: 0.03102124355 | Q36: 0.03020176861 | R36: 0.02900012862 | S36: 0.02646545406 | T36: 0.02578718851 | U36: 0.02319076881 | V36: 0.02249971374 | W36: 0.02252000789 | X36: 0.0212016275 | Y36: 0.02093474388 | Z36: 0.01589248902 | AA36: 0.01489610013 | AB36: 0.01570298589 | AC36: 0.01529755363 | AD36: 0.01711908736 | AE36: 0.01424350366 | AF36: 0.01430082662 | AG36: 0.01405635734 | AH36: 0.01150428367 | AI36: 0.009571095643 | AJ36: 0.0101059753
C37: =IF( subgroup.idx="", "", INDEX(subgroupData.names,subgroup.idx) ) -> Ticket Type - Off peak/super off peak | D37: 19 | E37: 4866 | F37: =IF( INDEX(attr.selection, attr.ordered), INDEX( output.array,subgroup.idx, attr.ordered), "" ) -> 0.1790022376 | G37: 0.1114194671 | H37: 0.04971090877 | I37: 0.04709824837 | J37: 0.04412627494 | K37: 0.04517169758 | L37: 0.03285744354 | M37: 0.03474035515 | N37: 0.03350206003 | O37: 0.03516336736 | P37: 0.02929859247 | Q37: 0.0287196665 | R37: 0.03039411176 | S37: 0.02477833571 | T37: 0.02543452786 | U37: 0.02256119015 | V37: 0.02080691193 | W37: 0.02568799253 | X37: 0.02022521979 | Y37: 0.02168512474 | Z37: 0.01521686301 | AA37: 0.01313780862 | AB37: 0.01480158048 | AC37: 0.01428023163 | AD37: 0.01202930617 | AE37: 0.01495380246 | AF37: 0.01311233113 | AG37: 0.01309925847 | AH37: 0.01090039691 | AI37: 0.0084174126 | AJ37: 0.007667274595
C38: =IF( subgroup.idx="", "", INDEX(subgroupData.names,subgroup.idx) ) -> Ticket Type - Advance single/return | D38: 20 | E38: 2256 | F38: =IF( INDEX(attr.selection, attr.ordered), INDEX( output.array,subgroup.idx, attr.ordered), "" ) -> 0.1581372634 | G38: 0.1029077179 | H38: 0.04220310534 | I38: 0.03838731222 | J38: 0.03611393507 | K38: 0.04069354896 | L38: 0.02829760063 | M38: 0.0330902208 | N38: 0.04971624226 | O38: 0.03838728139 | P38: 0.02972878451 | Q38: 0.02775438077 | R38: 0.03540996722 | S38: 0.02480713542 | T38: 0.02373010863 | U38: 0.02399936065 | V38: 0.02401224317 | W38: 0.02562673888 | X38: 0.02021049133 | Y38: 0.02513731465 | Z38: 0.01786254439 | AA38: 0.01504278234 | AB38: 0.01708601034 | AC38: 0.01657587259 | AD38: 0.02021148925 | AE38: 0.01858404979 | AF38: 0.01509279375 | AG38: 0.01482536499 | AH38: 0.01357033554 | AI38: 0.01095975122 | AJ38: 0.01183825264
C39: =IF( subgroup.idx="", "", INDEX(subgroupData.names,subgroup.idx) ) -> Ticket Type - PAYG Smartcard | D39: 21 | E39: 1263 | F39: =IF( INDEX(attr.selection, attr.ordered), INDEX( output.array,subgroup.idx, attr.ordered), "" ) -> 0.1202472006 | G39: 0.08626250872 | H39: 0.06370093582 | I39: 0.05799345273 | J39: 0.05897322397 | K39: 0.05486309952 | L39: 0.0420426591 | M39: 0.04040956519 | N39: 0.0293749041 | O39: 0.0280601473 | P39: 0.03476207061 | Q39: 0.03417194165 | R39: 0.02383682419 | S39: 0.02962331959 | T39: 0.03003407619 | U39: 0.02615422329 | V39: 0.02599393539 | W39: 0.01743270812 | X39: 0.0247806037 | Y39: 0.01758501966 | Z39: 0.01525039356 | AA39: 0.01726490286 | AB39: 0.01558019945 | AC39: 0.01523990958 | AD39: 0.01361556628 | AE39: 0.01285792349 | AF39: 0.01555051604 | AG39: 0.01497763321 | AH39: 0.01354300006 | AI39: 0.01087282757 | AJ39: 0.008944708484
C40: =IF( subgroup.idx="", "", INDEX(subgroupData.names,subgroup.idx) ) -> Ticket Type - Weekly season | D40: 22 | E40: 484 | F40: =IF( INDEX(attr.selection, attr.ordered), INDEX( output.array,subgroup.idx, attr.ordered), "" ) -> 0.1329390479 | G40: 0.08391304253 | H40: 0.05665310749 | I40: 0.05310651368 | J40: 0.05174433364 | K40: 0.04915008364 | L40: 0.03923260304 | M40: 0.03677324921 | N40: 0.03272584018 | O40: 0.03068122555 | P40: 0.03659065236 | Q40: 0.030750331 | R40: 0.02744805741 | S40: 0.02806697677 | T40: 0.02533751145 | U40: 0.02550253703 | V40: 0.02705516956 | W40: 0.01983478104 | X40: 0.02250077152 | Y40: 0.02075335719 | Z40: 0.0172587043 | AA40: 0.01712096812 | AB40: 0.01726359013 | AC40: 0.01694111865 | AD40: 0.01695349818 | AE40: 0.01487980235 | AF40: 0.01620479668 | AG40: 0.01550921229 | AH40: 0.0120025716 | AI40: 0.01323944336 | AJ40: 0.01186710212
C41: =IF( subgroup.idx="", "", INDEX(subgroupData.names,subgroup.idx) ) -> Ticket Type - Monthly season | D41: 23 | E41: 677 | F41: =IF( INDEX(attr.selection, attr.ordered), INDEX( output.array,subgroup.idx, attr.ordered), "" ) -> 0.1304359674 | G41: 0.0962237431 | H41: 0.07338057077 | I41: 0.07104622164 | J41: 0.0703335805 | K41: 0.05719460061 | L41: 0.0483659006 | M41: 0.03905604468 | N41: 0.02115789106 | O41: 0.02594690718 | P41: 0.03173872034 | Q41: 0.03224149585 | R41: 0.02187657187 | S41: 0.02779251498 | T41: 0.02185560271 | U41: 0.02266847533 | V41: 0.02175594481 | W41: 0.0161981648 | X41: 0.01868382001 | Y41: 0.01772601558 | Z41: 0.01361222832 | AA41: 0.01772583481 | AB41: 0.01336863274 | AC41: 0.01305622288 | AD41: 0.01118408945 | AE41: 0.01233868887 | AF41: 0.01232991732 | AG41: 0.01167656135 | AH41: 0.01034636706 | AI41: 0.01050529091 | AJ41: 0.008177412483
C42: =IF( subgroup.idx="", "", INDEX(subgroupData.names,subgroup.idx) ) -> Ticket Type - Annual season | D42: 24 | E42: 345 | F42: =IF( INDEX(attr.selection, attr.ordered), INDEX( output.array,subgroup.idx, attr.ordered), "" ) -> 0.1535790795 | G42: 0.0935589154 | H42: 0.0762210759 | I42: 0.07103972 | J42: 0.07042678061 | K42: 0.062996001 | L42: 0.04672415314 | M42: 0.0385739865 | N42: 0.03414135597 | O42: 0.02396813879 | P42: 0.04045191526 | Q42: 0.03201415602 | R42: 0.01890554569 | S42: 0.02755271608 | T42: 0.01671789641 | U42: 0.02142672225 | V42: 0.01972486288 | W42: 0.01477390931 | X42: 0.01434032788 | Y42: 0.01526295642 | Z42: 0.01107143864 | AA42: 0.01555888022 | AB42: 0.01046157964 | AC42: 0.01031049798 | AD42: 0.013265186 | AE42: 0.008465668779 | AF42: 0.00903855613 | AG42: 0.008337385279 | AH42: 0.005762298442 | AI42: 0.007883639807 | AJ42: 0.007444654072
C43: =IF( subgroup.idx="", "", INDEX(subgroupData.names,subgroup.idx) ) -> Ticket Type - Any season | D43: 25 | E43: 1365 | F43: =IF( INDEX(attr.selection, attr.ordered), INDEX( output.array,subgroup.idx, attr.ordered), "" ) -> 0.1401090491 | G43: 0.09448538826 | H43: 0.07062430789 | I43: 0.06705537762 | J43: 0.06624898217 | K43: 0.05741030894 | L43: 0.04583692341 | M43: 0.03819164806 | N43: 0.02772615059 | O43: 0.0262151775 | P43: 0.03560055615 | Q43: 0.03163401859 | R43: 0.02191765903 | S43: 0.02755366927 | T43: 0.0208976191 | U43: 0.02275093991 | V43: 0.02194518096 | W43: 0.01660866018 | X43: 0.01800649707 | Y43: 0.01774915881 | Z43: 0.01340561491 | AA43: 0.01684956714 | AB43: 0.01305596477 | AC43: 0.01278069169 | AD43: 0.01285337092 | AE43: 0.01162161792 | AF43: 0.01186626232 | AG43: 0.01121391114 | AH43: 0.009024948303 | AI43: 0.01017091716 | AJ43: 0.008589861076
C44: =IF( subgroup.idx="", "", INDEX(subgroupData.names,subgroup.idx) ) -> Ticket Type - Monthly or longer season | D44: 26 | E44: 989 | F44: =IF( INDEX(attr.selection, attr.ordered), INDEX( output.array,subgroup.idx, attr.ordered), "" ) -> 0.1399565039 | G44: 0.09559309686 | H44: 0.07475006272 | I44: 0.07135373988 | J44: 0.07065117841 | K44: 0.05962864427 | L44: 0.0478959152 | M44: 0.038795047 | N44: 0.0262577588 | O44: 0.02512227443 | P44: 0.03527137973 | Q44: 0.03206496182 | R44: 0.02064777098 | S44: 0.02759227396 | T44: 0.0197083672 | U44: 0.0221186002 | V44: 0.02083888258 | W44: 0.01551242147 | X44: 0.01684129405 | Y44: 0.0167520849 | Z44: 0.01251741044 | AA44: 0.01685423694 | AB44: 0.01206781157 | AC44: 0.01181514766 | AD44: 0.01192095755 | AE44: 0.01076943492 | AF44: 0.01084129076 | AG44: 0.01018386553 | AH44: 0.008421601895 | AI44: 0.009426916103 | AJ44: 0.007829068262
C46: =IF( subgroup.idx="", "", INDEX(subgroupData.names,subgroup.idx) ) -> Building Blocks - Abellio Greater Anglia - Intercity | D46: 27 | E46: 92 | F46: =IF( INDEX(attr.selection, attr.ordered), INDEX( output.array,subgroup.idx, attr.ordered), "" ) -> 0.1932429704 | G46: 0.08823848484 | H46: 0.0541021669 | I46: 0.05418514343 | J46: 0.04882973847 | K46: 0.04535130905 | L46: 0.03731332035 | M46: 0.03280267529 | N46: 0.0315819207 | O46: 0.03003896229 | P46: 0.03309483531 | Q46: 0.02650514978 | R46: 0.02522496871 | S46: 0.02305896894 | T46: 0.03988713993 | U46: 0.02066038781 | V46: 0.01884466244 | W46: 0.02399193486 | X46: 0.02890636636 | Y46: 0.01718899326 | Z46: 0.01390787394 | AA46: 0.01177328774 | AB46: 0.01400744631 | AC46: 0.01342103847 | AD46: 0.008911637016 | AE46: 0.01176647545 | AF46: 0.01403199459 | AG46: 0.01488279985 | AH46: 0.008629040711 | AI46: 0.009025488016 | AJ46: 0.00659281885
C47: =IF( subgroup.idx="", "", INDEX(subgroupData.names,subgroup.idx) ) -> Building Blocks - Abellio Greater Anglia - Mainline | D47: 28 | E47: 129 | F47: =IF( INDEX(attr.selection, attr.ordered), INDEX( output.array,subgroup.idx, attr.ordered), "" ) -> 0.2228517612 | G47: 0.1077872199 | H47: 0.06744676468 | I47: 0.06811952113 | J47: 0.06167723182 | K47: 0.0524290235 | L47: 0.04421186596 | M47: 0.03285777893 | N47: 0.03389567212 | O47: 0.02847310646 | P47: 0.03713274797 | Q47: 0.02583586741 | R47: 0.02319336047 | S47: 0.02195129011 | T47: 0.01069617843 | U47: 0.01862106994 | V47: 0.01640201024 | W47: 0.02059623451 | X47: 0.009179900952 | Y47: 0.01543862538 | Z47: 0.009654524817 | AA47: 0.008935730782 | AB47: 0.008307587738 | AC47: 0.008044811329 | AD47: 0.01034332271 | AE47: 0.008513533194 | AF47: 0.005832282412 | AG47: 0.005496792909 | AH47: 0.003789187578 | AI47: 0.006870540538 | AJ47: 0.005414454824
C48: =IF( subgroup.idx="", "", INDEX(subgroupData.names,subgroup.idx) ) -> Building Blocks - Abellio Greater Anglia - Rural | D48: 29 | E48: 24 | F48: =IF( INDEX(attr.selection, attr.ordered), INDEX( output.array,subgroup.idx, attr.ordered), "" ) -> 0.2008811877 | G48: 0.09991447807 | H48: 0.06620090253 | I48: 0.06294261964 | J48: 0.05948428098 | K48: 0.05543209706 | L48: 0.04067598444 | M48: 0.04383363451 | N48: 0.01415338869 | O48: 0.03500435337 | P48: 0.02060451992 | Q48: 0.03531475283 | R48: 0.02951876742 | S48: 0.02965600345 | T48: 0.01503641195 | U48: 0.02330238693 | V48: 0.02110498221 | W48: 0.02486101784 | X48: 0.0128534628 | Y48: 0.01574624825 | Z48: 0.01309357903 | AA48: 0.009382718206 | AB48: 0.01231269465 | AC48: 0.01194652044 | AD48: 0.002866593293 | AE48: 0.01127962614 | AF48: 0.009689862981 | AG48: 0.0088614044 | AH48: 0.006305238958 | AI48: 0.005651961157 | AJ48: 0.002088320092
C49: =IF( subgroup.idx="", "", INDEX(subgroupData.names,subgroup.idx) ) -> Building Blocks - Abellio Greater Anglia - Stansted Express | D49: 30 | E49: 35 | F49: =IF( INDEX(attr.selection, attr.ordered), INDEX( output.array,subgroup.idx, attr.ordered), "" ) -> 0.155009737 | G49: 0.06573917693 | H49: 0.06131320467 | I49: 0.05744142085 | J49: 0.05861212808 | K49: 0.05263059184 | L49: 0.04767356463 | M49: 0.02963913814 | N49: 0.03947713311 | O49: 0.02732072296 | P49: 0.05911071825 | Q49: 0.02446874267 | R49: 0.02464120962 | S49: 0.02168556358 | T49: 0.03587465853 | U49: 0.02524286874 | V49: 0.02383231657 | W49: 0.01969154177 | X49: 0.02694106587 | Y49: 0.01650413513 | Z49: 0.01284421475 | AA49: 0.01354803471 | AB49: 0.01235799759 | AC49: 0.01186677649 | AD49: 0.01042314325 | AE49: 0.01126751053 | AF49: 0.01245619066 | AG49: 0.01345861364 | AH49: 0.00664742267 | AI49: 0.01422775459 | AJ49: 0.008052702231
C50: =IF( subgroup.idx="", "", INDEX(subgroupData.names,subgroup.idx) ) -> Building Blocks - Abellio Greater Anglia - West Anglia | D50: 31 | E50: 67 | F50: =IF( INDEX(attr.selection, attr.ordered), INDEX( output.array,subgroup.idx, attr.ordered), "" ) -> 0.188220647 | G50: 0.09641926058 | H50: 0.0683054861 | I50: 0.06820694378 | J50: 0.06497182731 | K50: 0.0549635412 | L50: 0.04718262735 | M50: 0.03483487055 | N50: 0.02676092495 | O50: 0.0285510486 | P50: 0.03843655552 | Q50: 0.02800504471 | R50: 0.02274912699 | S50: 0.02430958993 | T50: 0.01961359 | U50: 0.01981222641 | V50: 0.0172456904 | W50: 0.01965960905 | X50: 0.01546268256 | Y50: 0.01863741984 | Z50: 0.01165637053 | AA50: 0.01262596694 | AB50: 0.01119827036 | AC50: 0.01083320876 | AD50: 0.005928115543 | AE50: 0.009696481195 | AF50: 0.009382831179 | AG50: 0.009415459033 | AH50: 0.004764661144 | AI50: 0.008247011883 | AJ50: 0.003902910538
C52: =IF( subgroup.idx="", "", INDEX(subgroupData.names,subgroup.idx) ) -> Building Blocks - Arriva Trains Wales - Cardiff & Valleys | D52: 32 | E52: 408 | F52: =IF( INDEX(attr.selection, attr.ordered), INDEX( output.array,subgroup.idx, attr.ordered), "" ) -> 0.1472758059 | G52: 0.1384090182 | H52: 0.05056953682 | I52: 0.04493027814 | J52: 0.04399666927 | K52: 0.04711457737 | L52: 0.0305461983 | M52: 0.03774211177 | N52: 0.02747156994 | O52: 0.03805099417 | P52: 0.02476123186 | Q52: 0.03149081216 | R52: 0.03234499692 | S52: 0.02709881746 | T52: 0.02764552841 | U52: 0.02157900067 | V52: 0.0202010752 | W52: 0.0212631572 | X52: 0.02179118497 | Y52: 0.0223187757 | Z52: 0.01636203027 | AA52: 0.01574607705 | AB52: 0.01604330721 | AC52: 0.01552148338 | AD52: 0.01074510059 | AE52: 0.01460047806 | AF52: 0.01424862686 | AG52: 0.01432737328 | AH52: 0.01097769736 | AI52: 0.007506722918 | AJ52: 0.007319762555
C53: =IF( subgroup.idx="", "", INDEX(subgroupData.names,subgroup.idx) ) -> Building Blocks - Arriva Trains Wales - Inter Urban | D53: 33 | E53: 179 | F53: =IF( INDEX(attr.selection, attr.ordered), INDEX( output.array,subgroup.idx, attr.ordered), "" ) -> 0.175825438 | G53: 0.1295517917 | H53: 0.04215790167 | I53: 0.03693123685 | J53: 0.03546685523 | K53: 0.04550892395 | L53: 0.02702023037 | M53: 0.03237944155 | N53: 0.03460718517 | O53: 0.04073500782 | P53: 0.03990105058 | Q53: 0.02731823936 | R53: 0.0369276903 | S53: 0.02335557704 | T53: 0.02463539324 | U53: 0.02252755462 | V53: 0.02102861634 | W53: 0.02251340573 | X53: 0.01924155888 | Y53: 0.02488346668 | Z53: 0.0157874261 | AA53: 0.01274527378 | AB53: 0.01425247516 | AC53: 0.01377279271 | AD53: 0.01133220028 | AE53: 0.01634988777 | AF53: 0.01261136069 | AG53: 0.01269731247 | AH53: 0.01347629947 | AI53: 0.007004588546 | AJ53: 0.007453817997
C54: =IF( subgroup.idx="", "", INDEX(subgroupData.names,subgroup.idx) ) -> Building Blocks - Arriva Trains Wales - Mid Wales & Borders | D54: 34 | E54: 171 | F54: =IF( INDEX(attr.selection, attr.ordered), INDEX( output.array,subgroup.idx, attr.ordered), "" ) -> 0.1726623522 | G54: 0.135242646 | H54: 0.0429009451 | I54: 0.03815607036 | J54: 0.03667794957 | K54: 0.04416731193 | L54: 0.02787593098 | M54: 0.03227827125 | N54: 0.02835559975 | O54: 0.04200920159 | P54: 0.03053982246 | Q54: 0.02705661224 | R54: 0.0390820641 | S54: 0.0233202142 | T54: 0.02213214086 | U54: 0.02320819673 | V54: 0.02151242581 | W54: 0.02390502691 | X54: 0.01794356697 | Y54: 0.02815030486 | Z54: 0.016502098 | AA54: 0.013801882 | AB54: 0.01494517422 | AC54: 0.01440094363 | AD54: 0.01145580143 | AE54: 0.01893394141 | AF54: 0.0128293287 | AG54: 0.01291733742 | AH54: 0.01274410206 | AI54: 0.006989671202 | AJ54: 0.007303066117
C55: =IF( subgroup.idx="", "", INDEX(subgroupData.names,subgroup.idx) ) -> Building Blocks - Arriva Trains Wales - North Wales & Borders | D55: 35 | E55: 102 | F55: =IF( INDEX(attr.selection, attr.ordered), INDEX( output.array,subgroup.idx, attr.ordered), "" ) -> 0.1771743291 | G55: 0.124253285 | H55: 0.04547524805 | I55: 0.04036033278 | J55: 0.03962117167 | K55: 0.04677173053 | L55: 0.03073103196 | M55: 0.03220955657 | N55: 0.02158281935 | O55: 0.03714058421 | P55: 0.03689542442 | Q55: 0.02739872797 | R55: 0.03448332192 | S55: 0.0235673755 | T55: 0.02144762195 | U55: 0.02537782638 | V55: 0.02425503925 | W55: 0.02547289241 | X55: 0.01750492676 | Y55: 0.02872074377 | Z55: 0.01548946183 | AA55: 0.01414450545 | AB55: 0.01438507771 | AC55: 0.01394631348 | AD55: 0.008584776711 | AE55: 0.01851280328 | AF55: 0.01279112926 | AG55: 0.0126394728 | AH55: 0.01407692126 | AI55: 0.008158356718 | AJ55: 0.006827191905
C56: =IF( subgroup.idx="", "", INDEX(subgroupData.names,subgroup.idx) ) -> Building Blocks - Arriva Trains Wales - South Wales & Borders / West Wales | D56: 36 | E56: 299 | F56: =IF( INDEX(attr.selection, attr.ordered), INDEX( output.array,subgroup.idx, attr.ordered), "" ) -> 0.1635143177 | G56: 0.1279427281 | H56: 0.04433799181 | I56: 0.0398839994 | J56: 0.03816760203 | K56: 0.04346832166 | L56: 0.02817680604 | M56: 0.03487953077 | N56: 0.04048860655 | O56: 0.03948989034 | P56: 0.02741182107 | Q56: 0.02923716615 | R56: 0.03445957309 | S56: 0.02531115109 | T56: 0.02437002138 | U56: 0.02182219348 | V56: 0.01992107986 | W56: 0.02413808872 | X56: 0.01946309426 | Y56: 0.02496157072 | Z56: 0.01648626449 | AA56: 0.01405636028 | AB56: 0.01581875313 | AC56: 0.01527722496 | AD56: 0.01519789098 | AE56: 0.01635166195 | AF56: 0.01350348005 | AG56: 0.01353287824 | AH56: 0.01184599856 | AI56: 0.00762358887 | AJ56: 0.00886034426
C58: =IF( subgroup.idx="", "", INDEX(subgroupData.names,subgroup.idx) ) -> Building Blocks - c2c - Southend Line | D58: 37 | E58: 220 | F58: =IF( INDEX(attr.selection, attr.ordered), INDEX( output.array,subgroup.idx, attr.ordered), "" ) -> 0.1700939922 | G58: 0.1150223377 | H58: 0.05164241667 | I58: 0.04392085795 | J58: 0.04522681497 | K58: 0.04803400559 | L58: 0.03118637553 | M58: 0.03785898242 | N58: 0.03452456614 | O58: 0.03236025358 | P58: 0.02415651095 | Q58: 0.03175339537 | R58: 0.02599394403 | S58: 0.02714688498 | T58: 0.03149248272 | U58: 0.022629138 | V58: 0.02057062525 | W58: 0.02625538006 | X58: 0.02418260426 | Y58: 0.02081282744 | Z58: 0.01436662772 | AA58: 0.015218609 | AB58: 0.01479956947 | AC58: 0.0142811444 | AD58: 0.01099677101 | AE58: 0.01212078721 | AF58: 0.01381980218 | AG58: 0.01366944964 | AH58: 0.01151805137 | AI58: 0.007861437903 | AJ58: 0.006483354201
C59: =IF( subgroup.idx="", "", INDEX(subgroupData.names,subgroup.idx) ) -> Building Blocks - c2c - Tilbury Line | D59: 38 | E59: 199 | F59: =IF( INDEX(attr.selection, attr.ordered), INDEX( output.array,subgroup.idx, attr.ordered), "" ) -> 0.1669290511 | G59: 0.1236752415 | H59: 0.04827598397 | I59: 0.03867452498 | J59: 0.0409134584 | K59: 0.04866374226 | L59: 0.02858268045 | M59: 0.03467544527 | N59: 0.05758309011 | O59: 0.03108005573 | P59: 0.02909631786 | Q59: 0.02953098754 | R59: 0.02513244097 | S59: 0.02520900576 | T59: 0.02558288539 | U59: 0.02346473779 | V59: 0.02162497173 | W59: 0.02457547643 | X59: 0.02028064311 | Y59: 0.02075925709 | Z59: 0.01358295345 | AA59: 0.01547094991 | AB59: 0.01351838476 | AC59: 0.01306121017 | AD59: 0.01713544213 | AE59: 0.01180565764 | AF59: 0.01218277597 | AG59: 0.01192051836 | AH59: 0.01047749477 | AI59: 0.008130507209 | AJ59: 0.0084041082
C61: =IF( subgroup.idx="", "", INDEX(subgroupData.names,subgroup.idx) ) -> Building Blocks - Chiltern Railways - Commuter | D61: 39 | E61: 141 | F61: =IF( INDEX(attr.selection, attr.ordered), INDEX( output.array,subgroup.idx, attr.ordered), "" ) -> 0.1456601263 | G61: 0.131488042 | H61: 0.0518102129 | I61: 0.04406634566 | J61: 0.04368152005 | K61: 0.05001149208 | L61: 0.03026554948 | M61: 0.03761991106 | N61: 0.06257983997 | O61: 0.03080455954 | P61: 0.0304367588 | Q61: 0.03316856997 | R61: 0.0254160831 | S61: 0.02888162251 | T61: 0.01465816961 | U61: 0.02196787679 | V61: 0.02324461923 | W61: 0.0175518188 | X61: 0.01320940416 | Y61: 0.02474274011 | Z61: 0.01315806603 | AA61: 0.01892258205 | AB61: 0.01168247384 | AC61: 0.01164697783 | AD61: 0.0228100483 | AE61: 0.01257840393 | AF61: 0.00961348795 | AG61: 0.008575633343 | AH61: 0.009092631702 | AI61: 0.008281624972 | AJ61: 0.01237280798
C62: =IF( subgroup.idx="", "", INDEX(subgroupData.names,subgroup.idx) ) -> Building Blocks - Chiltern Railways - Metro | D62: 40 | E62: 81 | F62: =IF( INDEX(attr.selection, attr.ordered), INDEX( output.array,subgroup.idx, attr.ordered), "" ) -> 0.1681837928 | G62: 0.1556092776 | H62: 0.0441857447 | I62: 0.03510883404 | J62: 0.03564954384 | K62: 0.04821450456 | L62: 0.02484555189 | M62: 0.03381596511 | N62: 0.02367020831 | O62: 0.04130125151 | P62: 0.03008765737 | Q62: 0.02913845078 | R62: 0.03487225918 | S62: 0.02527707016 | T62: 0.02094199526 | U62: 0.02178841858 | V62: 0.02007477105 | W62: 0.02378107272 | X62: 0.01689337164 | Y62: 0.03460810934 | Z62: 0.01625629124 | AA62: 0.01729244688 | AB62: 0.01418507689 | AC62: 0.01363702721 | AD62: 0.008971761445 | AE62: 0.01629729858 | AF62: 0.01147410739 | AG62: 0.01151902684 | AH62: 0.008291904926 | AI62: 0.007204210029 | AJ62: 0.006822998195
C63: =IF( subgroup.idx="", "", INDEX(subgroupData.names,subgroup.idx) ) -> Building Blocks - Chiltern Railways - Oxford | D63: 41 | E63: 22 | F63: =IF( INDEX(attr.selection, attr.ordered), INDEX( output.array,subgroup.idx, attr.ordered), "" ) -> 0.2192175112 | G63: 0.132422675 | H63: 0.06289979733 | I63: 0.06750173141 | J63: 0.05716814908 | K63: 0.04705557255 | L63: 0.04191181038 | M63: 0.03368131823 | N63: 0.01104811858 | O63: 0.03003938438 | P63: 0.02365239531 | Q63: 0.02511344147 | R63: 0.02402255127 | S63: 0.02090553149 | T63: 0.02669104477 | U63: 0.01773237225 | V63: 0.01386181634 | W63: 0.01691350341 | X63: 0.02081922329 | Y63: 0.01822757235 | Z63: 0.01084363285 | AA63: 0.009853134383 | AB63: 0.01041411213 | AC63: 0.009811958408 | AD63: 0.003054506612 | AE63: 0.01152031207 | AF63: 0.01027658975 | AG63: 0.0105091916 | AH63: 0.003967633451 | AI63: 0.005799511453 | AJ63: 0.003063897144
C64: =IF( subgroup.idx="", "", INDEX(subgroupData.names,subgroup.idx) ) -> Building Blocks - Chiltern Railways - West Midlands | D64: 42 | E64: 139 | F64: =IF( INDEX(attr.selection, attr.ordered), INDEX( output.array,subgroup.idx, attr.ordered), "" ) -> 0.1830240204 | G64: 0.1625720559 | H64: 0.03979195259 | I64: 0.03272616896 | J64: 0.03207592786 | K64: 0.04247944845 | L64: 0.02216299257 | M64: 0.03029035678 | N64: 0.0513961104 | O64: 0.03850046698 | P64: 0.02584299547 | Q64: 0.02631641314 | R64: 0.03431239665 | S64: 0.02224529982 | T64: 0.01996230809 | U64: 0.01899153762 | V64: 0.01700503138 | W64: 0.02496833054 | X64: 0.01566260419 | Y64: 0.02708812644 | Z64: 0.01498517706 | AA64: 0.01610539263 | AB64: 0.01340567783 | AC64: 0.01288178092 | AD64: 0.01378475739 | AE64: 0.01722762448 | AF64: 0.01078414809 | AG64: 0.01114220204 | AH64: 0.0086346523 | AI64: 0.005496314684 | AJ64: 0.008137728402
C66: =IF( subgroup.idx="", "", INDEX(subgroupData.names,subgroup.idx) ) -> Building Blocks - CrossCountry - East-West | D66: 43 | E66: 117 | F66: =IF( INDEX(attr.selection, attr.ordered), INDEX( output.array,subgroup.idx, attr.ordered), "" ) -> 0.1683343741 | G66: 0.115231867 | H66: 0.04437997253 | I66: 0.04045093824 | J66: 0.03870531171 | K66: 0.0403921424 | L66: 0.02960344366 | M66: 0.03509871888 | N66: 0.0363512179 | O66: 0.0364061371 | P66: 0.02363102353 | Q66: 0.02971211679 | R66: 0.03352560167 | S66: 0.0254550771 | T66: 0.02696640407 | U66: 0.02318149815 | V66: 0.02338300505 | W66: 0.02631476362 | X66: 0.02165850343 | Y66: 0.02391389593 | Z66: 0.01595984486 | AA66: 0.01394923054 | AB66: 0.01592541414 | AC66: 0.01552913458 | AD66: 0.01501494648 | AE66: 0.01727844889 | AF66: 0.01594489958 | AG66: 0.01610351367 | AH66: 0.01474697794 | AI66: 0.008327264272 | AJ66: 0.008524312171
C67: =IF( subgroup.idx="", "", INDEX(subgroupData.names,subgroup.idx) ) -> Building Blocks - CrossCountry - North-South Manchester | D67: 44 | E67: 124 | F67: =IF( INDEX(attr.selection, attr.ordered), INDEX( output.array,subgroup.idx, attr.ordered), "" ) -> 0.2204320637 | G67: 0.1134779351 | H67: 0.04412958786 | I67: 0.03785260346 | J67: 0.0360254324 | K67: 0.0441044078 | L67: 0.02605010516 | M67: 0.03399537709 | N67: 0.04452368187 | O67: 0.03657448531 | P67: 0.02818568146 | Q67: 0.02804579866 | R67: 0.03336098 | S67: 0.0240476562 | T67: 0.01680592659 | U67: 0.0221638861 | V67: 0.01997171998 | W67: 0.03059376203 | X67: 0.01378941927 | Y67: 0.02326671758 | Z67: 0.01422796276 | AA67: 0.01213774557 | AB67: 0.01281269286 | AC67: 0.01230019262 | AD67: 0.01382636657 | AE67: 0.01703629571 | AF67: 0.009540066265 | AG67: 0.009494643962 | AH67: 0.007233283439 | AI67: 0.00628639084 | AJ67: 0.007707131743
C68: =IF( subgroup.idx="", "", INDEX(subgroupData.names,subgroup.idx) ) -> Building Blocks - CrossCountry - North-South Scotland & North East | D68: 45 | E68: 190 | F68: =IF( INDEX(attr.selection, attr.ordered), INDEX( output.array,subgroup.idx, attr.ordered), "" ) -> 0.2217589949 | G68: 0.1120677102 | H68: 0.04160232215 | I68: 0.0362620076 | J68: 0.03435075942 | K68: 0.04189450649 | L68: 0.02538842943 | M68: 0.03278722434 | N68: 0.04773195493 | O68: 0.03745149077 | P68: 0.02649486591 | Q68: 0.02708531579 | R68: 0.03314342013 | S68: 0.02335125634 | T68: 0.02097427408 | U68: 0.02131748561 | V68: 0.01887680913 | W68: 0.03260795278 | X68: 0.01656653527 | Y68: 0.02248857222 | Z68: 0.01468525605 | AA68: 0.0111875273 | AB68: 0.01340174287 | AC68: 0.01286922104 | AD68: 0.01494839828 | AE68: 0.01555768282 | AF68: 0.01043839128 | AG68: 0.01054020075 | AH68: 0.008119977268 | AI68: 0.006169589393 | AJ68: 0.007880125483
C70: =IF( subgroup.idx="", "", INDEX(subgroupData.names,subgroup.idx) ) -> Building Blocks - East Midlands Trains - Liverpool - Norwich | D70: 46 | E70: 113 | F70: =IF( INDEX(attr.selection, attr.ordered), INDEX( output.array,subgroup.idx, attr.ordered), "" ) -> 0.1779505335 | G70: 0.1338274386 | H70: 0.04550692589 | I70: 0.04028847792 | J70: 0.03804800031 | K70: 0.04271372024 | L70: 0.02642381721 | M70: 0.03633390121 | N70: 0.0377273056 | O70: 0.04073201185 | P70: 0.02198161502 | Q70: 0.03028961349 | R70: 0.03674304876 | S70: 0.02573323598 | T70: 0.02457550063 | U70: 0.01954668993 | V70: 0.01736375992 | W70: 0.02362221364 | X70: 0.01964042948 | Y70: 0.02310984174 | Z70: 0.01625576072 | AA70: 0.01314881978 | AB70: 0.01486797748 | AC70: 0.01434563507 | AD70: 0.01193986311 | AE70: 0.01641844569 | AF70: 0.01256392159 | AG70: 0.01280338513 | AH70: 0.01121296424 | AI70: 0.006363928195 | AJ70: 0.0079212181
C71: =IF( subgroup.idx="", "", INDEX(subgroupData.names,subgroup.idx) ) -> Building Blocks - East Midlands Trains - Local | D71: 47 | E71: 176 | F71: =IF( INDEX(attr.selection, attr.ordered), INDEX( output.array,subgroup.idx, attr.ordered), "" ) -> 0.1529505669 | G71: 0.1209211162 | H71: 0.04815843889 | I71: 0.04173960106 | J71: 0.04092770385 | K71: 0.04567131944 | L71: 0.02889886866 | M71: 0.03848896418 | N71: 0.03252594868 | O71: 0.03866695863 | P71: 0.02288145969 | Q71: 0.03248329957 | R71: 0.03364918208 | S71: 0.02776509387 | T71: 0.03092206935 | U71: 0.02382691716 | V71: 0.0219148879 | W71: 0.0249007088 | X71: 0.02398361713 | Y71: 0.02128131171 | Z71: 0.01698295205 | AA71: 0.01546889689 | AB71: 0.01680837106 | AC71: 0.01609378707 | AD71: 0.01106660307 | AE71: 0.01638122504 | AF71: 0.0150886295 | AG71: 0.01575521652 | AH71: 0.008946150133 | AI71: 0.007518036935 | AJ71: 0.007332097971
C72: =IF( subgroup.idx="", "", INDEX(subgroupData.names,subgroup.idx) ) -> Building Blocks - East Midlands Trains - London | D72: 48 | E72: 297 | F72: =IF( INDEX(attr.selection, attr.ordered), INDEX( output.array,subgroup.idx, attr.ordered), "" ) -> 0.183372243 | G72: 0.1295827762 | H72: 0.04364596678 | I72: 0.03747681205 | J72: 0.03625922298 | K72: 0.04337730535 | L72: 0.02602303521 | M72: 0.03343510378 | N72: 0.04723297094 | O72: 0.03962517458 | P72: 0.02610166968 | Q72: 0.02808377903 | R72: 0.03540481783 | S72: 0.02407077918 | T72: 0.0218778392 | U72: 0.02092520324 | V72: 0.01897295558 | W72: 0.02642715231 | X72: 0.01748863386 | Y72: 0.02362154882 | Z72: 0.01565373849 | AA72: 0.01382855218 | AB72: 0.01423727573 | AC72: 0.01368249436 | AD72: 0.01475782738 | AE72: 0.01636990164 | AF72: 0.01148993249 | AG72: 0.01163665592 | AH72: 0.009515606227 | AI72: 0.007261707196 | AJ72: 0.008561318802
C74: =IF( subgroup.idx="", "", INDEX(subgroupData.names,subgroup.idx) ) -> Building Blocks - First TransPennine Express - North | D74: 49 | E74: 238 | F74: =IF( INDEX(attr.selection, attr.ordered), INDEX( output.array,subgroup.idx, attr.ordered), "" ) -> 0.1674792316 | G74: 0.1303279194 | H74: 0.05280196607 | I74: 0.05004298241 | J74: 0.04718596721 | K74: 0.04586756977 | L74: 0.03436465288 | M74: 0.0337880027 | N74: 0.03307886332 | O74: 0.03658286893 | P74: 0.02830728807 | Q74: 0.02750708867 | R74: 0.03245911982 | S74: 0.02352218928 | T74: 0.01848203212 | U74: 0.02153156891 | V74: 0.01959879283 | W74: 0.02305931846 | X74: 0.01524480405 | Y74: 0.02494735127 | Z74: 0.01482861843 | AA74: 0.01413926092 | AB74: 0.0137943438 | AC74: 0.01326502042 | AD74: 0.01125793064 | AE74: 0.01733387403 | AF74: 0.01187284536 | AG74: 0.0120498605 | AH74: 0.009868018058 | AI74: 0.008334459635 | AJ74: 0.007076190505
C75: =IF( subgroup.idx="", "", INDEX(subgroupData.names,subgroup.idx) ) -> Building Blocks - First TransPennine Express - North West | D75: 50 | E75: 56 | F75: =IF( INDEX(attr.selection, attr.ordered), INDEX( output.array,subgroup.idx, attr.ordered), "" ) -> 0.1575781857 | G75: 0.1392946554 | H75: 0.05296723498 | I75: 0.05621009104 | J75: 0.0488119531 | K75: 0.03992416726 | L75: 0.03842586725 | M75: 0.03648644664 | N75: 0.03097336078 | O75: 0.04737418845 | P75: 0.02511229464 | Q75: 0.0275539468 | R75: 0.04217226323 | S75: 0.02365774102 | T75: 0.01717366331 | U75: 0.01879898222 | V75: 0.01680346385 | W75: 0.01968351611 | X75: 0.01433074752 | Y75: 0.02543297973 | Z75: 0.01569615621 | AA75: 0.009939349209 | AB75: 0.01323983669 | AC75: 0.01255841193 | AD75: 0.008924389879 | AE75: 0.01608932106 | AF75: 0.01009001196 | AG75: 0.01023899516 | AH75: 0.01063620198 | AI75: 0.008657017617 | AJ75: 0.005164559344
C76: =IF( subgroup.idx="", "", INDEX(subgroupData.names,subgroup.idx) ) -> Building Blocks - First TransPennine Express - South | D76: 51 | E76: 81 | F76: =IF( INDEX(attr.selection, attr.ordered), INDEX( output.array,subgroup.idx, attr.ordered), "" ) -> 0.1948865752 | G76: 0.1319940589 | H76: 0.04195293 | I76: 0.03766291443 | J76: 0.03529582596 | K76: 0.0434309649 | L76: 0.02810504967 | M76: 0.03132701805 | N76: 0.04408053241 | O76: 0.03891246044 | P76: 0.03119882955 | Q76: 0.02579195807 | R76: 0.03284581918 | S76: 0.02262685368 | T76: 0.01843563398 | U76: 0.02209044536 | V76: 0.02046247316 | W76: 0.02603381665 | X76: 0.0153339065 | Y76: 0.02654108822 | Z76: 0.01488981725 | AA76: 0.01358585501 | AB76: 0.01299475086 | AC76: 0.01251762573 | AD76: 0.01651287444 | AE76: 0.01384563579 | AF76: 0.01013750549 | AG76: 0.009876186524 | AH76: 0.008575210546 | AI76: 0.00892558288 | AJ76: 0.009129801228
C78: =IF( subgroup.idx="", "", INDEX(subgroupData.names,subgroup.idx) ) -> Building Blocks - Grand Central - London - Bradford | D78: 52 | E78: 38 | F78: =IF( INDEX(attr.selection, attr.ordered), INDEX( output.array,subgroup.idx, attr.ordered), "" ) -> 0.1617346886 | G78: 0.1454272925 | H78: 0.0320802149 | I78: 0.02892467202 | J78: 0.02518858619 | K78: 0.03210716542 | L78: 0.01905272942 | M78: 0.02911782631 | N78: 0.0652886321 | O78: 0.05412188877 | P78: 0.02272758243 | Q78: 0.0233887892 | R78: 0.0519656921 | S78: 0.02129761476 | T78: 0.02313231967 | U78: 0.01648133857 | V78: 0.01577075719 | W78: 0.02606629282 | X78: 0.01839078334 | Y78: 0.03681017692 | Z78: 0.01909243192 | AA78: 0.01201235974 | AB78: 0.01565886238 | AC78: 0.01501113988 | AD78: 0.01866643926 | AE78: 0.02353915015 | AF78: 0.0114240406 | AG78: 0.01197855716 | AH78: 0.005475168582 | AI78: 0.006232169946 | AJ78: 0.01183463718
C79: =IF( subgroup.idx="", "", INDEX(subgroupData.names,subgroup.idx) ) -> Building Blocks - Grand Central - London - Sunderland | D79: 53 | E79: 68 | F79: =IF( INDEX(attr.selection, attr.ordered), INDEX( output.array,subgroup.idx, attr.ordered), "" ) -> 0.2209222315 | G79: 0.123776285 | H79: 0.03514985234 | I79: 0.03161355488 | J79: 0.02743716931 | K79: 0.03799974444 | L79: 0.02121663441 | M79: 0.03071545772 | N79: 0.06394017459 | O79: 0.04677108687 | P79: 0.02346427517 | Q79: 0.02539138511 | R79: 0.04253889197 | S79: 0.02224080126 | T79: 0.01155530936 | U79: 0.0221382583 | V79: 0.02001141983 | W79: 0.03325006352 | X79: 0.01011522555 | Y79: 0.02772154073 | Z79: 0.01604992802 | AA79: 0.008846077772 | AB79: 0.01419987831 | AC79: 0.01384146364 | AD79: 0.0155441612 | AE79: 0.01528697625 | AF79: 0.009380857246 | AG79: 0.009240467922 | AH79: 0.005792215679 | AI79: 0.005306575661 | AJ79: 0.008542036544
C81: =IF( subgroup.idx="", "", INDEX(subgroupData.names,subgroup.idx) ) -> Building Blocks - Great Western Railway - Any London Thames Valley | D81: 54 | E81: 195 | F81: =IF( INDEX(attr.selection, attr.ordered), INDEX( output.array,subgroup.idx, attr.ordered), "" ) -> 0.1677537943 | G81: 0.1187780913 | H81: 0.059737752 | I81: 0.05490312831 | J81: 0.05304306823 | K81: 0.05356301643 | L81: 0.037416831 | M81: 0.03628230962 | N81: 0.03192475957 | O81: 0.03101588812 | P81: 0.0336154927 | Q81: 0.02975383654 | R81: 0.02645634237 | S81: 0.02572783653 | T81: 0.02057098897 | U81: 0.02126810867 | V81: 0.01934945196 | W81: 0.02061482685 | X81: 0.01691431496 | Y81: 0.0196516536 | Z81: 0.01354184618 | AA81: 0.01458002268 | AB81: 0.01267109669 | AC81: 0.01229105101 | AD81: 0.01187364635 | AE81: 0.0129709776 | AF81: 0.01054295629 | AG81: 0.01026875462 | AH81: 0.007168989063 | AI81: 0.008376500912 | AJ81: 0.00737266657
C82: =IF( subgroup.idx="", "", INDEX(subgroupData.names,subgroup.idx) ) -> Building Blocks - Great Western Railway - Any West | D82: 55 | E82: 349 | F82: =IF( INDEX(attr.selection, attr.ordered), INDEX( output.array,subgroup.idx, attr.ordered), "" ) -> 0.1518861868 | G82: 0.1392751546 | H82: 0.05021185438 | I82: 0.04537179088 | J82: 0.04408609536 | K82: 0.04785833194 | L82: 0.03144130694 | M82: 0.03439434736 | N82: 0.04441226549 | O82: 0.03387845048 | P82: 0.03195969879 | Q82: 0.02888793837 | R82: 0.03006849225 | S82: 0.02451218836 | T82: 0.01816123141 | U82: 0.02415004019 | V82: 0.02289656449 | W82: 0.02299977777 | X82: 0.01489562962 | Y82: 0.02451972121 | Z82: 0.0142965957 | AA82: 0.01591490428 | AB82: 0.01326544789 | AC82: 0.01276779881 | AD82: 0.01436993715 | AE82: 0.01670997647 | AF82: 0.01109174553 | AG82: 0.01092170234 | AH82: 0.008905873126 | AI82: 0.007659435468 | AJ82: 0.008229516516
C83: =IF( subgroup.idx="", "", INDEX(subgroupData.names,subgroup.idx) ) -> Building Blocks - Great Western Railway - Any Long Distance | D83: 56 | E83: 608 | F83: =IF( INDEX(attr.selection, attr.ordered), INDEX( output.array,subgroup.idx, attr.ordered), "" ) -> 0.1870470853 | G83: 0.1389451087 | H83: 0.0501475975 | I83: 0.04633719836 | J83: 0.04317316118 | K83: 0.04694370284 | L83: 0.03102572233 | M83: 0.0326241835 | N83: 0.0431129184 | O83: 0.03549103264 | P83: 0.03140121999 | Q83: 0.02670064135 | R83: 0.03114029976 | S83: 0.02286791307 | T83: 0.01726290092 | U83: 0.0202685172 | V83: 0.01810406813 | W83: 0.02258278675 | X83: 0.01392322487 | Y83: 0.02363276104 | Z83: 0.01357924312 | AA83: 0.01335705084 | AB83: 0.01180563285 | AC83: 0.01138658983 | AD83: 0.01273443962 | AE83: 0.01433555229 | AF83: 0.009136173666 | AG83: 0.009136476307 | AH83: 0.007757022501 | AI83: 0.006583311811 | AJ83: 0.007456463275
C84: =IF( subgroup.idx="", "", INDEX(subgroupData.names,subgroup.idx) ) -> Building Blocks - Great Western Railway - London Thames Valley & Long Distance | D84: 57 | E84: 128 | F84: =IF( INDEX(attr.selection, attr.ordered), INDEX( output.array,subgroup.idx, attr.ordered), "" ) -> 0.1820134831 | G84: 0.139503139 | H84: 0.06126536869 | I84: 0.0586205393 | J84: 0.0546654899 | K84: 0.05259272937 | L84: 0.03846060806 | M84: 0.03436315857 | N84: 0.01726380662 | O84: 0.03108833309 | P84: 0.03433249555 | Q84: 0.02761161336 | R84: 0.02617941763 | S84: 0.02367566928 | T84: 0.02040166411 | U84: 0.01920871175 | V84: 0.01652676052 | W84: 0.0197124243 | X84: 0.01620804389 | Y84: 0.02099484238 | Z84: 0.0125179348 | AA84: 0.0143484328 | AB84: 0.0112548804 | AC84: 0.01088157241 | AD84: 0.006464579119 | AE84: 0.01258133638 | AF84: 0.009055542146 | AG84: 0.008948636124 | AH84: 0.006228399208 | AI84: 0.007681555317 | AJ84: 0.005348832819
C85: =IF( subgroup.idx="", "", INDEX(subgroupData.names,subgroup.idx) ) -> Building Blocks - Great Western Railway - London Thames Valley only | D85: 58 | E85: 67 | F85: =IF( INDEX(attr.selection, attr.ordered), INDEX( output.array,subgroup.idx, attr.ordered), "" ) -> 0.1498447564 | G85: 0.09274907565 | H85: 0.05781918662 | I85: 0.05023435503 | J85: 0.05100543532 | K85: 0.05478162 | L85: 0.03610592982 | M85: 0.03869261109 | N85: 0.05033775336 | O85: 0.030924903 | P85: 0.032714994 | Q85: 0.03244429889 | R85: 0.02680413789 | S85: 0.02830519577 | T85: 0.02078364757 | U85: 0.02385454782 | V85: 0.02289452848 | W85: 0.02174817287 | X85: 0.01780133539 | Y85: 0.01796471507 | Z85: 0.01482779764 | AA85: 0.01487088119 | AB85: 0.01444975199 | AC85: 0.0140612443 | AD85: 0.01866700567 | AE85: 0.01346033605 | AF85: 0.01241103046 | AG85: 0.01192671871 | AH85: 0.008350295298 | AI85: 0.009249297445 | AJ85: 0.009914441199
C86: =IF( subgroup.idx="", "", INDEX(subgroupData.names,subgroup.idx) ) -> Building Blocks - Great Western Railway - Long Distance & West | D86: 59 | E86: 262 | F86: =IF( INDEX(attr.selection, attr.ordered), INDEX( output.array,subgroup.idx, attr.ordered), "" ) -> 0.1542110724 | G86: 0.1461971952 | H86: 0.04642385594 | I86: 0.0396490489 | J86: 0.0394387242 | K86: 0.04597088313 | L86: 0.02758586928 | M86: 0.03314669312 | N86: 0.05812014166 | O86: 0.03543431951 | P86: 0.02873493867 | Q86: 0.02789878741 | R86: 0.03110365263 | S86: 0.02384698009 | T86: 0.01900415966 | U86: 0.02201031402 | V86: 0.020631285 | W86: 0.0223431237 | X86: 0.01530811399 | Y86: 0.02558640241 | Z86: 0.01451821528 | AA86: 0.01620724344 | AB86: 0.01302799811 | AC86: 0.01256861073 | AD86: 0.0187852863 | AE86: 0.01573426332 | AF86: 0.01047984886 | AG86: 0.01048345519 | AH86: 0.008764949447 | AI86: 0.007208796518 | AJ86: 0.009575771849
C87: =IF( subgroup.idx="", "", INDEX(subgroupData.names,subgroup.idx) ) -> Building Blocks - Great Western Railway - Long Distance only | D87: 60 | E87: 218 | F87: =IF( INDEX(attr.selection, attr.ordered), INDEX( output.array,subgroup.idx, attr.ordered), "" ) -> 0.225984303 | G87: 0.1307477091 | H87: 0.04607280715 | I87: 0.04460088333 | J87: 0.03883778936 | K87: 0.04388558349 | L87: 0.02932110141 | M87: 0.03079960278 | N87: 0.04576472929 | O87: 0.03875002652 | P87: 0.03213678766 | Q87: 0.02475156799 | R87: 0.03478318943 | S87: 0.02122920517 | T87: 0.01311204069 | U87: 0.0191668591 | V87: 0.01653441623 | W87: 0.02492528465 | X87: 0.01077556128 | Y87: 0.02344980402 | Z87: 0.01334127722 | AA87: 0.009574516027 | AB87: 0.01089231276 | AC87: 0.01048339675 | AD87: 0.01078740273 | AE87: 0.01410693493 | AF87: 0.007751022158 | AG87: 0.007825649967 | AH87: 0.007784418557 | AI87: 0.005113507052 | AJ87: 0.006710310198
C88: =IF( subgroup.idx="", "", INDEX(subgroupData.names,subgroup.idx) ) -> Building Blocks - Great Western Railway - West only | D88: 61 | E88: 87 | F88: =IF( INDEX(attr.selection, attr.ordered), INDEX( output.array,subgroup.idx, attr.ordered), "" ) -> 0.1480791388 | G88: 0.127940171 | H88: 0.05641477963 | I88: 0.05474289843 | J88: 0.05169626109 | K88: 0.05094906812 | L88: 0.03775466529 | M88: 0.03643740682 | N88: 0.02196533671 | O88: 0.031330683 | P88: 0.03724030972 | Q88: 0.03050769339 | R88: 0.02837339585 | S88: 0.02560148057 | T88: 0.01678091909 | U88: 0.02765388575 | V88: 0.02660600619 | W88: 0.0240750623 | X88: 0.01422017799 | Y88: 0.02277300884 | Z88: 0.01393368909 | AA88: 0.0154361929 | AB88: 0.01365427677 | AC88: 0.01309397338 | AD88: 0.007139712238 | AE88: 0.01830772679 | AF88: 0.01209373888 | AG88: 0.01163934104 | AH88: 0.009136638544 | AI88: 0.008397366004 | AJ88: 0.006024995756
C90: =IF( subgroup.idx="", "", INDEX(subgroupData.names,subgroup.idx) ) -> Building Blocks - London Midland - London Commuter | D90: 62 | E90: 114 | F90: =IF( INDEX(attr.selection, attr.ordered), INDEX( output.array,subgroup.idx, attr.ordered), "" ) -> 0.1951495951 | G90: 0.1422850894 | H90: 0.04981067375 | I90: 0.04582946309 | J90: 0.0438334229 | K90: 0.04895416121 | L90: 0.031425543 | M90: 0.0308963111 | N90: 0.03784501396 | O90: 0.03370259237 | P90: 0.03496385329 | Q90: 0.02552781834 | R90: 0.0284738452 | S90: 0.02157402922 | T90: 0.01671804599 | U90: 0.02009778284 | V90: 0.01744948901 | W90: 0.02245398711 | X90: 0.01356821393 | Y90: 0.02346287486 | Z90: 0.01267862541 | AA90: 0.0118903624 | AB90: 0.0115000498 | AC90: 0.01107598679 | AD90: 0.01245372194 | AE90: 0.01292121452 | AF90: 0.009766058738 | AG90: 0.00980415312 | AH90: 0.01085863973 | AI90: 0.006116824825 | AJ90: 0.006912557085
C91: =IF( subgroup.idx="", "", INDEX(subgroupData.names,subgroup.idx) ) -> Building Blocks - London Midland - West Coast | D91: 63 | E91: 162 | F91: =IF( INDEX(attr.selection, attr.ordered), INDEX( output.array,subgroup.idx, attr.ordered), "" ) -> 0.172098212 | G91: 0.1354299873 | H91: 0.04444685575 | I91: 0.04187378893 | J91: 0.03824896704 | K91: 0.04467650416 | L91: 0.02902769446 | M91: 0.03214079753 | N91: 0.04372083608 | O91: 0.03619961662 | P91: 0.03060829953 | Q91: 0.02694301155 | R91: 0.03317115835 | S91: 0.02302407771 | T91: 0.01659100062 | U91: 0.0237734991 | V91: 0.02272920205 | W91: 0.02483005047 | X91: 0.014215708 | Y91: 0.02678397058 | Z91: 0.01456665864 | AA91: 0.01243688876 | AB91: 0.01315942869 | AC91: 0.01286055605 | AD91: 0.01557534585 | AE91: 0.01771921816 | AF91: 0.01131577752 | AG91: 0.01084377363 | AH91: 0.01489272096 | AI91: 0.007037263889 | AJ91: 0.009059130013
C92: =IF( subgroup.idx="", "", INDEX(subgroupData.names,subgroup.idx) ) -> Building Blocks - London Midland - West Midlands | D92: 64 | E92: 283 | F92: =IF( INDEX(attr.selection, attr.ordered), INDEX( output.array,subgroup.idx, attr.ordered), "" ) -> 0.1483462791 | G92: 0.1389082113 | H92: 0.05192181122 | I92: 0.04448121515 | J92: 0.04499497334 | K92: 0.0493095894 | L92: 0.03103585471 | M92: 0.03822462609 | N92: 0.03409159861 | O92: 0.03547121771 | P92: 0.02637965965 | Q92: 0.03232931563 | R92: 0.02967581343 | S92: 0.02757496473 | T92: 0.0260475584 | U92: 0.02287058226 | V92: 0.02159850058 | W92: 0.02090668725 | X92: 0.02065577001 | Y92: 0.0226125257 | Z92: 0.01489964791 | AA92: 0.01617155806 | AB92: 0.0144784387 | AC92: 0.01403174638 | AD92: 0.01235356826 | AE92: 0.01373663304 | AF92: 0.01269070278 | AG92: 0.01262044311 | AH92: 0.00766637482 | AI92: 0.006947247191 | AJ92: 0.006966885469
C94: =IF( subgroup.idx="", "", INDEX(subgroupData.names,subgroup.idx) ) -> Building Blocks - London Overground - Gospel Oak - Barking | D94: 65 | E94: 11 | F94: =IF( INDEX(attr.selection, attr.ordered), INDEX( output.array,subgroup.idx, attr.ordered), "" ) -> 0.1220503322 | G94: 0.05168854332 | H94: 0.05180131976 | I94: 0.04831307077 | J94: 0.0458282614 | K94: 0.05148659843 | L94: 0.03879832841 | M94: 0.04668946983 | N94: 0.0129442408 | O94: 0.02969771187 | P94: 0.04565100235 | Q94: 0.03958554839 | R94: 0.02845378194 | S94: 0.03469877033 | T94: 0.02449820128 | U94: 0.04312001261 | V94: 0.0489989169 | W94: 0.02555121782 | X94: 0.02264479944 | Y94: 0.01626873514 | Z94: 0.01866751872 | AA94: 0.01550319074 | AB94: 0.01983985187 | AC94: 0.01954620694 | AD94: 0.008814473426 | AE94: 0.01751218314 | AF94: 0.018884892 | AG94: 0.01731139128 | AH94: 0.01332495079 | AI94: 0.01328834713 | AJ94: 0.008538130967
C95: =IF( subgroup.idx="", "", INDEX(subgroupData.names,subgroup.idx) ) -> Building Blocks - London Overground - Highbury & Islington - Croydon | D95: 66 | E95: 50 | F95: =IF( INDEX(attr.selection, attr.ordered), INDEX( output.array,subgroup.idx, attr.ordered), "" ) -> 0.1346713307 | G95: 0.06310761384 | H95: 0.0618201985 | I95: 0.05221667194 | J95: 0.05602694 | K95: 0.05842233569 | L95: 0.03766290378 | M95: 0.04298905448 | N95: 0.02559068922 | O95: 0.02828823637 | P95: 0.03163672801 | Q95: 0.03731431231 | R95: 0.02477182107 | S95: 0.03154331014 | T95: 0.03648814543 | U95: 0.0339219865 | V95: 0.03561072415 | W95: 0.01958710162 | X95: 0.02911385789 | Y95: 0.01553827054 | Z95: 0.01532731963 | AA95: 0.01487584649 | AB95: 0.01593496171 | AC95: 0.01554295847 | AD95: 0.01074567897 | AE95: 0.01251911551 | AF95: 0.01630920077 | AG95: 0.01596344682 | AH95: 0.01098399317 | AI95: 0.007828717095 | AJ95: 0.007646529181
C96: =IF( subgroup.idx="", "", INDEX(subgroupData.names,subgroup.idx) ) -> Building Blocks - London Overground - Richmond/Clapham Junction - Stratford | D96: 67 | E96: 70 | F96: =IF( INDEX(attr.selection, attr.ordered), INDEX( output.array,subgroup.idx, attr.ordered), "" ) -> 0.1139581399 | G96: 0.07573782377 | H96: 0.06004501729 | I96: 0.04891618313 | J96: 0.05354853069 | K96: 0.05841543824 | L96: 0.03766508322 | M96: 0.04304563851 | N96: 0.02797073976 | O96: 0.02732035304 | P96: 0.03457615293 | Q96: 0.03708306359 | R96: 0.02214316789 | S96: 0.03192365654 | T96: 0.04793676546 | U96: 0.02957693307 | V96: 0.02904328376 | W96: 0.01706793573 | X96: 0.03749177219 | Y96: 0.01707979812 | Z96: 0.01496387488 | AA96: 0.01845573086 | AB96: 0.01578527643 | AC96: 0.01533118813 | AD96: 0.01082805799 | AE96: 0.01183274593 | AF96: 0.01721563492 | AG96: 0.01672690366 | AH96: 0.01120546574 | AI96: 0.01032259372 | AJ96: 0.006787050891
C97: =IF( subgroup.idx="", "", INDEX(subgroupData.names,subgroup.idx) ) -> Building Blocks - London Overground - Watford - Euston | D97: 68 | E97: 41 | F97: =IF( INDEX(attr.selection, attr.ordered), INDEX( output.array,subgroup.idx, attr.ordered), "" ) -> 0.1340900862 | G97: 0.06689332313 | H97: 0.06347056066 | I97: 0.05840974001 | J97: 0.06059435595 | K97: 0.0549282476 | L97: 0.04301276425 | M97: 0.04158444588 | N97: 0.009264567952 | O97: 0.02639596715 | P97: 0.02307885955 | Q97: 0.03446929304 | R97: 0.02155334845 | S97: 0.02866685241 | T97: 0.05645997172 | U97: 0.03120597186 | V97: 0.03010281449 | W97: 0.02010951639 | X97: 0.04167554249 | Y97: 0.01237437666 | Z97: 0.01406966526 | AA97: 0.01250977073 | AB97: 0.01580411958 | AC97: 0.01527433776 | AD97: 0.003946467192 | AE97: 0.01019358634 | AF97: 0.0193792743 | AG97: 0.01932060732 | AH97: 0.0194227569 | AI97: 0.008290681294 | AJ97: 0.003448127483
C98: =IF( subgroup.idx="", "", INDEX(subgroupData.names,subgroup.idx) ) -> Building Blocks - London Overground - West Anglia | D98: 69 | E98: 65 | F98: =IF( INDEX(attr.selection, attr.ordered), INDEX( output.array,subgroup.idx, attr.ordered), "" ) -> 0.1112163137 | G98: 0.1004306246 | H98: 0.07218492985 | I98: 0.06251822729 | J98: 0.06687056984 | K98: 0.06187586266 | L98: 0.04310564115 | M98: 0.04408198084 | N98: 0.01733625084 | O98: 0.0291913458 | P98: 0.02870791523 | Q98: 0.03805460475 | R98: 0.02485920443 | S98: 0.03194925612 | T98: 0.03015331602 | U98: 0.02473249827 | V98: 0.02398121304 | W98: 0.01303724302 | X98: 0.02401930789 | Y98: 0.01539053819 | Z98: 0.01440917013 | AA98: 0.01893504739 | AB98: 0.01424446867 | AC98: 0.01409796029 | AD98: 0.006197746416 | AE98: 0.01056120254 | AF98: 0.01462912736 | AG98: 0.01406939835 | AH98: 0.01671504513 | AI98: 0.007561400089 | AJ98: 0.004882590081
C100: =IF( subgroup.idx="", "", INDEX(subgroupData.names,subgroup.idx) ) -> Building Blocks - Merseyrail - Northern | D100: 70 | E100: 137 | F100: =IF( INDEX(attr.selection, attr.ordered), INDEX( output.array,subgroup.idx, attr.ordered), "" ) -> 0.1204713122 | G100: 0.09951613972 | H100: 0.04093399021 | I100: 0.03490280544 | J100: 0.03507982507 | K100: 0.0426493115 | L100: 0.02615490104 | M100: 0.0389454994 | N100: 0.04174578074 | O100: 0.04106114127 | P100: 0.02086338977 | Q100: 0.03331545145 | R100: 0.03392729053 | S100: 0.02902204714 | T100: 0.05076771477 | U100: 0.02867529334 | V100: 0.03091783119 | W100: 0.02143777449 | X100: 0.03774614112 | Y100: 0.01990536204 | Z100: 0.01906527958 | AA100: 0.01400965124 | AB100: 0.02021436371 | AC100: 0.01954514593 | AD100: 0.01501101262 | AE100: 0.0131046913 | AF100: 0.02048276968 | AG100: 0.02117136985 | AH100: 0.01529257883 | AI100: 0.006574718483 | AJ100: 0.007489416373
C101: =IF( subgroup.idx="", "", INDEX(subgroupData.names,subgroup.idx) ) -> Building Blocks - Merseyrail - Wirral | D101: 71 | E101: 123 | F101: =IF( INDEX(attr.selection, attr.ordered), INDEX( output.array,subgroup.idx, attr.ordered), "" ) -> 0.167845628 | G101: 0.092925036 | H101: 0.0433157652 | I101: 0.0378602722 | J101: 0.03739531832 | K101: 0.0432014452 | L101: 0.02848964601 | M101: 0.03980625628 | N101: 0.03220133338 | O101: 0.03881599994 | P101: 0.02031409734 | Q101: 0.03336704911 | R101: 0.03360585332 | S101: 0.02861068681 | T101: 0.03933166418 | U101: 0.03131509891 | V101: 0.03073569914 | W101: 0.03036566244 | X101: 0.02942709039 | Y101: 0.01458905911 | Z101: 0.01733570516 | AA101: 0.009917291804 | AB101: 0.01862984355 | AC101: 0.01793848691 | AD101: 0.009002164498 | AE101: 0.01478897361 | AF101: 0.01801078284 | AG101: 0.01856615825 | AH101: 0.01062558674 | AI101: 0.006435987612 | AJ101: 0.005230357775
C103: =IF( subgroup.idx="", "", INDEX(subgroupData.names,subgroup.idx) ) -> Building Blocks - Northern - Central | D103: 72 | E103: 240 | F103: =IF( INDEX(attr.selection, attr.ordered), INDEX( output.array,subgroup.idx, attr.ordered), "" ) -> 0.1586885629 | G103: 0.137120616 | H103: 0.04544503334 | I103: 0.03972398345 | J103: 0.03872154954 | K103: 0.04579179044 | L103: 0.02815210776 | M103: 0.03466264732 | N103: 0.0280640324 | O103: 0.0385946119 | P103: 0.02629324858 | Q103: 0.02918356992 | R103: 0.03154110615 | S103: 0.02509978729 | T103: 0.0344298251 | U103: 0.02218808478 | V103: 0.02065452091 | W103: 0.02198509502 | X103: 0.02538754291 | Y103: 0.0244149575 | Z103: 0.01617411595 | AA103: 0.0143011747 | AB103: 0.01570796192 | AC103: 0.01511306032 | AD103: 0.01202689948 | AE103: 0.01416135242 | AF103: 0.01446281912 | AG103: 0.01503675668 | AH103: 0.01233615247 | AI103: 0.006978873858 | AJ103: 0.007558159841
C104: =IF( subgroup.idx="", "", INDEX(subgroupData.names,subgroup.idx) ) -> Building Blocks - Northern - East | D104: 73 | E104: 280 | F104: =IF( INDEX(attr.selection, attr.ordered), INDEX( output.array,subgroup.idx, attr.ordered), "" ) -> 0.1624192037 | G104: 0.1272690703 | H104: 0.04842437999 | I104: 0.04285704878 | J104: 0.04180237007 | K104: 0.0465629555 | L104: 0.03000576466 | M104: 0.03682291432 | N104: 0.0338987477 | O104: 0.03710379186 | P104: 0.02545792747 | Q104: 0.03105204628 | R104: 0.03151076532 | S104: 0.02674662486 | T104: 0.02359524311 | U104: 0.02256100028 | V104: 0.02061295037 | W104: 0.02344277317 | X104: 0.01918782169 | Y104: 0.0250847243 | Z104: 0.01605116596 | AA104: 0.01574389728 | AB104: 0.01536704914 | AC104: 0.01486188629 | AD104: 0.01308726498 | AE104: 0.01479791391 | AF104: 0.01324943486 | AG104: 0.0131579083 | AH104: 0.01081593721 | AI104: 0.00802952869 | AJ104: 0.008419889672
C105: =IF( subgroup.idx="", "", INDEX(subgroupData.names,subgroup.idx) ) -> Building Blocks - Northern - North East | D105: 74 | E105: 64 | F105: =IF( INDEX(attr.selection, attr.ordered), INDEX( output.array,subgroup.idx, attr.ordered), "" ) -> 0.1855245725 | G105: 0.0932674822 | H105: 0.04226009499 | I105: 0.03691598801 | J105: 0.03576049008 | K105: 0.04156757649 | L105: 0.02855136007 | M105: 0.0353034611 | N105: 0.02532422788 | O105: 0.03628422953 | P105: 0.02889964812 | Q105: 0.02990375777 | R105: 0.03231369608 | S105: 0.02620166021 | T105: 0.03287897794 | U105: 0.02527239903 | V105: 0.02370324373 | W105: 0.03033484325 | X105: 0.025667982 | Y105: 0.02132580063 | Z105: 0.01767184855 | AA105: 0.01454433233 | AB105: 0.0175625704 | AC105: 0.01691457569 | AD105: 0.01281620608 | AE105: 0.01765891628 | AF105: 0.01602766178 | AG105: 0.01617550459 | AH105: 0.0121819994 | AI105: 0.01135371521 | AJ105: 0.009831178067
C106: =IF( subgroup.idx="", "", INDEX(subgroupData.names,subgroup.idx) ) -> Building Blocks - Northern - West | D106: 75 | E106: 172 | F106: =IF( INDEX(attr.selection, attr.ordered), INDEX( output.array,subgroup.idx, attr.ordered), "" ) -> 0.138340138 | G106: 0.1212057977 | H106: 0.04940471436 | I106: 0.0462895786 | J106: 0.04425661763 | K106: 0.04711219915 | L106: 0.03267816759 | M106: 0.03558144469 | N106: 0.03219938948 | O106: 0.03727878333 | P106: 0.02758889714 | Q106: 0.02977050491 | R106: 0.03081312127 | S106: 0.02568955928 | T106: 0.03457630685 | U106: 0.02450261596 | V106: 0.02396973354 | W106: 0.0189549688 | X106: 0.02572580088 | Y106: 0.02286570457 | Z106: 0.01644648128 | AA106: 0.01435261461 | AB106: 0.01606913786 | AC106: 0.01549313352 | AD106: 0.01503697773 | AE106: 0.01367950051 | AF106: 0.01509589806 | AG106: 0.01553233344 | AH106: 0.01270586769 | AI106: 0.007727545464 | AJ106: 0.009056466075
C108: =IF( subgroup.idx="", "", INDEX(subgroupData.names,subgroup.idx) ) -> Building Blocks - ScotRail - Interurban | D108: 76 | E108: 364 | F108: =IF( INDEX(attr.selection, attr.ordered), INDEX( output.array,subgroup.idx, attr.ordered), "" ) -> 0.1711565764 | G108: 0.1207973408 | H108: 0.04556890255 | I108: 0.04160815603 | J108: 0.03958182991 | K108: 0.04425281641 | L108: 0.02966596485 | M108: 0.03217206277 | N108: 0.04908471706 | O108: 0.03926612339 | P108: 0.03392060594 | Q108: 0.02686945073 | R108: 0.03597229441 | S108: 0.02348509651 | T108: 0.01944760673 | U108: 0.02297644863 | V108: 0.02167800251 | W108: 0.02569562601 | X108: 0.01613323676 | Y108: 0.02418141717 | Z108: 0.01547554685 | AA108: 0.01236248849 | AB108: 0.01400118431 | AC108: 0.01354286452 | AD108: 0.01611898888 | AE108: 0.01657726913 | AF108: 0.01122527114 | AG108: 0.0111163474 | AH108: 0.009058748882 | AI108: 0.007999409896 | AJ108: 0.009007604885
C109: =IF( subgroup.idx="", "", INDEX(subgroupData.names,subgroup.idx) ) -> Building Blocks - ScotRail - Rural | D109: 77 | E109: 85 | F109: =IF( INDEX(attr.selection, attr.ordered), INDEX( output.array,subgroup.idx, attr.ordered), "" ) -> 0.1746222355 | G109: 0.1075022326 | H109: 0.04260102907 | I109: 0.03749891042 | J109: 0.03720485514 | K109: 0.04212012099 | L109: 0.02728856792 | M109: 0.02949114538 | N109: 0.08575590188 | O109: 0.03766265784 | P109: 0.02730062322 | Q109: 0.02525136756 | R109: 0.03683793813 | S109: 0.02156901981 | T109: 0.01858095181 | U109: 0.02190728958 | V109: 0.02051602952 | W109: 0.02381001136 | X109: 0.0153651212 | Y109: 0.02405695565 | Z109: 0.01476736529 | AA109: 0.01100908483 | AB109: 0.01322099377 | AC109: 0.01287852566 | AD109: 0.02323057849 | AE109: 0.01537884792 | AF109: 0.0109843281 | AG109: 0.01082388859 | AH109: 0.01290161114 | AI109: 0.006947247717 | AJ109: 0.01091456395
C110: =IF( subgroup.idx="", "", INDEX(subgroupData.names,subgroup.idx) ) -> Building Blocks - ScotRail - Strathclyde | D110: 78 | E110: 524 | F110: =IF( INDEX(attr.selection, attr.ordered), INDEX( output.array,subgroup.idx, attr.ordered), "" ) -> 0.1781344019 | G110: 0.117076241 | H110: 0.05983164726 | I110: 0.05752552912 | J110: 0.05465233381 | K110: 0.05086508482 | L110: 0.03850716576 | M110: 0.03588560456 | N110: 0.02429729352 | O110: 0.03316365127 | P110: 0.02686170851 | Q110: 0.02932874621 | R110: 0.02828329625 | S110: 0.02478801528 | T110: 0.02471295537 | U110: 0.02163026638 | V110: 0.01939083946 | W110: 0.02154740019 | X110: 0.01890668185 | Y110: 0.01919266287 | Z110: 0.01337846681 | AA110: 0.01265283841 | AB110: 0.01253896237 | AC110: 0.0121324993 | AD110: 0.008236950476 | AE110: 0.0122938342 | AF110: 0.01090176185 | AG110: 0.01092663725 | AH110: 0.01041473504 | AI110: 0.006399565968 | AJ110: 0.005542222952
C111: =IF( subgroup.idx="", "", INDEX(subgroupData.names,subgroup.idx) ) -> Building Blocks - ScotRail - Urban | D111: 79 | E111: 316 | F111: =IF( INDEX(attr.selection, attr.ordered), INDEX( output.array,subgroup.idx, attr.ordered), "" ) -> 0.1774398555 | G111: 0.142153451 | H111: 0.05401527569 | I111: 0.04974032152 | J111: 0.04741698871 | K111: 0.04981474563 | L111: 0.03305296037 | M111: 0.03218804374 | N111: 0.02795104179 | O111: 0.03591550609 | P111: 0.03177141191 | Q111: 0.02630520888 | R111: 0.03160329187 | S111: 0.02236534565 | T111: 0.01904908297 | U111: 0.02091044507 | V111: 0.01838562102 | W111: 0.02228407002 | X111: 0.01531089908 | Y111: 0.02439954263 | Z111: 0.01370368916 | AA111: 0.01379045256 | AB111: 0.01217429169 | AC111: 0.01169227287 | AD111: 0.009756446095 | AE111: 0.01541397945 | AF111: 0.009803594231 | AG111: 0.009814649428 | AH111: 0.008961917669 | AI111: 0.006802216821 | AJ111: 0.006013380912
C113: =IF( subgroup.idx="", "", INDEX(subgroupData.names,subgroup.idx) ) -> Building Blocks - Southeastern - High-Speed | D113: 80 | E113: 135 | F113: =IF( INDEX(attr.selection, attr.ordered), INDEX( output.array,subgroup.idx, attr.ordered), "" ) -> 0.1568106449 | G113: 0.1075875023 | H113: 0.05298627732 | I113: 0.04926824936 | J113: 0.04761906473 | K113: 0.04418121115 | L113: 0.03306118899 | M113: 0.03552345469 | N113: 0.07505258107 | O113: 0.03429513252 | P113: 0.02345597347 | Q113: 0.02866710481 | R113: 0.02798226525 | S113: 0.02479465566 | T113: 0.0256937265 | U113: 0.01758147571 | V113: 0.01563173831 | W113: 0.02177986195 | X113: 0.02050426701 | Y113: 0.0195404772 | Z113: 0.0143332372 | AA113: 0.01227419221 | AB113: 0.01447650052 | AC113: 0.01394847461 | AD113: 0.02195811945 | AE113: 0.01106329181 | AF113: 0.01286807608 | AG113: 0.01293474615 | AH113: 0.007632610163 | AI113: 0.00707268728 | AJ113: 0.009421211615
C114: =IF( subgroup.idx="", "", INDEX(subgroupData.names,subgroup.idx) ) -> Building Blocks - Southeastern - Mainline | D114: 81 | E114: 205 | F114: =IF( INDEX(attr.selection, attr.ordered), INDEX( output.array,subgroup.idx, attr.ordered), "" ) -> 0.1742824588 | G114: 0.09964018069 | H114: 0.06142223607 | I114: 0.05842533395 | J114: 0.05591443244 | K114: 0.05302007668 | L114: 0.03930647906 | M114: 0.03795028839 | N114: 0.03518370289 | O114: 0.03031184303 | P114: 0.03112225113 | Q114: 0.03060612159 | R114: 0.02453237587 | S114: 0.02634151339 | T114: 0.02520213951 | U114: 0.02122298519 | V114: 0.01957091167 | W114: 0.02079035839 | X114: 0.02004285099 | Y114: 0.01508279408 | Z114: 0.01356982807 | AA114: 0.01219875748 | AB114: 0.01378826258 | AC114: 0.01340992861 | AD114: 0.0114744058 | AE114: 0.009432094155 | AF114: 0.01251731472 | AG114: 0.01234470557 | AH114: 0.008097060497 | AI114: 0.006857214198 | AJ114: 0.006339094483
C115: =IF( subgroup.idx="", "", INDEX(subgroupData.names,subgroup.idx) ) -> Building Blocks - Southeastern - Metro | D115: 82 | E115: 251 | F115: =IF( INDEX(attr.selection, attr.ordered), INDEX( output.array,subgroup.idx, attr.ordered), "" ) -> 0.1488485143 | G115: 0.1081130861 | H115: 0.07167025771 | I115: 0.06711301028 | J115: 0.06664969752 | K115: 0.06079837887 | L115: 0.04443268123 | M115: 0.03916064642 | N115: 0.02078009795 | O115: 0.02773129534 | P115: 0.03288762345 | Q115: 0.03212431054 | R115: 0.02164952164 | S115: 0.02718130856 | T115: 0.02266992183 | U115: 0.02120232072 | V115: 0.01899538666 | W115: 0.01585933831 | X115: 0.01823945877 | Y115: 0.01651743123 | Z115: 0.01274741759 | AA115: 0.01489313246 | AB115: 0.01250425996 | AC115: 0.01218464515 | AD115: 0.008004769585 | AE115: 0.009656313046 | AF115: 0.01170322323 | AG115: 0.01133544543 | AH115: 0.01204038445 | AI115: 0.006837892638 | AJ115: 0.00546822908
C117: =IF( subgroup.idx="", "", INDEX(subgroupData.names,subgroup.idx) ) -> Building Blocks - Southern - Metro | D117: 83 | E117: 151 | F117: =IF( INDEX(attr.selection, attr.ordered), INDEX( output.array,subgroup.idx, attr.ordered), "" ) -> 0.1235812365 | G117: 0.07910959821 | H117: 0.08231393676 | I117: 0.07931506382 | J117: 0.08082166832 | K117: 0.06256665661 | L117: 0.05418018668 | M117: 0.04277126285 | N117: 0.01223192205 | O117: 0.02300931605 | P117: 0.03454438306 | Q117: 0.03523360915 | R117: 0.01853989395 | S117: 0.03009268031 | T117: 0.02314472569 | U117: 0.02540577044 | V117: 0.02415827803 | W117: 0.01509657016 | X117: 0.01946881344 | Y117: 0.01384892882 | Z117: 0.01246372883 | AA117: 0.01606224877 | AB117: 0.01278389796 | AC117: 0.01252285115 | AD117: 0.008142831667 | AE117: 0.01045567644 | AF117: 0.01222063213 | AG117: 0.01143098143 | AH117: 0.008285068992 | AI117: 0.01009728222 | AJ117: 0.006100299452
C118: =IF( subgroup.idx="", "", INDEX(subgroupData.names,subgroup.idx) ) -> Building Blocks - Southern - Sussex Coast | D118: 84 | E118: 306 | F118: =IF( INDEX(attr.selection, attr.ordered), INDEX( output.array,subgroup.idx, attr.ordered), "" ) -> 0.1557225037 | G118: 0.08991476562 | H118: 0.08304182756 | I118: 0.08767146608 | J118: 0.08179431427 | K118: 0.05923825989 | L118: 0.05688231444 | M118: 0.04003209965 | N118: 0.01781783103 | O118: 0.02248291032 | P118: 0.02965625784 | Q118: 0.03214681268 | R118: 0.01805229445 | S118: 0.02681298244 | T118: 0.01768600088 | U118: 0.02172064905 | V118: 0.01880519768 | W118: 0.01600872539 | X118: 0.0147960395 | Y118: 0.01262462424 | Z118: 0.01025184023 | AA118: 0.01342215946 | AB118: 0.009987322409 | AC118: 0.00972712773 | AD118: 0.007350873868 | AE118: 0.008880574985 | AF118: 0.008848509192 | AG118: 0.008266199839 | AH118: 0.006825463607 | AI118: 0.008294735841 | AJ118: 0.005237316144
C120: =IF( subgroup.idx="", "", INDEX(subgroupData.names,subgroup.idx) ) -> Building Blocks - South West Trains - Island Line | D120: 85 | E120: 4 | F120: =IF( INDEX(attr.selection, attr.ordered), INDEX( output.array,subgroup.idx, attr.ordered), "" ) -> 0.3201068419 | G120: 0.1902688136 | H120: 0.02895944094 | I120: 0.02330167803 | J120: 0.02283959115 | K120: 0.03424889285 | L120: 0.01832359407 | M120: 0.02487515599 | N120: 0.01955931965 | O120: 0.03400663825 | P120: 0.0150751246 | Q120: 0.02054698892 | R120: 0.03512301432 | S120: 0.01748600471 | T120: 0.008282313037 | U120: 0.01980314015 | V120: 0.01584401009 | W120: 0.03490791317 | X120: 0.007342857441 | Y120: 0.02335754805 | Z120: 0.01051150536 | AA120: 0.007951868222 | AB120: 0.008614070176 | AC120: 0.008062963096 | AD120: 0.00371334612 | AE120: 0.02387644432 | AF120: 0.006023854944 | AG120: 0.005769898051 | AH120: 0.002454983091 | AI120: 0.005233916252 | AJ120: 0.003528269518
C121: =IF( subgroup.idx="", "", INDEX(subgroupData.names,subgroup.idx) ) -> Building Blocks - South West Trains - Longer Distance | D121: 86 | E121: 289 | F121: =IF( INDEX(attr.selection, attr.ordered), INDEX( output.array,subgroup.idx, attr.ordered), "" ) -> 0.1936573775 | G121: 0.1191823682 | H121: 0.05344766067 | I121: 0.0496910844 | J121: 0.04711710876 | K121: 0.04955181174 | L121: 0.03442645398 | M121: 0.03254316501 | N121: 0.03009522453 | O121: 0.03266343777 | P121: 0.04139002284 | Q121: 0.02669302586 | R121: 0.02740270231 | S121: 0.02280764441 | T121: 0.02634100875 | U121: 0.02034473296 | V121: 0.01785184168 | W121: 0.02116330032 | X121: 0.02020319362 | Y121: 0.02033278404 | Z121: 0.01308433131 | AA121: 0.0118094987 | AB121: 0.01241641784 | AC121: 0.01195836691 | AD121: 0.008945682249 | AE121: 0.0122266157 | AF121: 0.011145021 | AG121: 0.01116579559 | AH121: 0.007568277682 | AI121: 0.006948698664 | AJ121: 0.00582534502
C122: =IF( subgroup.idx="", "", INDEX(subgroupData.names,subgroup.idx) ) -> Building Blocks - South West Trains - Metro | D122: 87 | E122: 161 | F122: =IF( INDEX(attr.selection, attr.ordered), INDEX( output.array,subgroup.idx, attr.ordered), "" ) -> 0.1671405751 | G122: 0.1063399624 | H122: 0.06422337174 | I122: 0.05881447138 | J122: 0.0582879707 | K122: 0.05762802334 | L122: 0.04119498276 | M122: 0.03645339996 | N122: 0.02174602146 | O122: 0.02918945184 | P122: 0.04032270415 | Q122: 0.03018167234 | R122: 0.02427961998 | S122: 0.02629259234 | T122: 0.02037736764 | U122: 0.02406888603 | V122: 0.02243108188 | W122: 0.01853958416 | X122: 0.0172613327 | Y122: 0.01729233127 | Z122: 0.01336802613 | AA122: 0.01418656087 | AB122: 0.01276400297 | AC122: 0.01252681577 | AD122: 0.009224177858 | AE122: 0.01030058158 | AF122: 0.01139729883 | AG122: 0.01072609488 | AH122: 0.008233284692 | AI122: 0.008479057657 | AJ122: 0.00672869556
C123: =IF( subgroup.idx="", "", INDEX(subgroupData.names,subgroup.idx) ) -> Building Blocks - South West Trains - Outer Suburban & Local | D123: 88 | E123: 245 | F123: =IF( INDEX(attr.selection, attr.ordered), INDEX( output.array,subgroup.idx, attr.ordered), "" ) -> 0.1688928733 | G123: 0.1094744557 | H123: 0.06005958898 | I123: 0.0545131712 | J123: 0.0537329229 | K123: 0.05391560778 | L123: 0.03852650175 | M123: 0.03541029886 | N123: 0.03151191045 | O123: 0.02807726153 | P123: 0.04103754831 | Q123: 0.02972365143 | R123: 0.02306379224 | S123: 0.02590629641 | T123: 0.02046964189 | U123: 0.02101553235 | V123: 0.01909296952 | W123: 0.01977440387 | X123: 0.01744375724 | Y123: 0.01917686327 | Z123: 0.01326240057 | AA123: 0.0153431414 | AB123: 0.01310317326 | AC123: 0.01284799918 | AD123: 0.01353176179 | AE123: 0.01148857679 | AF123: 0.01187639521 | AG123: 0.01118518369 | AH123: 0.009047848147 | AI123: 0.009207908897 | AJ123: 0.008286562079
C125: =IF( subgroup.idx="", "", INDEX(subgroupData.names,subgroup.idx) ) -> Building Blocks - Thameslink - Kent | D125: 89 | E125: 216 | F125: =IF( INDEX(attr.selection, attr.ordered), INDEX( output.array,subgroup.idx, attr.ordered), "" ) -> 0.1643015386 | G125: 0.1081933939 | H125: 0.07477008075 | I125: 0.07529798489 | J125: 0.07156271034 | K125: 0.05832878922 | L125: 0.04900876795 | M125: 0.03890968266 | N125: 0.02202006477 | O125: 0.0269161446 | P125: 0.03358701658 | Q125: 0.03175404423 | R125: 0.0221883088 | S125: 0.02635389184 | T125: 0.01705903551 | U125: 0.01969225189 | V125: 0.01695572301 | W125: 0.01607568183 | X125: 0.01427922265 | Y125: 0.01444628137 | Z125: 0.01121518299 | AA125: 0.01311421774 | AB125: 0.01051098544 | AC125: 0.01031417659 | AD125: 0.007725160383 | AE125: 0.009194909933 | AF125: 0.009051042263 | AG125: 0.008559833487 | AH125: 0.007605518279 | AI125: 0.006429857975 | AJ125: 0.004578499582
C126: =IF( subgroup.idx="", "", INDEX(subgroupData.names,subgroup.idx) ) -> Building Blocks - Thameslink - Loop | D126: 90 | E126: 224 | F126: =IF( INDEX(attr.selection, attr.ordered), INDEX( output.array,subgroup.idx, attr.ordered), "" ) -> 0.1654439667 | G126: 0.1066243249 | H126: 0.07516180974 | I126: 0.07747795439 | J126: 0.07274368949 | K126: 0.05645565604 | L126: 0.05030289609 | M126: 0.03918356516 | N126: 0.02073204842 | O126: 0.02736459243 | P126: 0.03102029201 | Q126: 0.03166600948 | R126: 0.02272803735 | S126: 0.02633901175 | T126: 0.0170179048 | U126: 0.01938018642 | V126: 0.01657459214 | W126: 0.01622916602 | X126: 0.01429752784 | Y126: 0.01444226207 | Z126: 0.01137034399 | AA126: 0.0128009347 | AB126: 0.01068384589 | AC126: 0.01045890029 | AD126: 0.007419440986 | AE126: 0.009413518943 | AF126: 0.009175961485 | AG126: 0.008726262546 | AH126: 0.007614077481 | AI126: 0.006639322341 | AJ126: 0.004511898067
C127: =IF( subgroup.idx="", "", INDEX(subgroupData.names,subgroup.idx) ) -> Building Blocks - Thameslink - North / South | D127: 91 | E127: 264 | F127: =IF( INDEX(attr.selection, attr.ordered), INDEX( output.array,subgroup.idx, attr.ordered), "" ) -> 0.1691168119 | G127: 0.1032800981 | H127: 0.07198123008 | I127: 0.07379652158 | J127: 0.06887886844 | K127: 0.0563047224 | L127: 0.04837345099 | M127: 0.03801026881 | N127: 0.02456060393 | O127: 0.02749235736 | P127: 0.03241504503 | Q127: 0.030904138 | R127: 0.02299209113 | S127: 0.02573704653 | T127: 0.01759966247 | U127: 0.02067784158 | V127: 0.01799832862 | W127: 0.01717331879 | X127: 0.01468843686 | Y127: 0.01489279253 | Z127: 0.01170240306 | AA127: 0.01264559557 | AB127: 0.01097618422 | AC127: 0.01072909226 | AD127: 0.0083006578 | AE127: 0.01008216319 | AF127: 0.009495582724 | AG127: 0.009080174844 | AH127: 0.00810157674 | AI127: 0.006843750093 | AJ127: 0.005169184404
C129: =IF( subgroup.idx="", "", INDEX(subgroupData.names,subgroup.idx) ) -> Building Blocks - Virgin Trains - Birmingham - Scotland | D129: 92 | E129: 226 | F129: =IF( INDEX(attr.selection, attr.ordered), INDEX( output.array,subgroup.idx, attr.ordered), "" ) -> 0.2144888649 | G129: 0.1409692618 | H129: 0.03915901399 | I129: 0.03430359591 | J129: 0.03203817912 | K129: 0.03957004511 | L129: 0.0235642008 | M129: 0.03116903336 | N129: 0.04428690908 | O129: 0.04287551495 | P129: 0.02331839436 | Q129: 0.02581261472 | R129: 0.03813987062 | S129: 0.02246162934 | T129: 0.01738158209 | U129: 0.01948832725 | V129: 0.01703232106 | W129: 0.03110054211 | X129: 0.01399949666 | Y129: 0.02713711902 | Z129: 0.01543713886 | AA129: 0.01110238426 | AB129: 0.0136565838 | AC129: 0.01315973133 | AD129: 0.01211467852 | AE129: 0.01624104656 | AF129: 0.01009176696 | AG129: 0.01016849189 | AH129: 0.006735846011 | AI129: 0.005865033872 | AJ129: 0.007130781631
C130: =IF( subgroup.idx="", "", INDEX(subgroupData.names,subgroup.idx) ) -> Building Blocks - Virgin Trains - London - Liverpool | D130: 93 | E130: 89 | F130: =IF( INDEX(attr.selection, attr.ordered), INDEX( output.array,subgroup.idx, attr.ordered), "" ) -> 0.1871712564 | G130: 0.1242899162 | H130: 0.03979695128 | I130: 0.03504296955 | J130: 0.03324400691 | K130: 0.04016706353 | L130: 0.02490056985 | M130: 0.03310935621 | N130: 0.04618899973 | O130: 0.04107549094 | P130: 0.02415524699 | Q130: 0.02767709707 | R130: 0.03559866561 | S130: 0.02389483169 | T130: 0.02827688957 | U130: 0.02228467786 | V130: 0.0198503457 | W130: 0.02794309168 | X130: 0.02162892372 | Y130: 0.02658459367 | Z130: 0.0162383919 | AA130: 0.01152887577 | AB130: 0.01557208216 | AC130: 0.01494723206 | AD130: 0.01138737424 | AE130: 0.01566996188 | AF130: 0.01388185427 | AG130: 0.01426525433 | AH130: 0.00987894025 | AI130: 0.006425621309 | AJ130: 0.00732346767
C131: =IF( subgroup.idx="", "", INDEX(subgroupData.names,subgroup.idx) ) -> Building Blocks - Virgin Trains - London - Manchester | D131: 94 | E131: 250 | F131: =IF( INDEX(attr.selection, attr.ordered), INDEX( output.array,subgroup.idx, attr.ordered), "" ) -> 0.1968231317 | G131: 0.1301727058 | H131: 0.04098660882 | I131: 0.03666658877 | J131: 0.03444420853 | K131: 0.04111436959 | L131: 0.02561773273 | M131: 0.03203558681 | N131: 0.04084711979 | O131: 0.04172454376 | P131: 0.02444098735 | Q131: 0.02655780505 | R131: 0.03727809801 | S131: 0.02275666036 | T131: 0.0245630026 | U131: 0.02208973982 | V131: 0.01996613136 | W131: 0.02856070584 | X131: 0.0186716025 | Y131: 0.02580197998 | Z131: 0.01547135368 | AA131: 0.01130494595 | AB131: 0.01400779536 | AC131: 0.0134395433 | AD131: 0.01179509911 | AE131: 0.0163202239 | AF131: 0.01156096585 | AG131: 0.01188286166 | AH131: 0.01000898163 | AI131: 0.006034072999 | AJ131: 0.007054847459
C132: =IF( subgroup.idx="", "", INDEX(subgroupData.names,subgroup.idx) ) -> Building Blocks - Virgin Trains - London - North Wales | D132: 95 | E132: 145 | F132: =IF( INDEX(attr.selection, attr.ordered), INDEX( output.array,subgroup.idx, attr.ordered), "" ) -> 0.1894079464 | G132: 0.1346840852 | H132: 0.04094812619 | I132: 0.0375240886 | J132: 0.03443569341 | K132: 0.0414695493 | L132: 0.02622992108 | M132: 0.03326493791 | N132: 0.03768774282 | O132: 0.04552832784 | P132: 0.02563161245 | Q132: 0.0269983679 | R132: 0.04128855048 | S132: 0.0233749517 | T132: 0.02003864503 | U132: 0.02360020396 | V132: 0.02170508155 | W132: 0.02706603546 | X132: 0.01601965146 | Y132: 0.02741152906 | Z132: 0.01637523778 | AA132: 0.01124146413 | AB132: 0.01423793986 | AC132: 0.01367606547 | AD132: 0.01083629718 | AE132: 0.01699280088 | AF132: 0.01090432055 | AG132: 0.01100696749 | AH132: 0.007989247557 | AI132: 0.006074990705 | AJ132: 0.006349620607
C133: =IF( subgroup.idx="", "", INDEX(subgroupData.names,subgroup.idx) ) -> Building Blocks - Virgin Trains - London - Scotland | D133: 96 | E133: 145 | F133: =IF( INDEX(attr.selection, attr.ordered), INDEX( output.array,subgroup.idx, attr.ordered), "" ) -> 0.230306601 | G133: 0.1343447593 | H133: 0.03977040886 | I133: 0.03672746701 | J133: 0.03289234719 | K133: 0.03949587644 | L133: 0.02510127641 | M133: 0.03004106979 | N133: 0.0484140003 | O133: 0.03904015439 | P133: 0.02476469308 | Q133: 0.02477407733 | R133: 0.03506289615 | S133: 0.02136696134 | T133: 0.01555725815 | U133: 0.01974832745 | V133: 0.01708054183 | W133: 0.03168584114 | X133: 0.01278805281 | Y133: 0.02596344307 | Z133: 0.01410158183 | AA133: 0.009740529539 | AB133: 0.01252397853 | AC133: 0.01204618585 | AD133: 0.01159605138 | AE133: 0.01589422415 | AF133: 0.009360684988 | AG133: 0.009351569516 | AH133: 0.007432259643 | AI133: 0.005898826058 | AJ133: 0.007128055481
C134: =IF( subgroup.idx="", "", INDEX(subgroupData.names,subgroup.idx) ) -> Building Blocks - Virgin Trains - London - Wolverhampton | D134: 97 | E134: 161 | F134: =IF( INDEX(attr.selection, attr.ordered), INDEX( output.array,subgroup.idx, attr.ordered), "" ) -> 0.1824983307 | G134: 0.1385262367 | H134: 0.04111735959 | I134: 0.03661849962 | J134: 0.03473519753 | K134: 0.04121214867 | L134: 0.02546340845 | M134: 0.03312958966 | N134: 0.03767615446 | O134: 0.04505680665 | P134: 0.0228735808 | Q134: 0.0273467609 | R134: 0.03971047554 | S134: 0.02356079454 | T134: 0.02555736805 | U134: 0.02147673422 | V134: 0.01939734858 | W134: 0.02648395736 | X134: 0.01957013025 | Y134: 0.02735052221 | Z134: 0.01655320191 | AA134: 0.01194491178 | AB134: 0.01485212342 | AC134: 0.01425008772 | AD134: 0.01138915214 | AE134: 0.01627495024 | AF134: 0.01191724411 | AG134: 0.01222846423 | AH134: 0.008662384998 | AI134: 0.005876630616 | AJ134: 0.006689444393
C136: =IF( subgroup.idx="", "", INDEX(subgroupData.names,subgroup.idx) ) -> Building Blocks - Virgin Trains East Coast: London – Leeds and West Yorkshire | D136: 98 | E136: 189 | F136: =IF( INDEX(attr.selection, attr.ordered), INDEX( output.array,subgroup.idx, attr.ordered), "" ) -> 0.2015256828 | G136: 0.1240227553 | H136: 0.04477494648 | I136: 0.04341985355 | J136: 0.03816404554 | K136: 0.04075116219 | L136: 0.02870290593 | M136: 0.03155012662 | N136: 0.05904935551 | O136: 0.03999073175 | P136: 0.02917302922 | Q136: 0.02547097906 | R136: 0.03492211548 | S136: 0.02180516422 | T136: 0.01707025225 | U136: 0.0180971907 | V136: 0.01529345648 | W136: 0.0253440942 | X136: 0.01397186786 | Y136: 0.02359421083 | Z136: 0.01405246775 | AA136: 0.009605254482 | AB136: 0.01235691943 | AC136: 0.01186429041 | AD136: 0.01791892931 | AE136: 0.01406631488 | AF136: 0.009528562771 | AG136: 0.009412996486 | AH136: 0.009267313738 | AI136: 0.00616805102 | AJ136: 0.009064973737
C137: =IF( subgroup.idx="", "", INDEX(subgroupData.names,subgroup.idx) ) -> Building Blocks - Virgin Trains East Coast: London – Newcastle/Sunderland and East Yorkshire | D137: 99 | E137: 260 | F137: =IF( INDEX(attr.selection, attr.ordered), INDEX( output.array,subgroup.idx, attr.ordered), "" ) -> 0.2004019776 | G137: 0.1232821385 | H137: 0.0412715392 | I137: 0.03819903931 | J137: 0.03437951173 | K137: 0.04066080296 | L137: 0.02584917999 | M137: 0.03221372887 | N137: 0.0458896517 | O137: 0.04228204115 | P137: 0.02812641375 | Q137: 0.0263445609 | R137: 0.03697877433 | S137: 0.02275595001 | T137: 0.0197713926 | U137: 0.01920167297 | V137: 0.01679239173 | W137: 0.02791458487 | X137: 0.01568022575 | Y137: 0.02477845629 | Z137: 0.01556556107 | AA137: 0.01025440248 | AB137: 0.01416763586 | AC137: 0.01370246505 | AD137: 0.01474880396 | AE137: 0.01487540331 | AF137: 0.01177867401 | AG137: 0.01163558915 | AH137: 0.01675917743 | AI137: 0.0059350892 | AJ137: 0.007803164257
C138: =IF( subgroup.idx="", "", INDEX(subgroupData.names,subgroup.idx) ) -> Building Blocks - Virgin Trains East Coast: London - Scotland | D138: 100 | E138: 433 | F138: =IF( INDEX(attr.selection, attr.ordered), INDEX( output.array,subgroup.idx, attr.ordered), "" ) -> 0.193676603 | G138: 0.1221263112 | H138: 0.04097718863 | I138: 0.0380676621 | J138: 0.03438396351 | K138: 0.04003918389 | L138: 0.02613591489 | M138: 0.03148369135 | N138: 0.05321471178 | O138: 0.04098230085 | P138: 0.02864299222 | Q138: 0.02591167762 | R138: 0.03659018109 | S138: 0.02246336465 | T138: 0.01997271288 | U138: 0.0194669111 | V138: 0.01755453395 | W138: 0.02652709999 | X138: 0.01611586117 | Y138: 0.02440216127 | Z138: 0.01568733898 | AA138: 0.01042788524 | AB138: 0.01452469208 | AC138: 0.01408585288 | AD138: 0.01590179877 | AE138: 0.01553193591 | AF138: 0.01245724841 | AG138: 0.01233190681 | AH138: 0.0155189733 | AI138: 0.006501696062 | AJ138: 0.008295644427
C140: =IF( subgroup.idx="", "", INDEX(subgroupData.names,subgroup.idx) ) -> NR Route - Anglia | D140: 101 | E140: =INDEX( unweighted.subgroup.member.count, subgroup.idx) -> 1380 | F140: =IF( INDEX(attr.selection, attr.ordered), INDEX( output.array,subgroup.idx, attr.ordered), "" ) -> 0.1579032106 | G140: 0.09493654938 | H140: 0.06252862897 | I140: 0.05753607863 | J140: 0.05713308411 | K140: 0.05458311205 | L140: 0.04015971009 | M140: 0.03805537429 | N140: 0.03127107204 | O140: 0.02924275532 | P140: 0.03441386494 | Q140: 0.03170827124 | R140: 0.02432087778 | S140: 0.02730526143 | T140: 0.02657253813 | U140: 0.0238014099 | V140: 0.02252695312 | W140: 0.01922967583 | X140: 0.02129685473 | Y140: 0.01748853575 | Z140: 0.01369226343 | AA140: 0.01482691172 | AB140: 0.01358360095 | AC140: 0.01323245905 | AD140: 0.01076836628 | AE140: 0.01113922632 | AF140: 0.01285348403 | AG140: 0.01254240979 | AH140: 0.009972184388 | AI140: 0.008473519459 | AJ140: 0.006901756208
C141: =IF( subgroup.idx="", "", INDEX(subgroupData.names,subgroup.idx) ) -> NR Route - London North East / East Midlands | D141: 102 | E141: 2599 | F141: =IF( INDEX(attr.selection, attr.ordered), INDEX( output.array,subgroup.idx, attr.ordered), "" ) -> 0.1645926834 | G141: 0.108677149 | H141: 0.0534619774 | I141: 0.04934128409 | J141: 0.04785256232 | K141: 0.04798771187 | L141: 0.03459606718 | M141: 0.03597392728 | N141: 0.03982030599 | O141: 0.03397657387 | P141: 0.03067727477 | Q141: 0.03021635931 | R141: 0.02970498402 | S141: 0.02600375097 | T141: 0.02225879953 | U141: 0.02243287451 | V141: 0.02089598052 | W141: 0.02268925358 | X141: 0.01825415175 | Y141: 0.02104548153 | Z141: 0.01487602623 | AA141: 0.0143758999 | AB141: 0.01421803431 | AC141: 0.01379251198 | AD141: 0.01500313572 | AE141: 0.01417819286 | AF141: 0.01245824082 | AG141: 0.01226373782 | AH141: 0.01105924885 | AI141: 0.008657795413 | AJ141: 0.008658023282
C142: =IF( subgroup.idx="", "", INDEX(subgroupData.names,subgroup.idx) ) -> NR Route - London North West | D142: 103 | E142: 2564 | F142: =IF( INDEX(attr.selection, attr.ordered), INDEX( output.array,subgroup.idx, attr.ordered), "" ) -> 0.1461281399 | G142: 0.1097981568 | H142: 0.04677267585 | I142: 0.04110279864 | J142: 0.04081449219 | K142: 0.04514127564 | L142: 0.02998367969 | M142: 0.03609522312 | N142: 0.04143821445 | O142: 0.03667694368 | P142: 0.02755411749 | Q142: 0.03060920729 | R142: 0.03195487435 | S142: 0.02657307708 | T142: 0.03123882792 | U142: 0.02476732014 | V142: 0.02435305329 | W142: 0.02291136525 | X142: 0.02451357136 | Y142: 0.02267643413 | Z142: 0.01688802172 | AA142: 0.01513194795 | AB142: 0.01672476227 | AC142: 0.01619434364 | AD142: 0.01619506468 | AE142: 0.01569604253 | AF142: 0.01560486067 | AG142: 0.01573885315 | AH142: 0.01275900196 | AI142: 0.008745155948 | AJ142: 0.009218497107
C143: =IF( subgroup.idx="", "", INDEX(subgroupData.names,subgroup.idx) ) -> NR Route - Scotland | D143: 104 | E143: 1368 | F143: =IF( INDEX(attr.selection, attr.ordered), INDEX( output.array,subgroup.idx, attr.ordered), "" ) -> 0.1561097642 | G143: 0.1054963339 | H143: 0.04996013246 | I143: 0.04599007301 | J143: 0.04411150874 | K143: 0.0455679947 | L143: 0.03270487987 | M143: 0.03445153529 | N143: 0.03940956031 | O143: 0.03604379459 | P143: 0.03082297035 | Q143: 0.02878438592 | R143: 0.03251033618 | S143: 0.02537679855 | T143: 0.02372007159 | U143: 0.02339785095 | V143: 0.02268822419 | W143: 0.02377999002 | X143: 0.01979667141 | Y143: 0.02310827775 | Z143: 0.01662107803 | AA143: 0.01520525678 | AB143: 0.01588195141 | AC143: 0.01541814409 | AD143: 0.01608185402 | AE143: 0.01658024323 | AF143: 0.01393471891 | AG143: 0.01369900165 | AH143: 0.01239996948 | AI143: 0.01005443001 | AJ143: 0.01029219837
C144: =IF( subgroup.idx="", "", INDEX(subgroupData.names,subgroup.idx) ) -> NR Route - South East | D144: 105 | E144: 1533 | F144: =IF( INDEX(attr.selection, attr.ordered), INDEX( output.array,subgroup.idx, attr.ordered), "" ) -> 0.1440111517 | G144: 0.09195085843 | H144: 0.07107977409 | I144: 0.06951238319 | J144: 0.0672900653 | K144: 0.05684929266 | L144: 0.0465682467 | M144: 0.03996970539 | N144: 0.02717483277 | O144: 0.02778576399 | P144: 0.03200802871 | Q144: 0.0327031615 | R144: 0.02284179351 | S144: 0.02802547136 | T144: 0.02254210913 | U144: 0.02259463014 | V144: 0.02098851366 | W144: 0.01690086415 | X144: 0.01872976807 | Y144: 0.0161830363 | Z144: 0.0132924974 | AA144: 0.01460590371 | AB144: 0.01315506207 | AC144: 0.01285664438 | AD144: 0.01063032848 | AE144: 0.01072797668 | AF144: 0.01211774172 | AG144: 0.01157371939 | AH144: 0.00996603858 | AI144: 0.008479050386 | AJ144: 0.006885586463
C145: =IF( subgroup.idx="", "", INDEX(subgroupData.names,subgroup.idx) ) -> NR Route - Wales | D145: 106 | E145: 1038 | F145: =IF( INDEX(attr.selection, attr.ordered), INDEX( output.array,subgroup.idx, attr.ordered), "" ) -> 0.1311161914 | G145: 0.1092014565 | H145: 0.0418972475 | I145: 0.03676492975 | J145: 0.03582710785 | K145: 0.04093192218 | L145: 0.02786942626 | M145: 0.03534730539 | N145: 0.03480761714 | O145: 0.03913010085 | P145: 0.02749154433 | Q145: 0.03020319661 | R145: 0.03644596966 | S145: 0.02696991644 | T145: 0.02687277077 | U145: 0.02568654054 | V145: 0.02632356397 | W145: 0.02528793085 | X145: 0.02305299174 | Y145: 0.02741255906 | Z145: 0.0198121119 | AA145: 0.01841545622 | AB145: 0.01941378032 | AC145: 0.01886864316 | AD145: 0.01706644839 | AE145: 0.02106801319 | AF145: 0.01780927607 | AG145: 0.0175293064 | AH145: 0.01646773654 | AI145: 0.01255934624 | AJ145: 0.01234959276
C146: =IF( subgroup.idx="", "", INDEX(subgroupData.names,subgroup.idx) ) -> NR Route - Western | D146: 107 | E146: 1035 | F146: =IF( INDEX(attr.selection, attr.ordered), INDEX( output.array,subgroup.idx, attr.ordered), "" ) -> 0.1549931977 | G146: 0.1146322485 | H146: 0.05300874093 | I146: 0.04991768335 | J146: 0.04714643559 | K146: 0.04706753008 | L146: 0.03511327284 | M146: 0.03611216216 | N146: 0.04016418522 | O146: 0.03300325664 | P146: 0.03077399008 | Q146: 0.0301462112 | R146: 0.02889583274 | S146: 0.02643241423 | T146: 0.0205201317 | U146: 0.02243241196 | V146: 0.02123535361 | W146: 0.02352617308 | X146: 0.01749572833 | Y146: 0.02237616554 | Z146: 0.01519883419 | AA146: 0.0157856208 | AB146: 0.01459438318 | AC146: 0.01421834425 | AD146: 0.01522116756 | AE146: 0.01533187192 | AF146: 0.01263576369 | AG146: 0.01216653504 | AH146: 0.01065810924 | AI146: 0.009624181652 | AJ146: 0.009572063013
C147: =IF( subgroup.idx="", "", INDEX(subgroupData.names,subgroup.idx) ) -> NR Route - Wessex | D147: 108 | E147: 748 | F147: =IF( INDEX(attr.selection, attr.ordered), INDEX( output.array,subgroup.idx, attr.ordered), "" ) -> 0.1786583002 | G147: 0.1124755171 | H147: 0.05529011768 | I147: 0.05159108239 | J147: 0.04971243913 | K147: 0.05013225338 | L147: 0.03593495994 | M147: 0.03427478642 | N147: 0.03051492955 | O147: 0.03159768226 | P147: 0.03518665619 | Q147: 0.02824678733 | R147: 0.02657264341 | S147: 0.02441476633 | T147: 0.02537003858 | U147: 0.02196908761 | V147: 0.02012637309 | W147: 0.02173698216 | X147: 0.0200540719 | Y147: 0.02012529802 | Z147: 0.01386327509 | AA147: 0.01377059343 | AB147: 0.01329265156 | AC147: 0.01285499949 | AD147: 0.01168839217 | AE147: 0.01270820665 | AF147: 0.01192950892 | AG147: 0.01183208372 | AH147: 0.00862157886 | AI147: 0.008203856229 | AJ147: 0.007250081199
C148: =IF( subgroup.idx="", "", INDEX(subgroupData.names,subgroup.idx) ) -> NR Route - Non Network Rail Route/Not specified | D148: 109 | E148: 538 | F148: =IF( INDEX(attr.selection, attr.ordered), INDEX( output.array,subgroup.idx, attr.ordered), "" ) -> 0.1223399714 | G148: 0.07580087433 | H148: 0.04813737661 | I148: 0.0436498968 | J148: 0.04289146125 | K148: 0.04315238813 | L148: 0.03331580768 | M148: 0.03845154918 | N148: 0.05176476527 | O148: 0.03216875761 | P148: 0.02840840166 | Q148: 0.03281333494 | R148: 0.02910718923 | S148: 0.02926420812 | T148: 0.03082792075 | U148: 0.02850766798 | V148: 0.03065659852 | W148: 0.02318954476 | X148: 0.02613949206 | Y148: 0.02132078958 | Z148: 0.01807163343 | AA148: 0.01681045515 | AB148: 0.01852729139 | AC148: 0.01810243243 | AD148: 0.02375951614 | AE148: 0.01672090256 | AF148: 0.01788726173 | AG148: 0.01731790598 | AH148: 0.01464494809 | AI148: 0.01258274866 | AJ148: 0.01366690862
C150: =IF( subgroup.idx="", "", INDEX(subgroupData.names,subgroup.idx) ) -> Gender - Male | D150: 110 | E150: =INDEX( unweighted.subgroup.member.count, subgroup.idx) -> 6145 | F150: =IF( INDEX(attr.selection, attr.ordered), INDEX( output.array,subgroup.idx, attr.ordered), "" ) -> 0.1615573578 | G150: 0.1016509771 | H150: 0.05666899857 | I150: 0.05222392763 | J150: 0.05081198781 | K150: 0.05053498066 | L150: 0.03669948358 | M150: 0.03570780522 | N150: 0.04153535099 | O150: 0.03110198837 | P150: 0.03441285921 | Q150: 0.02980094524 | R150: 0.02669691883 | S150: 0.02616512096 | T150: 0.0206983882 | U150: 0.02294895951 | V150: 0.02192879381 | W150: 0.02184764881 | X150: 0.01755576192 | Y150: 0.02049393535 | Z150: 0.01461203331 | AA150: 0.01520611891 | AB150: 0.01405070921 | AC150: 0.01369166859 | AD150: 0.01584373682 | AE150: 0.01337612281 | AF150: 0.01225298582 | AG150: 0.01184021113 | AH150: 0.00904017342 | AI150: 0.009603054378 | AJ150: 0.009440996049
C151: =IF( subgroup.idx="", "", INDEX(subgroupData.names,subgroup.idx) ) -> Gender - Female | D151: 111 | E151: 6641 | F151: =IF( INDEX(attr.selection, attr.ordered), INDEX( output.array,subgroup.idx, attr.ordered), "" ) -> 0.1472657774 | G151: 0.1031635027 | H151: 0.05784130405 | I151: 0.05469154829 | J151: 0.05316445669 | K151: 0.04994356381 | L151: 0.03792200945 | M151: 0.03806959423 | N151: 0.02906537834 | O151: 0.03293098425 | P151: 0.02895650826 | Q151: 0.03164870616 | R151: 0.02827843893 | S151: 0.02711235949 | T151: 0.02905157452 | U151: 0.02371474746 | V151: 0.02256238851 | W151: 0.02021444015 | X151: 0.0230552262 | Y151: 0.01952115671 | Z151: 0.01520157291 | AA151: 0.0146491541 | AB151: 0.01509213259 | AC151: 0.0146458356 | AD151: 0.01166754387 | AE151: 0.01367466451 | AF151: 0.01427441531 | AG151: 0.01412675907 | AH151: 0.0125721512 | AI151: 0.008459083976 | AJ151: 0.007463021374
C153: =IF( subgroup.idx="", "", INDEX(subgroupData.names,subgroup.idx) ) -> Age - 16-25 | D153: 112 | E153: 1559 | F153: =IF( INDEX(attr.selection, attr.ordered), INDEX( output.array,subgroup.idx, attr.ordered), "" ) -> 0.1246993183 | G153: 0.07299640426 | H153: 0.05361927706 | I153: 0.05005214057 | J153: 0.04800425806 | K153: 0.04631957363 | L153: 0.03699052036 | M153: 0.0361232606 | N153: 0.06921949689 | O153: 0.02864866347 | P153: 0.03957156355 | Q153: 0.03080442871 | R153: 0.02596801132 | S153: 0.02759963704 | T153: 0.02235627492 | U153: 0.02397775528 | V153: 0.02430185664 | W153: 0.02075616352 | X153: 0.01996831962 | Y153: 0.02026356438 | Z153: 0.01606989442 | AA153: 0.01711162551 | AB153: 0.01593716449 | AC153: 0.01567241053 | AD153: 0.02806070311 | AE153: 0.01511833093 | AF153: 0.01450137526 | AG153: 0.01367877761 | AH153: 0.01294826724 | AI153: 0.01322254847 | AJ153: 0.01543841423
C154: =IF( subgroup.idx="", "", INDEX(subgroupData.names,subgroup.idx) ) -> Age - 26-44 | D154: 113 | E154: 4397 | F154: =IF( INDEX(attr.selection, attr.ordered), INDEX( output.array,subgroup.idx, attr.ordered), "" ) -> 0.1375614755 | G154: 0.08553398283 | H154: 0.05967844372 | I154: 0.05678093765 | J154: 0.05520325513 | K154: 0.05016829195 | L154: 0.04056279911 | M154: 0.03682126602 | N154: 0.03858753233 | O154: 0.02936556176 | P154: 0.03485706233 | Q154: 0.03078541058 | R154: 0.0258331128 | S154: 0.02720068353 | T154: 0.02486701569 | U154: 0.02407051453 | V154: 0.02390092287 | W154: 0.01977197715 | X154: 0.02124222026 | Y154: 0.0201752804 | Z154: 0.01560999394 | AA154: 0.0167368654 | AB154: 0.01540924248 | AC154: 0.01506122351 | AD154: 0.01712743935 | AE154: 0.01447687784 | AF154: 0.01429784532 | AG154: 0.01370779489 | AH154: 0.01197259661 | AI154: 0.01177352133 | AJ154: 0.01085885322
C155: =IF( subgroup.idx="", "", INDEX(subgroupData.names,subgroup.idx) ) -> Age - 45-64 | D155: 114 | E155: 4665 | F155: =IF( INDEX(attr.selection, attr.ordered), INDEX( output.array,subgroup.idx, attr.ordered), "" ) -> 0.1735089065 | G155: 0.119401772 | H155: 0.05858519741 | I155: 0.05339980517 | J155: 0.05287282979 | K155: 0.052726076 | L155: 0.03613710842 | M155: 0.03658712159 | N155: 0.02850235192 | O155: 0.03195601825 | P155: 0.02931169006 | Q155: 0.03034217381 | R155: 0.02623907708 | S155: 0.02569149284 | T155: 0.02581365994 | U155: 0.02199823031 | V155: 0.01969603402 | W155: 0.02147437924 | X155: 0.01994213844 | Y155: 0.01893452559 | Z155: 0.013264949 | AA155: 0.01358738175 | AB155: 0.01294278229 | AC155: 0.01249770015 | AD155: 0.009134968671 | AE155: 0.01151201359 | AF155: 0.01173153728 | AG155: 0.01176089725 | AH155: 0.008562512065 | AI155: 0.006348323815 | AJ155: 0.005536345663
C156: =IF( subgroup.idx="", "", INDEX(subgroupData.names,subgroup.idx) ) -> Age - 65+ | D156: 115 | E156: 2182 | F156: =IF( INDEX(attr.selection, attr.ordered), INDEX( output.array,subgroup.idx, attr.ordered), "" ) -> 0.1665373397 | G156: 0.1256577337 | H156: 0.04897060365 | I156: 0.04689035947 | J156: 0.0432922586 | K156: 0.04571996622 | L156: 0.03155638747 | M156: 0.03933779793 | N156: 0.01543180216 | O156: 0.04365031864 | P156: 0.02129488434 | Q156: 0.03220143071 | R156: 0.03819672016 | S156: 0.02734545034 | T156: 0.02649502241 | U156: 0.02486689612 | V156: 0.0235494996 | W156: 0.02323665115 | X156: 0.02045326791 | Y156: 0.0223221411 | Z156: 0.01708226326 | AA156: 0.01158159148 | AB156: 0.01625571942 | AC156: 0.01568088552 | AD156: 0.005012209178 | AE156: 0.01564992424 | AF156: 0.01443753097 | AG156: 0.01466418764 | AH156: 0.01353817037 | AI156: 0.005190805201 | AJ156: 0.003900181338
C158: =IF( subgroup.idx="", "", INDEX(subgroupData.names,subgroup.idx) ) -> Disabilty - Any | D158: 116 | E158: 1483 | F158: =IF( INDEX(attr.selection, attr.ordered), INDEX( output.array,subgroup.idx, attr.ordered), "" ) -> 0.1283441982 | G158: 0.1060825464 | H158: 0.04398215606 | I158: 0.04049383124 | J158: 0.03853017369 | K158: 0.04201536949 | L158: 0.02977313112 | M158: 0.03719104511 | N158: 0.03065731143 | O158: 0.03872535226 | P158: 0.0262401346 | Q158: 0.03178187708 | R158: 0.03592541509 | S158: 0.02734194214 | T158: 0.03012195789 | U158: 0.02496117026 | V158: 0.02476711623 | W158: 0.02195828296 | X158: 0.02478655308 | Y158: 0.02454858398 | Z158: 0.01908029914 | AA158: 0.01587491207 | AB158: 0.01905482085 | AC158: 0.01863741668 | AD158: 0.01490676307 | AE158: 0.01924911689 | AF158: 0.01902819063 | AG158: 0.01854707276 | AH158: 0.02726071857 | AI158: 0.0101502904 | AJ158: 0.00998225063
C159: =IF( subgroup.idx="", "", INDEX(subgroupData.names,subgroup.idx) ) -> Disabilty - None | D159: 117 | E159: 11320 | F159: =IF( INDEX(attr.selection, attr.ordered), INDEX( output.array,subgroup.idx, attr.ordered), "" ) -> 0.1564172193 | G159: 0.1020842487 | H159: 0.05864096523 | I159: 0.05486475409 | J159: 0.05344349622 | K159: 0.05104026223 | L159: 0.03811901153 | M159: 0.0369544662 | N159: 0.0352681811 | O159: 0.03142411806 | P159: 0.03200395682 | Q159: 0.03069362068 | R159: 0.02671410951 | S159: 0.02660616952 | T159: 0.02469001788 | U159: 0.02319582112 | V159: 0.02201414283 | W159: 0.02086641275 | X159: 0.02008085437 | Y159: 0.01951200123 | Z159: 0.01451391074 | AA159: 0.01480816201 | AB159: 0.01416478621 | AC159: 0.01376018128 | AD159: 0.01347385205 | AE159: 0.01296397367 | AF159: 0.01276819033 | AG159: 0.01251875167 | AH159: 0.009303373099 | AI159: 0.00887129749 | AJ159: 0.008219692045
C160: =IF( subgroup.idx="", "", INDEX(subgroupData.names,subgroup.idx) ) -> Disabilty - Mobility / Wheelchair | D160: 118 | E160: 956 | F160: =IF( INDEX(attr.selection, attr.ordered), INDEX( output.array,subgroup.idx, attr.ordered), "" ) -> 0.1232774644 | G160: 0.1077432717 | H160: 0.04224516039 | I160: 0.04002685313 | J160: 0.03733737798 | K160: 0.04052595608 | L160: 0.02925835099 | M160: 0.03771525347 | N160: 0.02461244922 | O160: 0.03969337026 | P160: 0.02359079697 | Q160: 0.03234716091 | R160: 0.03730978036 | S160: 0.02739845558 | T160: 0.03250548719 | U160: 0.02543829082 | V160: 0.02527929993 | W160: 0.02164290134 | X160: 0.0265500396 | Y160: 0.02483977593 | Z160: 0.01960235862 | AA160: 0.01558283189 | AB160: 0.01982277526 | AC160: 0.01942551867 | AD160: 0.0127675068 | AE160: 0.02011318444 | AF160: 0.02062321286 | AG160: 0.02001641145 | AH160: 0.03350041511 | AI160: 0.01008525923 | AJ160: 0.009123029387
C161: =IF( subgroup.idx="", "", INDEX(subgroupData.names,subgroup.idx) ) -> Disabilty - Hearing | D161: 119 | E161: 462 | F161: =IF( INDEX(attr.selection, attr.ordered), INDEX( output.array,subgroup.idx, attr.ordered), "" ) -> 0.1339273017 | G161: 0.1136533027 | H161: 0.04188246221 | I161: 0.03583825635 | J161: 0.03562638087 | K161: 0.04228295248 | L161: 0.02669919479 | M161: 0.03710305678 | N161: 0.03466797523 | O161: 0.04014141008 | P161: 0.02755466174 | Q161: 0.03179158006 | R161: 0.03731155003 | S161: 0.02753960482 | T161: 0.0279880662 | U161: 0.02579396816 | V161: 0.02546909115 | W161: 0.02431287002 | X161: 0.02305121443 | Y161: 0.02500620331 | Z161: 0.01884407737 | AA161: 0.01605181717 | AB161: 0.01831489012 | AC161: 0.01785664532 | AD161: 0.01596011159 | AE161: 0.01995230277 | AF161: 0.01731240044 | AG161: 0.0168270417 | AH161: 0.02036861663 | AI161: 0.01033509293 | AJ161: 0.01053590088
C162: =IF( subgroup.idx="", "", INDEX(subgroupData.names,subgroup.idx) ) -> Disabilty - Eyesight | D162: 120 | E162: 345 | F162: =IF( INDEX(attr.selection, attr.ordered), INDEX( output.array,subgroup.idx, attr.ordered), "" ) -> 0.1212574541 | G162: 0.08671753593 | H162: 0.04702318122 | I162: 0.04235620969 | J162: 0.04123030731 | K162: 0.04349634235 | L162: 0.03257447144 | M162: 0.03621114876 | N162: 0.0439596182 | O162: 0.03538393107 | P162: 0.03278884347 | Q162: 0.0308288631 | R162: 0.03259585151 | S162: 0.02771572534 | T162: 0.02782139097 | U162: 0.0249970552 | V162: 0.02556534026 | W162: 0.02119287735 | X162: 0.02390709136 | Y162: 0.02389116693 | Z162: 0.01949330829 | AA162: 0.01800072709 | AB162: 0.01953473103 | AC162: 0.0190614793 | AD162: 0.02133158482 | AE162: 0.01876388383 | AF162: 0.01865440939 | AG162: 0.01835240414 | AH162: 0.01951015642 | AI162: 0.01239885455 | AJ162: 0.0133840556
C164: =IF( subgroup.idx="", "", INDEX(subgroupData.names,subgroup.idx) ) -> TOC Net - London and South East (LSE) | D164: 121 | E164: 6639 | F164: =IF( INDEX(attr.selection, attr.ordered), INDEX( output.array,subgroup.idx, attr.ordered), "" ) -> 0.1520489998 | G164: 0.09882603582 | H164: 0.06064421749 | I164: 0.0571926203 | J164: 0.05571238214 | K164: 0.05197945592 | L164: 0.03966967436 | M164: 0.03760850569 | N164: 0.03328983608 | O164: 0.03040456132 | P164: 0.03261853256 | Q164: 0.03125316095 | R164: 0.02585469734 | S164: 0.02703650224 | T164: 0.02448664796 | U164: 0.02323534028 | V164: 0.0220844073 | W164: 0.01995174292 | X164: 0.02012348341 | Y164: 0.01890816064 | Z164: 0.01443554771 | AA164: 0.01504315718 | AB164: 0.01420495475 | AC164: 0.01383592855 | AD164: 0.01314265046 | AE164: 0.01276828538 | AF164: 0.0130602493 | AG164: 0.01268036935 | AH164: 0.0105970687 | AI164: 0.009128241315 | AJ164: 0.008174582784
C165: =IF( subgroup.idx="", "", INDEX(subgroupData.names,subgroup.idx) ) -> TOC Net - Long Distance (LD) | D165: 122 | E165: 3188 | F165: =IF( INDEX(attr.selection, attr.ordered), INDEX( output.array,subgroup.idx, attr.ordered), "" ) -> 0.1766418899 | G165: 0.1204123845 | H165: 0.04280413067 | I165: 0.03795521031 | J165: 0.03621859864 | K165: 0.04255003435 | L165: 0.02740102681 | M165: 0.03320800077 | N165: 0.04327785821 | O165: 0.03896440213 | P165: 0.02867841752 | Q165: 0.02780315707 | R165: 0.03508296463 | S165: 0.02422502876 | T165: 0.02292060323 | U165: 0.02300042437 | V165: 0.02187857107 | W165: 0.02628399268 | X165: 0.01859584256 | Y165: 0.0250395448 | Z165: 0.01631336068 | AA165: 0.01361360559 | AB165: 0.01520447159 | AC165: 0.01469448874 | AD165: 0.01508138241 | AE165: 0.01715877913 | AF165: 0.01301033456 | AG165: 0.0130114516 | AH165: 0.01151809361 | AI165: 0.008286932084 | AJ165: 0.009165017072
C166: =IF( subgroup.idx="", "", INDEX(subgroupData.names,subgroup.idx) ) -> TOC Net - Regional | D166: 123 | E166: 3131 | F166: =IF( INDEX(attr.selection, attr.ordered), INDEX( output.array,subgroup.idx, attr.ordered), "" ) -> 0.1551459463 | G166: 0.114801188 | H166: 0.04728617234 | I166: 0.04256536569 | J166: 0.04124244005 | K166: 0.04514775522 | L166: 0.03032467665 | M166: 0.03560688889 | N166: 0.03752779179 | O166: 0.03770774264 | P166: 0.02694854267 | Q166: 0.02985633654 | R166: 0.03289759032 | S166: 0.02592723317 | T166: 0.02908791667 | U166: 0.02419955183 | V166: 0.02335792953 | W166: 0.02355046014 | X166: 0.02281701824 | Y166: 0.02283884222 | Z166: 0.01666004739 | AA166: 0.01439619752 | AB166: 0.01616665581 | AC166: 0.01562889258 | AD166: 0.01456964304 | AE166: 0.01557533781 | AF166: 0.01457221129 | AG166: 0.01471618137 | AH166: 0.01194417834 | AI166: 0.008230907566 | AJ166: 0.008702358358
C167: =IF( subgroup.idx="", "", INDEX(subgroupData.names,subgroup.idx) ) -> TOC Net - Airport | D167: 124 | E167: 780 | F167: =IF( INDEX(attr.selection, attr.ordered), INDEX( output.array,subgroup.idx, attr.ordered), "" ) -> 0.1272946927 | G167: 0.07960420568 | H167: 0.04767700267 | I167: 0.04166893834 | J167: 0.04140662943 | K167: 0.04466578604 | L167: 0.03217177393 | M167: 0.035220087 | N167: 0.04655402298 | O167: 0.03219940328 | P167: 0.03505497316 | Q167: 0.03036314383 | R167: 0.02977423533 | S167: 0.02749490556 | T167: 0.02773007308 | U167: 0.02560222417 | V167: 0.02705634868 | W167: 0.02234934309 | X167: 0.02430690256 | Y167: 0.0243616043 | Z167: 0.01880308173 | AA167: 0.0201063719 | AB167: 0.01872612053 | AC167: 0.01831027207 | AD167: 0.02229793806 | AE167: 0.01846118694 | AF167: 0.01769728182 | AG167: 0.01713376296 | AH167: 0.01623948815 | AI167: 0.01481031843 | AJ167: 0.01485788165
C168: =IF( subgroup.idx="", "", INDEX(subgroupData.names,subgroup.idx) ) -> TOC Net - Open Access (OA) | D168: 125 | E168: 557 | F168: =IF( INDEX(attr.selection, attr.ordered), INDEX( output.array,subgroup.idx, attr.ordered), "" ) -> 0.1016128028 | G168: 0.06967159944 | H168: 0.03437454173 | I168: 0.02829898632 | J168: 0.028169667 | K168: 0.03488038973 | L168: 0.02394073867 | M168: 0.03467541175 | N168: 0.06546515343 | O168: 0.04009429864 | P168: 0.02913181744 | Q168: 0.03019428675 | R168: 0.03969371339 | S168: 0.0284025495 | T168: 0.02861048314 | U168: 0.02695018983 | V168: 0.03011455999 | W168: 0.02538850637 | X168: 0.02600453731 | Y168: 0.02896499736 | Z168: 0.02390731084 | AA168: 0.02060220333 | AB168: 0.02355080284 | AC168: 0.02309122377 | AD168: 0.02923804852 | AE168: 0.02374699335 | AF168: 0.02179407303 | AG168: 0.02104227737 | AH168: 0.02259963074 | AI168: 0.01634935747 | AJ168: 0.01943884817
C170: =IF( subgroup.idx="", "", INDEX(subgroupData.names,subgroup.idx) ) -> TOC - Arriva Trains Wales | D170: 126 | E170: 1018 | F170: =IF( INDEX(attr.selection, attr.ordered), INDEX( output.array,subgroup.idx, attr.ordered), "" ) -> 0.1415017198 | G170: 0.116070611 | H170: 0.04597661948 | I170: 0.04078807738 | J170: 0.03974304356 | K170: 0.04470329424 | L170: 0.02967822975 | M170: 0.03650848737 | N170: 0.03424207452 | O170: 0.0396308139 | P170: 0.02646178481 | Q170: 0.03052205958 | R170: 0.03547619067 | S170: 0.02676865583 | T170: 0.02818103099 | U170: 0.02502519999 | V170: 0.02462183325 | W170: 0.02259204899 | X170: 0.02291409466 | Y170: 0.0242706328 | Z170: 0.01811053635 | AA170: 0.01566163075 | AB170: 0.01752373608 | AC170: 0.01697824777 | AD170: 0.01512152082 | AE170: 0.01723637238 | AF170: 0.01594707994 | AG170: 0.01595611281 | AH170: 0.01296170987 | AI170: 0.009301529234 | AJ170: 0.009525021375
C171: =IF( subgroup.idx="", "", INDEX(subgroupData.names,subgroup.idx) ) -> TOC - c2c | D171: 127 | E171: 461 | F171: =IF( INDEX(attr.selection, attr.ordered), INDEX( output.array,subgroup.idx, attr.ordered), "" ) -> 0.1328443226 | G171: 0.08875215952 | H171: 0.04891762066 | I171: 0.04208429994 | J171: 0.04291361416 | K171: 0.04613045736 | L171: 0.03183920783 | M171: 0.03768990603 | N171: 0.04415633497 | O171: 0.0314710532 | P171: 0.03308910415 | Q171: 0.03200897186 | R171: 0.02642990658 | S171: 0.02848034097 | T171: 0.03406782247 | U171: 0.02502061784 | V171: 0.02528877432 | W171: 0.02316611524 | X171: 0.02769395772 | Y171: 0.02071047099 | Z171: 0.01713685001 | AA171: 0.01756732905 | AB171: 0.0181193965 | AC171: 0.01763976134 | AD171: 0.01962909768 | AE171: 0.01419873261 | AF171: 0.01787776957 | AG171: 0.01759433371 | AH171: 0.01379361557 | AI171: 0.01202352542 | AJ171: 0.01166453016
C172: =IF( subgroup.idx="", "", INDEX(subgroupData.names,subgroup.idx) ) -> TOC - Chiltern Railways | D172: 128 | E172: 564 | F172: =IF( INDEX(attr.selection, attr.ordered), INDEX( output.array,subgroup.idx, attr.ordered), "" ) -> 0.1264576444 | G172: 0.1085516847 | H172: 0.04380489273 | I172: 0.03683135262 | J172: 0.0370173843 | K172: 0.04281156118 | L172: 0.02805153227 | M172: 0.03549372771 | N172: 0.05466169893 | O172: 0.03729212396 | P172: 0.033138402 | Q172: 0.03098325625 | R172: 0.03356900117 | S172: 0.02765917339 | T172: 0.02458789452 | U172: 0.02321141375 | V172: 0.02379538553 | W172: 0.0219392938 | X172: 0.0213798268 | Y172: 0.02718622762 | Z172: 0.01831662175 | AA172: 0.01925648006 | AB172: 0.01738898901 | AC172: 0.01694808743 | AD172: 0.0227158153 | AE172: 0.0180863882 | AF172: 0.01537793969 | AG172: 0.01499185696 | AH172: 0.01246847037 | AI172: 0.01200147868 | AJ172: 0.0140243949
C173: =IF( subgroup.idx="", "", INDEX(subgroupData.names,subgroup.idx) ) -> TOC - CrossCountry Trains | D173: 129 | E173: 605 | F173: =IF( INDEX(attr.selection, attr.ordered), INDEX( output.array,subgroup.idx, attr.ordered), "" ) -> 0.1716272261 | G173: 0.1142831502 | H173: 0.04257371236 | I173: 0.03835769646 | J173: 0.03600048642 | K173: 0.04244482956 | L173: 0.02777931002 | M173: 0.03339409649 | N173: 0.04466298079 | O173: 0.03972009883 | P173: 0.03039002371 | Q173: 0.02766355839 | R173: 0.03595654471 | S173: 0.02416729367 | T173: 0.02431926417 | U173: 0.02402172777 | V173: 0.02319632213 | W173: 0.02605448074 | X173: 0.01945594795 | Y173: 0.02540018316 | Z173: 0.01661376039 | AA173: 0.01322963613 | AB173: 0.01543782954 | AC173: 0.01488784312 | AD173: 0.01564169131 | AE173: 0.01774966044 | AF173: 0.01323243257 | AG173: 0.01338037171 | AH173: 0.01096809572 | AI173: 0.008086249723 | AJ173: 0.009303495764
C174: =IF( subgroup.idx="", "", INDEX(subgroupData.names,subgroup.idx) ) -> TOC - East Midlands Trains | D174: 130 | E174: 622 | F174: =IF( INDEX(attr.selection, attr.ordered), INDEX( output.array,subgroup.idx, attr.ordered), "" ) -> 0.1723621778 | G174: 0.1177933407 | H174: 0.04276644889 | I174: 0.03695320678 | J174: 0.03593464337 | K174: 0.04233284446 | L174: 0.02666096256 | M174: 0.03420145714 | N174: 0.04356953098 | O174: 0.03968597645 | P174: 0.02639084979 | Q174: 0.02892686525 | R174: 0.03615885467 | S174: 0.02527813673 | T174: 0.02288453596 | U174: 0.0229268505 | V174: 0.02199937396 | W174: 0.02660731541 | X174: 0.01894051679 | Y174: 0.02439679866 | Z174: 0.0169888594 | AA174: 0.01500318845 | AB174: 0.0157696307 | AC174: 0.01525815407 | AD174: 0.01596541805 | AE174: 0.01709167097 | AF174: 0.01338955416 | AG174: 0.01334200991 | AH174: 0.01148536188 | AI174: 0.008961676741 | AJ174: 0.009973788868
C175: =IF( subgroup.idx="", "", INDEX(subgroupData.names,subgroup.idx) ) -> TOC - Gatwick Express | D175: 131 | E175: 330 | F175: =IF( INDEX(attr.selection, attr.ordered), INDEX( output.array,subgroup.idx, attr.ordered), "" ) -> 0.1237276635 | G175: 0.07830212452 | H175: 0.05130905062 | I175: 0.04765849774 | J175: 0.04548527143 | K175: 0.04507895161 | L175: 0.03476863417 | M175: 0.03769191025 | N175: 0.0418772118 | O175: 0.03307947856 | P175: 0.03016476567 | Q175: 0.03223456889 | R175: 0.03043176626 | S175: 0.02891927268 | T175: 0.02865893184 | U175: 0.02615079681 | V175: 0.02845911936 | W175: 0.02051385538 | X175: 0.02515875498 | Y175: 0.02053719943 | Z175: 0.01895606042 | AA175: 0.01866721616 | AB175: 0.0191589312 | AC175: 0.0187794385 | AD175: 0.02123480325 | AE175: 0.01669116059 | AF175: 0.01788314989 | AG175: 0.01733662341 | AH175: 0.01372932064 | AI175: 0.01337181051 | AJ175: 0.01398365995
C176: =IF( subgroup.idx="", "", INDEX(subgroupData.names,subgroup.idx) ) -> TOC - Grand Central | D176: 132 | E176: 339 | F176: =IF( INDEX(attr.selection, attr.ordered), INDEX( output.array,subgroup.idx, attr.ordered), "" ) -> 0.07552493162 | G176: 0.05859655761 | H176: 0.03424091061 | I176: 0.02778814351 | J176: 0.02836852908 | K176: 0.03445509354 | L176: 0.02482012363 | M176: 0.03589377456 | N176: 0.05627715712 | O176: 0.04068251169 | P176: 0.02935867745 | Q176: 0.03160540134 | R176: 0.0416253633 | S176: 0.03027293981 | T176: 0.03070467926 | U176: 0.0295550169 | V176: 0.03453245387 | W176: 0.02377912556 | X176: 0.02854398198 | Y176: 0.02976516116 | Z176: 0.02630782705 | AA176: 0.02289835156 | AB176: 0.02634883413 | AC176: 0.02594492512 | AD176: 0.03069022981 | AE176: 0.02597361284 | AF176: 0.02497765514 | AG176: 0.02399513458 | AH176: 0.02648041995 | AI176: 0.01889532565 | AJ176: 0.02109715058
C177: =IF( subgroup.idx="", "", INDEX(subgroupData.names,subgroup.idx) ) -> TOC - Greater Anglia | D177: 133 | E177: 596 | F177: =IF( INDEX(attr.selection, attr.ordered), INDEX( output.array,subgroup.idx, attr.ordered), "" ) -> 0.1815554378 | G177: 0.0974457045 | H177: 0.06459730782 | I177: 0.06276408285 | J177: 0.05961197906 | K177: 0.05322986343 | L177: 0.04189753152 | M177: 0.03493764439 | N177: 0.03566541151 | O177: 0.02991493282 | P177: 0.03518098726 | Q177: 0.02837388393 | R177: 0.02540289647 | S177: 0.02446656785 | T177: 0.01831818845 | U177: 0.02056452293 | V177: 0.01844418842 | W177: 0.02064071919 | X177: 0.01512998602 | Y177: 0.01767906147 | Z177: 0.01267536974 | AA177: 0.0124847392 | AB177: 0.01192580305 | AC177: 0.01157102107 | AD177: 0.01181804128 | AE177: 0.01123338555 | AF177: 0.01010639657 | AG177: 0.009847659193 | AH177: 0.007247062482 | AI177: 0.008079038897 | AJ177: 0.007190585323
C178: =IF( subgroup.idx="", "", INDEX(subgroupData.names,subgroup.idx) ) -> TOC - Great Northern | D178: 134 | E178: 388 | F178: =IF( INDEX(attr.selection, attr.ordered), INDEX( output.array,subgroup.idx, attr.ordered), "" ) -> 0.1454900668 | G178: 0.09980150948 | H178: 0.05712688355 | I178: 0.05211732552 | J178: 0.05105530667 | K178: 0.05077794045 | L178: 0.03678275571 | M178: 0.03755611409 | N178: 0.03635250043 | O178: 0.03242870062 | P178: 0.03432860279 | Q178: 0.03155855325 | R178: 0.02751929051 | S178: 0.0276910086 | T178: 0.02441654283 | U178: 0.02272178792 | V178: 0.02156865779 | W178: 0.01996614297 | X178: 0.02046108715 | Y178: 0.02064716872 | Z178: 0.01577918263 | AA178: 0.0169203912 | AB178: 0.01542896596 | AC178: 0.01496787988 | AD178: 0.01571089084 | AE178: 0.01383288703 | AF178: 0.01377362676 | AG178: 0.01352540035 | AH178: 0.009393684614 | AI178: 0.010202094 | AJ178: 0.01009705082
C179: =IF( subgroup.idx="", "", INDEX(subgroupData.names,subgroup.idx) ) -> TOC - Great Western Railway | D179: 135 | E179: 1061 | F179: =IF( INDEX(attr.selection, attr.ordered), INDEX( output.array,subgroup.idx, attr.ordered), "" ) -> 0.1695506019 | G179: 0.1191515833 | H179: 0.05249984962 | I179: 0.04889468191 | J179: 0.04634678716 | K179: 0.04829549932 | L179: 0.0336417511 | M179: 0.03494150721 | N179: 0.03870519828 | O179: 0.03415100828 | P179: 0.03190008903 | Q179: 0.02883377592 | R179: 0.03030715454 | S179: 0.02491723528 | T179: 0.01892248658 | U179: 0.02271470409 | V179: 0.02109273145 | W179: 0.02358506677 | X179: 0.01584767886 | Y179: 0.02220857496 | Z179: 0.01468406531 | AA179: 0.01416556877 | AB179: 0.01371989229 | AC179: 0.01327369757 | AD179: 0.01315185255 | AE179: 0.01553207262 | AF179: 0.01156595124 | AG179: 0.011331771 | AH179: 0.009754589336 | AI179: 0.008120875108 | AJ179: 0.008191698623
C180: =IF( subgroup.idx="", "", INDEX(subgroupData.names,subgroup.idx) ) -> TOC - Heathrow Connect | D180: 136 | E180: 202 | F180: =IF( INDEX(attr.selection, attr.ordered), INDEX( output.array,subgroup.idx, attr.ordered), "" ) -> 0.09558274346 | G180: 0.06499782157 | H180: 0.0442477374 | I180: 0.03835839948 | J180: 0.0382441874 | K180: 0.04168702684 | L180: 0.03125624144 | M180: 0.0382801754 | N180: 0.04631949787 | O180: 0.03470895755 | P180: 0.03217750881 | Q180: 0.03364767245 | R180: 0.0331553928 | S180: 0.03081730181 | T180: 0.02756309493 | U180: 0.02854164467 | V180: 0.03077006992 | W180: 0.02471203936 | X180: 0.02544369383 | Y180: 0.02468081112 | Z180: 0.02175096858 | AA180: 0.02156591393 | AB180: 0.02189305064 | AC180: 0.02154408379 | AD180: 0.02779297095 | AE180: 0.02105992617 | AF180: 0.02092067755 | AG180: 0.01977763422 | AH180: 0.02178548243 | AI180: 0.01798698124 | AJ180: 0.01873029238
C181: =IF( subgroup.idx="", "", INDEX(subgroupData.names,subgroup.idx) ) -> TOC - Heathrow Express | D181: 137 | E181: 217 | F181: =IF( INDEX(attr.selection, attr.ordered), INDEX( output.array,subgroup.idx, attr.ordered), "" ) -> 0.1326294119 | G181: 0.07026902896 | H181: 0.03647672992 | I181: 0.03139434035 | J181: 0.03102375991 | K181: 0.0378520063 | L181: 0.0264345418 | M181: 0.03114947667 | N181: 0.06345038161 | O181: 0.03272265073 | P181: 0.03635675769 | Q181: 0.02720272446 | R181: 0.03174697738 | S181: 0.02486282751 | T181: 0.03057916043 | U181: 0.02437975118 | V181: 0.02541390543 | W181: 0.02509388246 | X181: 0.02656653937 | Y181: 0.02755950956 | Z181: 0.01986099612 | AA181: 0.01933320885 | AB181: 0.01980056808 | AC181: 0.01935032281 | AD181: 0.03061564658 | AE181: 0.02102433912 | AF181: 0.0196032025 | AG181: 0.01907049487 | AH181: 0.02463457969 | AI181: 0.01542109857 | AJ181: 0.01812117919
C182: =IF( subgroup.idx="", "", INDEX(subgroupData.names,subgroup.idx) ) -> TOC - Hull Trains | D182: 138 | E182: 238 | F182: =IF( INDEX(attr.selection, attr.ordered), INDEX( output.array,subgroup.idx, attr.ordered), "" ) -> 0.1504465593 | G182: 0.09161161594 | H182: 0.03471005485 | I182: 0.02936328975 | J182: 0.02787350679 | K182: 0.03573819762 | L182: 0.0223211178 | M182: 0.03243161104 | N182: 0.08199528105 | O182: 0.03903473094 | P182: 0.02854243504 | Q182: 0.0275777433 | R182: 0.03610842099 | S182: 0.02491249832 | T182: 0.02458908242 | U182: 0.02206715187 | V182: 0.02183021597 | W182: 0.02838807516 | X182: 0.02117365053 | Y182: 0.02742462763 | Z182: 0.01937686527 | AA182: 0.01627154605 | AB182: 0.01827566323 | AC182: 0.01771394352 | AD182: 0.02635024254 | AE182: 0.01959248431 | AF182: 0.01578596854 | AG182: 0.01546226204 | AH182: 0.0152586153 | AI182: 0.01152645226 | AJ182: 0.01624609066
C183: =IF( subgroup.idx="", "", INDEX(subgroupData.names,subgroup.idx) ) -> TOC - London Midland | D183: 139 | E183: 643 | F183: =IF( INDEX(attr.selection, attr.ordered), INDEX( output.array,subgroup.idx, attr.ordered), "" ) -> 0.1566732588 | G183: 0.1220429619 | H183: 0.05119693499 | I183: 0.04558506734 | J183: 0.04519572526 | K183: 0.04769374223 | L183: 0.03213981123 | M183: 0.03670628265 | N183: 0.04077636018 | O183: 0.03395337253 | P183: 0.02766740349 | Q183: 0.03097281439 | R183: 0.0292179014 | S183: 0.02660820711 | T183: 0.0234514685 | U183: 0.02328011181 | V183: 0.02224939341 | W183: 0.02239956979 | X183: 0.01927976544 | Y183: 0.02182054515 | Z183: 0.01495630856 | AA183: 0.0147089914 | AB183: 0.01471276052 | AC183: 0.01432438404 | AD183: 0.01537338639 | AE183: 0.01412074349 | AF183: 0.01323093028 | AG183: 0.01293049496 | AH183: 0.01047608422 | AI183: 0.007856920794 | AJ183: 0.008398297693
C184: =IF( subgroup.idx="", "", INDEX(subgroupData.names,subgroup.idx) ) -> TOC - London Overground | D184: 140 | E184: 587 | F184: =IF( INDEX(attr.selection, attr.ordered), INDEX( output.array,subgroup.idx, attr.ordered), "" ) -> 0.1200833536 | G184: 0.07490401538 | H184: 0.05916512449 | I184: 0.05242785153 | J184: 0.05402627315 | K184: 0.05314785124 | L184: 0.03883452 | M184: 0.04117355054 | N184: 0.03398164329 | O184: 0.02966276832 | P184: 0.03386957082 | Q184: 0.03530117174 | R184: 0.02600589721 | S184: 0.03067489477 | T184: 0.03342956429 | U184: 0.02825643417 | V184: 0.02910477892 | W184: 0.01867701663 | X184: 0.0271300222 | Y184: 0.01721583752 | Z184: 0.0162680543 | AA184: 0.01686490509 | AB184: 0.01679817378 | AC184: 0.01647833476 | AD184: 0.01534219579 | AE184: 0.01295590239 | AF184: 0.01694833803 | AG184: 0.0164452462 | AH184: 0.01488957718 | AI184: 0.01062753238 | AJ184: 0.009309600252
C185: =IF( subgroup.idx="", "", INDEX(subgroupData.names,subgroup.idx) ) -> TOC - Merseyrail | D185: 141 | E185: 389 | F185: =IF( INDEX(attr.selection, attr.ordered), INDEX( output.array,subgroup.idx, attr.ordered), "" ) -> 0.1315456514 | G185: 0.09747488428 | H185: 0.0392426844 | I185: 0.0338432839 | J185: 0.03357481687 | K185: 0.04008603044 | L185: 0.02548624624 | M185: 0.03808728493 | N185: 0.04350673807 | O185: 0.04139930477 | P185: 0.01959451181 | Q185: 0.03246239374 | R185: 0.03612809938 | S185: 0.02817049108 | T185: 0.04519377835 | U185: 0.02859289851 | V185: 0.02964602313 | W185: 0.02452102591 | X185: 0.03399087368 | Y185: 0.02013659009 | Z185: 0.01944755982 | AA185: 0.01347394852 | AB185: 0.02025712512 | AC185: 0.01955687556 | AD185: 0.01609501207 | AE185: 0.01637432238 | AF185: 0.0200847245 | AG185: 0.02086052697 | AH185: 0.01548657658 | AI185: 0.00727178733 | AJ185: 0.0084079302
C186: =IF( subgroup.idx="", "", INDEX(subgroupData.names,subgroup.idx) ) -> TOC - Northern | D186: 142 | E186: 653 | F186: =IF( INDEX(attr.selection, attr.ordered), INDEX( output.array,subgroup.idx, attr.ordered), "" ) -> 0.1533578142 | G186: 0.1203812242 | H186: 0.04666216219 | I186: 0.04126362161 | J186: 0.04030087731 | K186: 0.04552234983 | L186: 0.02962407223 | M186: 0.03564871689 | N186: 0.03462133044 | O186: 0.03734394174 | P186: 0.02801738657 | Q186: 0.03007403591 | R186: 0.03181158244 | S186: 0.02625134927 | T186: 0.0283338761 | U186: 0.02361190917 | V186: 0.02274222505 | W186: 0.02304811441 | X186: 0.02235911859 | Y186: 0.02463744919 | Z186: 0.01682744583 | AA186: 0.01557323904 | AB186: 0.01627727485 | AC186: 0.01574239581 | AD186: 0.01530096951 | AE186: 0.01530695665 | AF186: 0.01454858217 | AG186: 0.01460785187 | AH186: 0.01177811335 | AI186: 0.008955414816 | AJ186: 0.009468598779
C187: =IF( subgroup.idx="", "", INDEX(subgroupData.names,subgroup.idx) ) -> TOC - Scotrail | D187: 143 | E187: 1132 | F187: =IF( INDEX(attr.selection, attr.ordered), INDEX( output.array,subgroup.idx, attr.ordered), "" ) -> 0.172418331 | G187: 0.1164625531 | H187: 0.0523656356 | I187: 0.04886550655 | J187: 0.0465142458 | K187: 0.04749242939 | L187: 0.03370828195 | M187: 0.03400119934 | N187: 0.04000770525 | O187: 0.03563582596 | P187: 0.03006860687 | Q187: 0.02809520744 | R187: 0.03158913649 | S187: 0.0242216622 | T187: 0.02161666336 | U187: 0.02244381508 | V187: 0.02070728389 | W187: 0.02356304889 | X187: 0.01736056255 | Y187: 0.02179681291 | Z187: 0.01470182893 | AA187: 0.0132257909 | AB187: 0.01361143679 | AC187: 0.01316581471 | AD187: 0.01341348893 | AE187: 0.01475383246 | AF187: 0.01137223285 | AG187: 0.01130904503 | AH187: 0.009912859239 | AI187: 0.007648662115 | AJ187: 0.007950494386
C188: =IF( subgroup.idx="", "", INDEX(subgroupData.names,subgroup.idx) ) -> TOC - South West Trains | D188: 144 | E188: 638 | F188: =IF( INDEX(attr.selection, attr.ordered), INDEX( output.array,subgroup.idx, attr.ordered), "" ) -> 0.1700305713 | G188: 0.1107681518 | H188: 0.05561355028 | I188: 0.05174798716 | J188: 0.04980430786 | K188: 0.0504497218 | L188: 0.03629756445 | M188: 0.03471228594 | N188: 0.03405066291 | O188: 0.031494736 | P188: 0.03626702215 | Q188: 0.02888273715 | R188: 0.02670438343 | S188: 0.02509965117 | T188: 0.02366562211 | U188: 0.02187974225 | V188: 0.02003526249 | W188: 0.02101734255 | X188: 0.0193257958 | Y188: 0.02101030331 | Z188: 0.01411976742 | AA188: 0.01462935043 | AB188: 0.01351891258 | AC188: 0.01314220526 | AD188: 0.01279967383 | AE188: 0.01318639312 | AF188: 0.0120981337 | AG188: 0.0117570709 | AH188: 0.00925314739 | AI188: 0.008742009743 | AJ188: 0.007895933728
C189: =IF( subgroup.idx="", "", INDEX(subgroupData.names,subgroup.idx) ) -> TOC - Southeastern | D189: 145 | E189: 633 | F189: =IF( INDEX(attr.selection, attr.ordered), INDEX( output.array,subgroup.idx, attr.ordered), "" ) -> 0.1545156616 | G189: 0.09794298926 | H189: 0.06474620933 | I189: 0.06166498169 | J189: 0.05997152826 | K189: 0.05388913685 | L189: 0.04156688243 | M189: 0.03845357295 | N189: 0.03214509607 | O189: 0.02986133828 | P189: 0.03082722126 | Q189: 0.0313537424 | R189: 0.02449693787 | S189: 0.02715249887 | T189: 0.02334458805 | U189: 0.02144326013 | V189: 0.02006048543 | W189: 0.01897272645 | X189: 0.01921912213 | Y189: 0.01770068487 | Z189: 0.01407975102 | AA189: 0.0143899488 | AB189: 0.01395847303 | AC189: 0.01360075413 | AD189: 0.01188384116 | AE189: 0.01125419808 | AF189: 0.01276920585 | AG189: 0.01236699854 | AH189: 0.01068915282 | AI189: 0.008273154776 | AJ189: 0.007405857589
C190: =IF( subgroup.idx="", "", INDEX(subgroupData.names,subgroup.idx) ) -> TOC - Southern | D190: 146 | E190: 643 | F190: =IF( INDEX(attr.selection, attr.ordered), INDEX( output.array,subgroup.idx, attr.ordered), "" ) -> 0.1416340207 | G190: 0.08593916035 | H190: 0.07523320442 | I190: 0.07586658099 | J190: 0.07279971 | K190: 0.05676704502 | L190: 0.05090728425 | M190: 0.04086811299 | N190: 0.01967320965 | O190: 0.02621436856 | P190: 0.03023286964 | Q190: 0.03303278652 | R190: 0.02146451567 | S190: 0.0282073778 | T190: 0.02393330556 | U190: 0.02371532051 | V190: 0.02191394467 | W190: 0.01723413929 | X190: 0.01951283507 | Y190: 0.01490504336 | Z190: 0.01272716027 | AA190: 0.01416056386 | AB190: 0.01281611578 | AC190: 0.01244783221 | AD190: 0.009058405238 | AE190: 0.010954603 | AF190: 0.01193689599 | AG190: 0.01152318351 | AH190: 0.008528986321 | AI190: 0.009341644916 | AJ190: 0.006449773838
C191: =IF( subgroup.idx="", "", INDEX(subgroupData.names,subgroup.idx) ) -> TOC - Stansted Express | D191: 147 | E191: 182 | F191: =IF( INDEX(attr.selection, attr.ordered), INDEX( output.array,subgroup.idx, attr.ordered), "" ) -> 0.1282833678 | G191: 0.08279025985 | H191: 0.04823799246 | I191: 0.03955485263 | J191: 0.04123735621 | K191: 0.04649295106 | L191: 0.03171492631 | M191: 0.03433991431 | N191: 0.04285792768 | O191: 0.03109952287 | P191: 0.0389021944 | Q191: 0.0297144156 | R191: 0.02830424567 | S191: 0.0271962122 | T191: 0.02670565885 | U191: 0.02553688616 | V191: 0.02650985316 | W191: 0.02330284514 | X191: 0.02347553908 | Y191: 0.02678708203 | Z191: 0.0186638242 | AA191: 0.0220298795 | AB191: 0.01868033717 | AC191: 0.01821730755 | AD191: 0.01952411615 | AE191: 0.01943171862 | AF191: 0.01775300071 | AG191: 0.01722351793 | AH191: 0.01515447796 | AI191: 0.01615930544 | AJ191: 0.01411851127
C192: =IF( subgroup.idx="", "", INDEX(subgroupData.names,subgroup.idx) ) -> TOC - TfL Rail | D192: 148 | E192: 381 | F192: =IF( INDEX(attr.selection, attr.ordered), INDEX( output.array,subgroup.idx, attr.ordered), "" ) -> 0.122049714 | G192: 0.07675639244 | H192: 0.05469247891 | I192: 0.05110054881 | J192: 0.04997660528 | K192: 0.04759641895 | L192: 0.03714071705 | M192: 0.03956590879 | N192: 0.0362981183 | O192: 0.03241254321 | P192: 0.03075009096 | Q192: 0.03346136665 | R192: 0.02834751708 | S192: 0.02969942226 | T192: 0.03368261643 | U192: 0.02620214194 | V192: 0.0275901785 | W192: 0.01836887933 | X192: 0.02818063817 | Y192: 0.01971825917 | Z192: 0.01788660705 | AA192: 0.01714793503 | AB192: 0.01828006967 | AC192: 0.01792232548 | AD192: 0.01742809525 | AE192: 0.01454345052 | AF192: 0.01816300658 | AG192: 0.01764201453 | AH192: 0.0148232574 | AI192: 0.01136110165 | AJ192: 0.01121158058
C193: =IF( subgroup.idx="", "", INDEX(subgroupData.names,subgroup.idx) ) -> TOC - Thameslink | D193: 149 | E193: 584 | F193: =IF( INDEX(attr.selection, attr.ordered), INDEX( output.array,subgroup.idx, attr.ordered), "" ) -> 0.1572569838 | G193: 0.09285199247 | H193: 0.068915573 | I193: 0.06705097656 | J193: 0.06484604625 | K193: 0.05604516181 | L193: 0.04511313377 | M193: 0.03832173616 | N193: 0.02670525108 | O193: 0.02832577298 | P193: 0.03457745269 | Q193: 0.031555882 | R193: 0.02470879833 | S193: 0.02694533509 | T193: 0.01798544295 | U193: 0.0228301962 | V193: 0.02129837393 | W193: 0.01859038393 | X193: 0.01554136475 | Y193: 0.01702052762 | Z193: 0.01348004919 | AA193: 0.0149042512 | AB193: 0.01273677332 | AC193: 0.01247246815 | AD193: 0.01095263417 | AE193: 0.01219368801 | AF193: 0.01100740546 | AG193: 0.0104752774 | AH193: 0.009076219291 | AI193: 0.008847874939 | AJ193: 0.007366973467
C194: =IF( subgroup.idx="", "", INDEX(subgroupData.names,subgroup.idx) ) -> TOC - Transpennine Express | D194: 150 | E194: 590 | F194: =IF( INDEX(attr.selection, attr.ordered), INDEX( output.array,subgroup.idx, attr.ordered), "" ) -> 0.1852106609 | G194: 0.1279760281 | H194: 0.04575026598 | I194: 0.04051042969 | J194: 0.03895378205 | K194: 0.04424070634 | L194: 0.0285259823 | M194: 0.03337171535 | N194: 0.03154489536 | O194: 0.03924904056 | P194: 0.02928097369 | Q194: 0.02763124863 | R194: 0.0346798519 | S194: 0.0240220511 | T194: 0.01965512951 | U194: 0.02159695212 | V194: 0.01977177246 | W194: 0.02727342939 | X194: 0.01623117875 | Y194: 0.02638149915 | Z194: 0.01592513172 | AA194: 0.01404234803 | AB194: 0.0148613875 | AC194: 0.01430956662 | AD194: 0.01142148056 | AE194: 0.01725664747 | AF194: 0.01228626651 | AG194: 0.01223983953 | AH194: 0.0103520885 | AI194: 0.008017967697 | AJ194: 0.007429682538
C195: =IF( subgroup.idx="", "", INDEX(subgroupData.names,subgroup.idx) ) -> TOC - Virgin Trains East Coast | D195: 151 | E195: 885 | F195: =IF( INDEX(attr.selection, attr.ordered), INDEX( output.array,subgroup.idx, attr.ordered), "" ) -> 0.1684460619 | G195: 0.1159644314 | H195: 0.04253885776 | I195: 0.0383726859 | J195: 0.03655732491 | K195: 0.04106569413 | L195: 0.02795565987 | M195: 0.03234155826 | N195: 0.05118861046 | O195: 0.03874688368 | P195: 0.02868736801 | Q195: 0.02720976679 | R195: 0.03477255088 | S195: 0.02398013526 | T195: 0.0236694834 | U195: 0.02225411347 | V195: 0.02142903729 | W195: 0.02548262127 | X195: 0.01932318759 | Y195: 0.02527111198 | Z195: 0.01651161831 | AA195: 0.01326336637 | AB195: 0.01557526715 | AC195: 0.01508933108 | AD195: 0.01752740378 | AE195: 0.01689890109 | AF195: 0.01360431328 | AG195: 0.01351914702 | AH195: 0.01355997181 | AI195: 0.008991827192 | AJ195: 0.0102017087
C196: =IF( subgroup.idx="", "", INDEX(subgroupData.names,subgroup.idx) ) -> TOC - Virgin Trains | D196: 152 | E196: 842 | F196: =IF( INDEX(attr.selection, attr.ordered), INDEX( output.array,subgroup.idx, attr.ordered), "" ) -> 0.183911985 | G196: 0.1263803308 | H196: 0.04188942028 | I196: 0.03715196997 | J196: 0.03502163322 | K196: 0.04328330646 | L196: 0.02669537627 | M196: 0.03299415005 | N196: 0.04507556153 | O196: 0.03840927041 | P196: 0.02944360212 | Q196: 0.02762735801 | R196: 0.03481723667 | S196: 0.02379496196 | T196: 0.02185480319 | U196: 0.02318496692 | V196: 0.02188476046 | W196: 0.02520364427 | X196: 0.01762716015 | Y196: 0.02429303524 | Z196: 0.01558603441 | AA196: 0.0127371167 | AB196: 0.01418707809 | AC196: 0.01374411102 | AD196: 0.01492766432 | AE196: 0.01674918717 | AF196: 0.01204663289 | AG196: 0.01197380404 | AH196: 0.01129316671 | AI196: 0.007339861953 | AJ196: 0.008870809718
B201: Index
C204: Attribute Number | F204: =attr.idx -> 1 | G204: 2 | H204: 3 | I204: 4 | J204: 5 | K204: 6 | L204: 7 | M204: 8 | N204: 9 | O204: 10 | P204: 11 | Q204: 12 | R204: 13 | S204: 14 | T204: 15 | U204: 16 | V204: 17 | W204: 18 | X204: 19 | Y204: 20 | Z204: 21 | AA204: 22 | AB204: 23 | AC204: 24 | AD204: 25 | AE204: 26 | AF204: 27 | AG204: 28 | AH204: 29 | AI204: 30 | AJ204: 31
C205: Availability | F205: =F11 -> ü | G205: ü | H205: ü | I205: ü | J205: ü | K205: ü | L205: ü | M205: ü | N205: ü | O205: ü | P205: ü | Q205: ü | R205: ü | S205: ü | T205: ü | U205: ü | V205: ü | W205: ü | X205: ü | Y205: ü | Z205: ü | AA205: ü | AB205: ü | AC205: ü | AD205: ü | AE205: ü | AF205: ü | AG205: ü | AH205: ü | AI205: ü | AJ205: ü
C206: Groups | E206: Unweighted Base | F206: =INDEX(attr.names,attr.ordered) -> Price of train tickets offers better value for money | G206: Passengers able to get a seat on the train | H206: More trains arrive on time than happens now | I206: Less frequent major unplanned disruptions to your journey | J206: Fewer trains cancelled than happens now | K206: Trains sufficiently frequent at the times I wish to travel | L206: Less disruption due to engineering works | M206: Train company keeps passengers informed about delays | N206: Free Wi-Fi available on the train | O206: Inside of train is maintained and cleaned to a high standard | P206: Journey time is reduced | Q206: Accurate and timely information available at stations | R206: Well-maintained, clean toilet facilities on every train | S206: Accurate and timely information provided on trains | T206: Improved personal security on the train | U206: Connections with other train services are always good | V206: Good connections with other public transport at stations | W206: Easier to buy the right ticket | X206: Improved personal security at the station | Y206: Seating area on train is more comfortable | Z206: Stations maintained and cleaned to a high standard | AA206: More room to stand comfortably on busy trains | AB206: Train staff have a positive, helpful attitude | AC206: Station staff have a positive, helpful attitude | AD206: Free Wi-Fi available at the station | AE206: Sufficient space on train for passengers’ luggage | AF206: More staff available at stations to help passengers | AG206: More staff available on trains to help passengers | AH206: Access from station entrance to boarding train is step-free | AI206: Easier to claim compensation when delayed | AJ206: Better mobile phone signal on trains
C207: =IF( subgroup.idx="", "", INDEX(subgroupData.names,subgroup.idx) ) -> TOTAL (All) | D207: 1 | E207: =INDEX( unweighted.subgroup.member.count, subgroup.idx) -> 12803 | F207: =IF( INDEX(attr.selection, attr.ordered), 100*attr.select.count*INDEX( output.array,subgroup.idx, attr.ordered), "" ) -> 476.9422771 | G207: 317.5936062 | H207: 177.6351876 | I207: 166.010471 | J207: 161.4509481 | K207: 155.6686987 | L207: 115.8051377 | M207: 114.6258513 | N207: 108.0254279 | O207: 99.4826896 | P207: 97.57978268 | Q207: 95.45845022 | R207: 85.42265129 | S207: 82.68751789 | T207: 78.07754012 | U207: 72.40704412 | V207: 69.02356556 | W207: 64.99512917 | X207: 63.58344041 | Y207: 61.91371171 | Z207: 46.28645838 | AA207: 46.20743713 | AB207: 45.29583843 | AC207: 44.03793804 | AD207: 42.17478376 | AE207: 41.96845523 | AF207: 41.35440567 | AG207: 40.51552746 | AH207: 33.92650336 | AI207: 27.86327051 | AJ207: 25.98025361
C209: Custom Subgroup | E209: =IFERROR(unweighted.CustomSubgroup.member.count,"") -> 12803 | F209: =IFERROR(IF( INDEX(attr.selection, attr.ordered), 100*attr.select.count*INDEX( output.CustomSub.array,subgroup.idx, attr.ordered), "" ), "" ) -> 476.9422771 | G209: 317.5936062 | H209: 177.6351876 | I209: 166.010471 | J209: 161.4509481 | K209: 155.6686987 | L209: 115.8051377 | M209: 114.6258513 | N209: 108.0254279 | O209: 99.4826896 | P209: 97.57978268 | Q209: 95.45845022 | R209: 85.42265129 | S209: 82.68751789 | T209: 78.07754012 | U209: 72.40704412 | V209: 69.02356556 | W209: 64.99512917 | X209: 63.58344041 | Y209: 61.91371171 | Z209: 46.28645838 | AA209: 46.20743713 | AB209: 45.29583843 | AC209: 44.03793804 | AD209: 42.17478376 | AE209: 41.96845523 | AF209: 41.35440567 | AG209: 40.51552746 | AH209: 33.92650336 | AI209: 27.86327051 | AJ209: 25.98025361
C211: =IF( subgroup.idx="", "", INDEX(subgroupData.names,subgroup.idx) ) -> Country - England | D211: 2 | E211: =INDEX( unweighted.subgroup.member.count, subgroup.idx) -> 10669 | F211: =IF( INDEX(attr.selection, attr.ordered), 100*attr.select.count*INDEX( output.array,subgroup.idx, attr.ordered), "" ) -> 471.6724297 | G211: 312.092431 | H211: 179.6354575 | I211: 168.0075454 | J211: 163.6731997 | K211: 156.7121793 | L211: 117.2908651 | M211: 115.36877 | N211: 107.8067103 | O211: 97.95796631 | P211: 98.40993701 | Q211: 96.12305462 | R211: 83.78980492 | S211: 83.29889859 | T211: 78.88686532 | U211: 72.57742977 | V211: 69.33155209 | W211: 64.14909935 | X211: 64.32404077 | Y211: 61.11202086 | Z211: 46.17091335 | AA211: 46.6731409 | AB211: 45.40637071 | AC211: 44.16860058 | AD211: 42.61239606 | AE211: 41.47766822 | AF211: 41.74304123 | AG211: 40.82008518 | AH211: 34.1950774 | AI211: 28.32103138 | AJ211: 26.19141733
C212: =IF( subgroup.idx="", "", INDEX(subgroupData.names,subgroup.idx) ) -> Country - Wales | D212: 3 | E212: =INDEX( unweighted.subgroup.member.count, subgroup.idx) -> 847 | F212: =IF( INDEX(attr.selection, attr.ordered), 100*attr.select.count*INDEX( output.array,subgroup.idx, attr.ordered), "" ) -> 524.306111 | G212: 417.9539955 | H212: 139.6203188 | I212: 126.4273356 | J212: 120.0891771 | K212: 136.9783785 | L212: 87.93861266 | M212: 109.6208119 | N212: 88.42083284 | O212: 127.8868728 | P212: 75.65284998 | Q212: 91.41526573 | R212: 114.0757761 | S212: 78.46622456 | T212: 76.8167166 | U212: 73.20407208 | V212: 69.95952427 | W212: 76.4903321 | X212: 60.80727025 | Y212: 74.61196607 | Z212: 51.67026994 | AA212: 41.34779375 | AB212: 48.5280176 | AC212: 46.89557444 | AD212: 31.59794906 | AE212: 49.70157469 | AF212: 41.84731119 | AG212: 42.48602959 | AH212: 32.44706423 | AI212: 20.9097805 | AJ212: 21.82619039
C213: =IF( subgroup.idx="", "", INDEX(subgroupData.names,subgroup.idx) ) -> Country - Scotland | D213: 4 | E213: =INDEX( unweighted.subgroup.member.count, subgroup.idx) -> 1287 | F213: =IF( INDEX(attr.selection, attr.ordered), 100*attr.select.count*INDEX( output.array,subgroup.idx, attr.ordered), "" ) -> 539.001217 | G213: 363.4542039 | H213: 161.5259345 | I213: 150.5323372 | J213: 143.2299553 | K213: 146.8409945 | L213: 103.7024438 | M213: 105.2556664 | N213: 118.6173168 | O213: 111.9750486 | P213: 93.17961752 | Q213: 86.91463606 | R213: 99.45692123 | S213: 75.01444221 | T213: 66.31206469 | U213: 69.53523591 | V213: 64.02010437 | W213: 73.51202972 | X213: 53.41998327 | Y213: 69.31327785 | Z213: 46.03228428 | AA213: 40.97369462 | AB213: 42.42381605 | AC213: 41.00081154 | AD213: 39.49036787 | AE213: 46.51349142 | AF213: 35.29647843 | AG213: 35.17942876 | AH213: 30.41645195 | AI213: 23.52773421 | AJ213: 24.33201001
C215: =IF( subgroup.idx="", "", INDEX(subgroupData.names,subgroup.idx) ) -> Region - North Of England | D215: 5 | E215: =INDEX( unweighted.subgroup.member.count, subgroup.idx) -> 2765 | F215: =IF( INDEX(attr.selection, attr.ordered), 100*attr.select.count*INDEX( output.array,subgroup.idx, attr.ordered), "" ) -> 467.8817259 | G215: 333.2419997 | H215: 137.3546275 | I215: 120.7391061 | J215: 118.1783769 | K215: 134.218368 | L215: 88.55007285 | M215: 111.4397542 | N215: 126.8585613 | O215: 116.7214622 | P215: 82.38893124 | Q215: 94.80479405 | R215: 102.1883818 | S215: 82.83293045 | T215: 95.1337922 | U215: 77.35409271 | V215: 76.46856909 | W215: 76.43628071 | X215: 75.48106096 | Y215: 72.25603964 | Z215: 54.20906024 | AA215: 47.10317158 | AB215: 53.48418407 | AC215: 51.83369179 | AD215: 51.70638849 | AE215: 50.65504112 | AF215: 49.22598241 | AG215: 49.34339926 | AH215: 41.98155328 | AI215: 28.74593658 | AJ215: 31.1826638
C216: =IF( subgroup.idx="", "", INDEX(subgroupData.names,subgroup.idx) ) -> Region - North East | D216: 6 | E216: 483 | F216: =IF( INDEX(attr.selection, attr.ordered), 100*attr.select.count*INDEX( output.array,subgroup.idx, attr.ordered), "" ) -> 486.736047 | G216: 287.9426615 | H216: 130.7109002 | I216: 111.5276601 | J216: 109.1715812 | K216: 131.229601 | L216: 83.72456182 | M216: 114.4341864 | N216: 134.8609696 | O216: 117.8061553 | P216: 91.37665455 | Q216: 98.94964248 | R216: 105.6791284 | S216: 87.22125 | T216: 94.1717686 | U216: 78.08258054 | V216: 77.58319627 | W216: 83.30720886 | X216: 76.40267488 | Y216: 71.7551732 | Z216: 56.13817568 | AA216: 47.1211083 | AB216: 54.83801335 | AC216: 53.46651401 | AD216: 51.48987323 | AE216: 53.31086669 | AF216: 49.9514611 | AG216: 49.19520055 | AH216: 47.37429271 | AI216: 31.13103503 | AJ216: 33.30985744
C217: =IF( subgroup.idx="", "", INDEX(subgroupData.names,subgroup.idx) ) -> Region - North West | D217: 7 | E217: 1272 | F217: =IF( INDEX(attr.selection, attr.ordered), 100*attr.select.count*INDEX( output.array,subgroup.idx, attr.ordered), "" ) -> 442.6978174 | G217: 331.8350202 | H217: 135.3078645 | I217: 119.5302159 | J217: 117.0372473 | K217: 132.67416 | L217: 87.89639321 | M217: 111.9570439 | N217: 127.7833309 | O217: 120.027949 | P217: 78.23462795 | Q217: 94.87401732 | R217: 104.6417696 | S217: 82.80479202 | T217: 108.1988373 | U217: 79.06175309 | V217: 79.42117209 | W217: 72.25579083 | X217: 83.88775764 | Y217: 70.55554837 | Z217: 55.60815899 | AA217: 45.60858156 | AB217: 55.5028501 | AC217: 53.71596821 | AD217: 52.3484755 | AE217: 50.15385332 | AF217: 52.51190375 | AG217: 53.35716162 | AH217: 43.71082575 | AI217: 26.8050445 | AJ217: 29.99406811
C218: =IF( subgroup.idx="", "", INDEX(subgroupData.names,subgroup.idx) ) -> Region - Yorkshire | D218: 8 | E218: 1010 | F218: =IF( INDEX(attr.selection, attr.ordered), 100*attr.select.count*INDEX( output.array,subgroup.idx, attr.ordered), "" ) -> 509.5934422 | G218: 357.0322154 | H218: 144.5299144 | I218: 127.4249975 | J218: 124.6338042 | K218: 138.6949581 | L218: 92.09338508 | M218: 109.017349 | N218: 121.30148 | O218: 109.5967429 | P218: 86.54852077 | Q218: 92.74721119 | R218: 95.65840053 | S218: 80.85763314 | T218: 69.4112882 | U218: 73.59656399 | V218: 70.03878264 | W218: 81.62832957 | X218: 58.21666611 | Y218: 75.89382775 | Z218: 50.51369426 | AA218: 50.08837173 | AB218: 48.81423058 | AC218: 47.30774707 | AD218: 50.52059658 | AE218: 50.42930208 | AF218: 42.30875856 | AG218: 41.37287302 | AH218: 36.02133428 | AI218: 31.5291098 | AJ218: 32.57846954
C219: =IF( subgroup.idx="", "", INDEX(subgroupData.names,subgroup.idx) ) -> Region - East Midlands | D219: 9 | E219: 746 | F219: =IF( INDEX(attr.selection, attr.ordered), 100*attr.select.count*INDEX( output.array,subgroup.idx, attr.ordered), "" ) -> 501.051755 | G219: 377.8270498 | H219: 131.408724 | I219: 115.8446063 | J219: 111.3305682 | K219: 131.1766863 | L219: 82.82816658 | M219: 104.2036793 | N219: 119.6433194 | O219: 126.3159343 | P219: 83.69808095 | Q219: 87.70892243 | R219: 114.8120109 | S219: 76.14526073 | T219: 78.76094982 | U219: 71.51238497 | V219: 68.25735061 | W219: 79.16413686 | X219: 64.00978041 | Y219: 83.75972754 | Z219: 54.75504428 | AA219: 45.5442406 | AB219: 51.93116877 | AC219: 49.79145085 | AD219: 45.46444136 | AE219: 57.56385113 | AF219: 45.99878343 | AG219: 47.41250618 | AH219: 37.90241131 | AI219: 25.68482522 | AJ219: 28.49218254
C220: =IF( subgroup.idx="", "", INDEX(subgroupData.names,subgroup.idx) ) -> Region - West Midlands | D220: 10 | E220: 1009 | F220: =IF( INDEX(attr.selection, attr.ordered), 100*attr.select.count*INDEX( output.array,subgroup.idx, attr.ordered), "" ) -> 463.6271009 | G220: 386.0418644 | H220: 141.6997394 | I220: 122.9356964 | J220: 122.1561231 | K220: 137.8741955 | L220: 89.00117048 | M220: 110.2833339 | N220: 138.8827534 | O220: 112.744034 | P220: 85.63939729 | Q220: 93.90311949 | R220: 98.97678729 | S220: 81.40612636 | T220: 82.85779084 | U220: 73.69826896 | V220: 71.53653159 | W220: 72.26162292 | X220: 66.58651456 | Y220: 71.85763077 | Z220: 50.45473501 | AA220: 48.20751974 | AB220: 49.61832072 | AC220: 48.08041341 | AD220: 51.95800872 | AE220: 50.45819252 | AF220: 44.73112508 | AG220: 44.61381388 | AH220: 33.15319466 | AI220: 26.40538379 | AJ220: 28.34949079
C221: =IF( subgroup.idx="", "", INDEX(subgroupData.names,subgroup.idx) ) -> Region - East Of England | D221: 11 | E221: 1070 | F221: =IF( INDEX(attr.selection, attr.ordered), 100*attr.select.count*INDEX( output.array,subgroup.idx, attr.ordered), "" ) -> 585.6328607 | G221: 358.4693522 | H221: 186.9656541 | I221: 174.3183898 | J221: 168.239631 | K221: 163.4282748 | L221: 116.6163128 | M221: 106.8611831 | N221: 96.01611802 | O221: 95.5466986 | P221: 100.4804873 | Q221: 87.65668668 | R221: 78.60656692 | S221: 75.15124211 | T221: 63.31661139 | U221: 62.54535169 | V221: 55.58940447 | W221: 66.35912736 | X221: 50.81636714 | Y221: 58.36224912 | Z221: 39.22375566 | AA221: 41.35068535 | AB221: 36.99679086 | AC221: 35.87246267 | AD221: 32.18185668 | AE221: 33.31076804 | AF221: 31.61278256 | AG221: 31.09826033 | AH221: 24.18867764 | AI221: 22.57677064 | AJ221: 20.6086203
C222: =IF( subgroup.idx="", "", INDEX(subgroupData.names,subgroup.idx) ) -> Region - London | D222: 12 | E222: 2272 | F222: =IF( INDEX(attr.selection, attr.ordered), 100*attr.select.count*INDEX( output.array,subgroup.idx, attr.ordered), "" ) -> 391.1241071 | G222: 258.0487821 | H222: 199.2979904 | I222: 181.4026841 | J222: 184.0942551 | K222: 172.0529016 | L222: 129.664891 | M222: 124.7066765 | N222: 98.94822233 | O222: 89.11214609 | P222: 108.701688 | Q222: 105.2921728 | R222: 76.54475096 | S222: 91.85360726 | T222: 81.74732809 | U222: 79.89964534 | V222: 79.80153451 | W222: 54.07300713 | X222: 68.94091333 | Y222: 54.68621511 | Z222: 47.58117382 | AA222: 52.44161445 | AB222: 47.72538712 | AC222: 46.82839517 | AD222: 46.3812143 | AE222: 39.24919521 | AF222: 45.67472723 | AG222: 43.58402556 | AH222: 38.62580824 | AI222: 32.76875982 | AJ222: 29.14618029
C223: =IF( subgroup.idx="", "", INDEX(subgroupData.names,subgroup.idx) ) -> Region - South East | D223: 13 | E223: 1946 | F223: =IF( INDEX(attr.selection, attr.ordered), 100*attr.select.count*INDEX( output.array,subgroup.idx, attr.ordered), "" ) -> 531.1718699 | G223: 317.0510026 | H223: 195.7671791 | I223: 197.0697135 | J223: 183.4450476 | K223: 158.3291229 | L223: 132.1371186 | M223: 112.6547861 | N223: 98.69931847 | O223: 90.87040737 | P223: 98.99958389 | Q223: 91.07452703 | R223: 75.17302389 | S223: 78.09189328 | T223: 70.9323991 | U223: 64.21923339 | V223: 57.01153915 | W223: 63.33674824 | X223: 56.90849378 | Y223: 56.8579657 | Z223: 39.99379586 | AA223: 40.82047955 | AB223: 39.08341728 | AC223: 37.88204166 | AD223: 33.6879932 | AE223: 35.90870263 | AF223: 35.16954208 | AG223: 34.4385923 | AH223: 27.24515707 | AI223: 25.28389315 | AJ223: 20.68541162
C224: =IF( subgroup.idx="", "", INDEX(subgroupData.names,subgroup.idx) ) -> Region - South West | D224: 14 | E224: 861 | F224: =IF( INDEX(attr.selection, attr.ordered), 100*attr.select.count*INDEX( output.array,subgroup.idx, attr.ordered), "" ) -> 496.1762598 | G224: 370.2999315 | H224: 150.7687754 | I224: 137.7282321 | J224: 131.4701345 | K224: 140.5338857 | L224: 96.63335382 | M224: 107.749089 | N224: 130.9043186 | O224: 108.9052196 | P224: 93.01629841 | Q224: 89.60550734 | R224: 95.52601432 | S224: 77.42376805 | T224: 77.68423015 | U224: 71.21298869 | V224: 66.87489409 | W224: 75.03884028 | X224: 62.10441816 | Y224: 70.96563458 | Z224: 48.0333892 | AA224: 46.24269601 | AB224: 46.05034031 | AC224: 44.36674605 | AD224: 44.24485756 | AE224: 50.61758554 | AF224: 40.7598496 | AG224: 40.50430658 | AH224: 34.59088388 | AI224: 27.05921163 | AJ224: 26.9083396
C226: =IF( subgroup.idx="", "", INDEX(subgroupData.names,subgroup.idx) ) -> Journey Purpose - Commuting | D226: 15 | E226: =INDEX( unweighted.subgroup.member.count, subgroup.idx) -> 2976 | F226: =IF( INDEX(attr.selection, attr.ordered), 100*attr.select.count*INDEX( output.array,subgroup.idx, attr.ordered), "" ) -> 438.196693 | G226: 289.3571357 | H226: 196.0300177 | I226: 182.0803313 | J226: 180.3116171 | K226: 167.1871521 | L226: 127.650782 | M226: 117.0851495 | N226: 109.2996199 | O226: 87.07974606 | P226: 109.5698653 | Q226: 98.09147597 | R226: 73.93911317 | S226: 85.7265849 | T226: 73.28485704 | U226: 73.23175335 | V226: 70.94378186 | W226: 58.02168354 | X226: 61.8683087 | Y226: 58.31951324 | Z226: 44.74869768 | AA226: 51.96897166 | AB226: 44.17848717 | AC226: 43.18936731 | AD226: 47.30551674 | AE226: 39.32490435 | AF226: 40.67911584 | AG226: 39.0033083 | AH226: 30.46345885 | AI226: 32.43657693 | AJ226: 29.42641377
C227: =IF( subgroup.idx="", "", INDEX(subgroupData.names,subgroup.idx) ) -> Journey Purpose - Business | D227: 16 | E227: =INDEX( unweighted.subgroup.member.count, subgroup.idx) -> 1298 | F227: =IF( INDEX(attr.selection, attr.ordered), 100*attr.select.count*INDEX( output.array,subgroup.idx, attr.ordered), "" ) -> 528.4228814 | G227: 320.8720581 | H227: 168.9126293 | I227: 159.5637071 | J227: 152.0030421 | K227: 149.9539796 | L227: 111.1364494 | M227: 106.1879937 | N227: 146.0280335 | O227: 102.0712725 | P227: 105.1757092 | Q227: 88.12225447 | R227: 88.58932694 | S227: 76.83826504 | T227: 63.31911491 | U227: 66.27628558 | V227: 61.73022666 | W227: 67.81350415 | X227: 53.04410223 | Y227: 66.87830568 | Z227: 45.14983215 | AA227: 44.20226708 | AB227: 41.97546586 | AC227: 40.74313597 | AD227: 47.81506325 | AE227: 41.80546163 | AF227: 35.46752133 | AG227: 34.73084934 | AH227: 28.12296318 | AI227: 27.77383019 | AJ227: 29.27446833
C228: =IF( subgroup.idx="", "", INDEX(subgroupData.names,subgroup.idx) ) -> Journey Purpose - Leisure | D228: 17 | E228: =INDEX( unweighted.subgroup.member.count, subgroup.idx) -> 8496 | F228: =IF( INDEX(attr.selection, attr.ordered), 100*attr.select.count*INDEX( output.array,subgroup.idx, attr.ordered), "" ) -> 525.2244067 | G228: 366.6158119 | H228: 149.0125054 | I228: 140.6006267 | J228: 132.3033418 | K228: 137.8579295 | L228: 96.96162539 | M228: 113.7178932 | N228: 89.88442386 | O228: 120.2836384 | P228: 73.44903373 | Q228: 93.7718584 | R228: 104.3142448 | S228: 79.66791718 | T228: 92.43127452 | U228: 73.31736102 | V228: 68.42676658 | W228: 76.04983879 | X228: 70.78647879 | Y228: 66.19749396 | Z228: 49.36844416 | AA228: 36.78426968 | AB228: 48.50627951 | AC228: 46.76671299 | AD228: 30.51142574 | AE228: 46.56329503 | AF228: 44.82320113 | AG228: 45.42357895 | AH228: 42.2785897 | AI228: 19.71971632 | AJ228: 18.38001618
C230: =IF( subgroup.idx="", "", INDEX(subgroupData.names,subgroup.idx) ) -> Ticket Type - Anytime single/return | D230: 18 | E230: =INDEX( unweighted.subgroup.member.count, subgroup.idx) -> 4190 | F230: =IF( INDEX(attr.selection, attr.ordered), 100*attr.select.count*INDEX( output.array,subgroup.idx, attr.ordered), "" ) -> 485.3873445 | G230: 303.8889952 | H230: 160.4665307 | I230: 148.202989 | J230: 143.0677024 | K230: 144.6357921 | L230: 105.266218 | M230: 111.3429221 | N230: 137.5391563 | O230: 103.1123492 | P230: 96.16585501 | Q230: 93.62548269 | R230: 89.90039871 | S230: 82.04290758 | T230: 79.94028438 | U230: 71.8913833 | V230: 69.74911259 | W230: 69.81202445 | X230: 65.72504525 | Y230: 64.89770602 | Z230: 49.26671595 | AA230: 46.1779104 | AB230: 48.67925625 | AC230: 47.42241625 | AD230: 53.06917082 | AE230: 44.15486134 | AF230: 44.33256252 | AG230: 43.57470775 | AH230: 35.66327937 | AI230: 29.67039649 | AJ230: 31.32852341
C231: =IF( subgroup.idx="", "", INDEX(subgroupData.names,subgroup.idx) ) -> Ticket Type - Off peak/super off peak | D231: 19 | E231: 4866 | F231: =IF( INDEX(attr.selection, attr.ordered), 100*attr.select.count*INDEX( output.array,subgroup.idx, attr.ordered), "" ) -> 554.9069367 | G231: 345.4003481 | H231: 154.1038172 | I231: 146.0045699 | J231: 136.7914523 | K231: 140.0322625 | L231: 101.858075 | M231: 107.695101 | N231: 103.8563861 | O231: 109.0064388 | P231: 90.82563666 | Q231: 89.03096614 | R231: 94.22174645 | S231: 76.8128407 | T231: 78.84703637 | U231: 69.93968945 | V231: 64.50142699 | W231: 79.63277684 | X231: 62.69818133 | Y231: 67.2238867 | Z231: 47.17227532 | AA231: 40.72720672 | AB231: 45.8848995 | AC231: 44.26871804 | AD231: 37.29084912 | AE231: 46.35678762 | AF231: 40.64822649 | AG231: 40.60770126 | AH231: 33.79123042 | AI231: 26.09397906 | AJ231: 23.76855124
C232: =IF( subgroup.idx="", "", INDEX(subgroupData.names,subgroup.idx) ) -> Ticket Type - Advance single/return | D232: 20 | E232: 2256 | F232: =IF( INDEX(attr.selection, attr.ordered), 100*attr.select.count*INDEX( output.array,subgroup.idx, attr.ordered), "" ) -> 490.2255166 | G232: 319.0139254 | H232: 130.8296265 | I232: 119.0006679 | J232: 111.9531987 | K232: 126.1500018 | L232: 87.72256194 | M232: 102.5796845 | N232: 154.120351 | O232: 119.0005723 | P232: 92.15923198 | Q232: 86.03858039 | R232: 109.7708984 | S232: 76.90211979 | T232: 73.56333675 | U232: 74.39801803 | V232: 74.43795382 | W232: 79.44289052 | X232: 62.65252312 | Y232: 77.92567541 | Z232: 55.3738876 | AA232: 46.63262525 | AB232: 52.96663205 | AC232: 51.38520502 | AD232: 62.65561666 | AE232: 57.61055434 | AF232: 46.78766063 | AG232: 45.95863146 | AH232: 42.06804018 | AI232: 33.97522878 | AJ232: 36.69858317
C233: =IF( subgroup.idx="", "", INDEX(subgroupData.names,subgroup.idx) ) -> Ticket Type - PAYG Smartcard | D233: 21 | E233: 1263 | F233: =IF( INDEX(attr.selection, attr.ordered), 100*attr.select.count*INDEX( output.array,subgroup.idx, attr.ordered), "" ) -> 372.7663218 | G233: 267.413777 | H233: 197.472901 | I233: 179.7797035 | J233: 182.8169943 | K233: 170.0756085 | L233: 130.3322432 | M233: 125.2696521 | N233: 91.06220271 | O233: 86.98645664 | P233: 107.7624189 | Q233: 105.9330191 | R233: 73.89415498 | S233: 91.83229072 | T233: 93.10563619 | U233: 81.0780922 | V233: 80.58119972 | W233: 54.04139516 | X233: 76.81987147 | Y233: 54.51356096 | Z233: 47.27622005 | AA233: 53.52119886 | AB233: 48.2986183 | AC233: 47.24371971 | AD233: 42.20825545 | AE233: 39.85956283 | AF233: 48.20659971 | AG233: 46.43066294 | AH233: 41.98330018 | AI233: 33.70576547 | AJ233: 27.7285963
C234: =IF( subgroup.idx="", "", INDEX(subgroupData.names,subgroup.idx) ) -> Ticket Type - Weekly season | D234: 22 | E234: 484 | F234: =IF( INDEX(attr.selection, attr.ordered), 100*attr.select.count*INDEX( output.array,subgroup.idx, attr.ordered), "" ) -> 412.1110485 | G234: 260.1304318 | H234: 175.6246332 | I234: 164.6301924 | J234: 160.4074343 | K234: 152.3652593 | L234: 121.6210694 | M234: 113.9970725 | N234: 101.4501046 | O234: 95.11179921 | P234: 113.4310223 | Q234: 95.32602611 | R234: 85.08897797 | S234: 87.00762798 | T234: 78.5462855 | U234: 79.05786479 | V234: 83.87102565 | W234: 61.48782122 | X234: 69.75239173 | Y234: 64.3354073 | Z234: 53.50198333 | AA234: 53.07500118 | AB234: 53.5171294 | AC234: 52.51746781 | AD234: 52.55584436 | AE234: 46.1273873 | AF234: 50.2348697 | AG234: 48.07855811 | AH234: 37.20797197 | AI234: 41.04227441 | AJ234: 36.78801658
C235: =IF( subgroup.idx="", "", INDEX(subgroupData.names,subgroup.idx) ) -> Ticket Type - Monthly season | D235: 23 | E235: 677 | F235: =IF( INDEX(attr.selection, attr.ordered), 100*attr.select.count*INDEX( output.array,subgroup.idx, attr.ordered), "" ) -> 404.3514989 | G235: 298.2936036 | H235: 227.4797694 | I235: 220.2432871 | J235: 218.0340995 | K235: 177.3032619 | L235: 149.9342919 | M235: 121.0737385 | N235: 65.58946228 | O235: 80.43541227 | P235: 98.39003304 | Q235: 99.94863713 | R235: 67.81737281 | S235: 86.15679644 | T235: 67.75236839 | U235: 70.27227351 | V235: 67.4434289 | W235: 50.21431087 | X235: 57.91984204 | Y235: 54.95064831 | Z235: 42.1979078 | AA235: 54.95008792 | AB235: 41.4427615 | AC235: 40.47429094 | AD235: 34.67067731 | AE235: 38.24993549 | AF235: 38.22274368 | AG235: 36.19734019 | AH235: 32.07373789 | AI235: 32.56640181 | AJ235: 25.3499787
C236: =IF( subgroup.idx="", "", INDEX(subgroupData.names,subgroup.idx) ) -> Ticket Type - Annual season | D236: 24 | E236: 345 | F236: =IF( INDEX(attr.selection, attr.ordered), 100*attr.select.count*INDEX( output.array,subgroup.idx, attr.ordered), "" ) -> 476.0951465 | G236: 290.0326377 | H236: 236.2853353 | I236: 220.223132 | J236: 218.3230199 | K236: 195.2876031 | L236: 144.8448747 | M236: 119.5793581 | N236: 105.8382035 | O236: 74.30123025 | P236: 125.4009373 | Q236: 99.24388365 | R236: 58.60719165 | S236: 85.41341986 | T236: 51.82547888 | U236: 66.42283899 | V236: 61.14707492 | W236: 45.79911887 | X236: 44.45501644 | Y236: 47.31516489 | Z236: 34.32145978 | AA236: 48.23252867 | AB236: 32.43089687 | AC236: 31.96254373 | AD236: 41.12207659 | AE236: 26.24357321 | AF236: 28.019524 | AG236: 25.84589436 | AH236: 17.86312517 | AI236: 24.4392834 | AJ236: 23.07842762
C237: =IF( subgroup.idx="", "", INDEX(subgroupData.names,subgroup.idx) ) -> Ticket Type - Any season | D237: 25 | E237: 1365 | F237: =IF( INDEX(attr.selection, attr.ordered), 100*attr.select.count*INDEX( output.array,subgroup.idx, attr.ordered), "" ) -> 434.3380523 | G237: 292.9047036 | H237: 218.9353545 | I237: 207.8716706 | J237: 205.3718447 | K237: 177.9719577 | L237: 142.0944626 | M237: 118.394109 | N237: 85.95106681 | O237: 81.26705026 | P237: 110.3617241 | Q237: 98.06545763 | R237: 67.944743 | S237: 85.41637473 | T237: 64.78261922 | U237: 70.52791373 | V237: 68.03006099 | W237: 51.48684657 | X237: 55.82014092 | Y237: 55.02239233 | Z237: 41.55740622 | AA237: 52.23365813 | AB237: 40.47349079 | AC237: 39.62014423 | AD237: 39.84544985 | AE237: 36.02701556 | AF237: 36.78541319 | AG237: 34.76312452 | AH237: 27.97733974 | AI237: 31.52984318 | AJ237: 26.62856934
C238: =IF( subgroup.idx="", "", INDEX(subgroupData.names,subgroup.idx) ) -> Ticket Type - Monthly or longer season | D238: 26 | E238: 989 | F238: =IF( INDEX(attr.selection, attr.ordered), 100*attr.select.count*INDEX( output.array,subgroup.idx, attr.ordered), "" ) -> 433.8651621 | G238: 296.3386003 | H238: 231.7251944 | I238: 221.1965936 | J238: 219.0186531 | K238: 184.8487972 | L238: 148.4773371 | M238: 120.2646457 | N238: 81.39905229 | O238: 77.87905073 | P238: 109.3412772 | Q238: 99.40138164 | R238: 64.00809003 | S238: 85.53604928 | T238: 61.09593831 | U238: 68.56766061 | V238: 64.600536 | W238: 48.08850657 | X238: 52.20801157 | Y238: 51.93146319 | Z238: 38.80397237 | AA238: 52.24813452 | AB238: 37.41021588 | AC238: 36.62695775 | AD238: 36.95496839 | AE238: 33.38524827 | AF238: 33.60800135 | AG238: 31.56998314 | AH238: 26.10696588 | AI238: 29.22343992 | AJ238: 24.27011161
C240: =IF( subgroup.idx="", "", INDEX(subgroupData.names,subgroup.idx) ) -> Building Blocks - Abellio Greater Anglia - Intercity | D240: 27 | E240: 92 | F240: =IF( INDEX(attr.selection, attr.ordered), 100*attr.select.count*INDEX( output.array,subgroup.idx, attr.ordered), "" ) -> 599.0532081 | G240: 273.539303 | H240: 167.7167174 | I240: 167.9739446 | J240: 151.3721893 | K240: 140.589058 | L240: 115.6712931 | M240: 101.6882934 | N240: 97.90395418 | O240: 93.12078308 | P240: 102.5939894 | Q240: 82.1659643 | R240: 78.19740301 | S240: 71.48280372 | T240: 123.6501338 | U240: 64.04720221 | V240: 58.41845356 | W240: 74.37499806 | X240: 89.60973571 | Y240: 53.2858791 | Z240: 43.11440923 | AA240: 36.49719198 | AB240: 43.42308356 | AC240: 41.60521925 | AD240: 27.62607475 | AE240: 36.4760739 | AF240: 43.49918322 | AG240: 46.13667953 | AH240: 26.7500262 | AI240: 27.97901285 | AJ240: 20.43773843
C241: =IF( subgroup.idx="", "", INDEX(subgroupData.names,subgroup.idx) ) -> Building Blocks - Abellio Greater Anglia - Mainline | D241: 28 | E241: 129 | F241: =IF( INDEX(attr.selection, attr.ordered), 100*attr.select.count*INDEX( output.array,subgroup.idx, attr.ordered), "" ) -> 690.8404598 | G241: 334.1403817 | H241: 209.0849705 | I241: 211.1705155 | J241: 191.1994187 | K241: 162.5299728 | L241: 137.0567845 | M241: 101.8591147 | N241: 105.0765836 | O241: 88.26663003 | P241: 115.1115187 | Q241: 80.09118897 | R241: 71.89941746 | S241: 68.04899934 | T241: 33.15815315 | U241: 57.72531682 | V241: 50.84623174 | W241: 63.84832697 | X241: 28.45769295 | Y241: 47.85973869 | Z241: 29.92902693 | AA241: 27.70076542 | AB241: 25.75352199 | AC241: 24.93891512 | AD241: 32.06430041 | AE241: 26.3919529 | AF241: 18.08007548 | AG241: 17.04005802 | AH241: 11.74648149 | AI241: 21.29867567 | AJ241: 16.78480995
C242: =IF( subgroup.idx="", "", INDEX(subgroupData.names,subgroup.idx) ) -> Building Blocks - Abellio Greater Anglia - Rural | D242: 29 | E242: 24 | F242: =IF( INDEX(attr.selection, attr.ordered), 100*attr.select.count*INDEX( output.array,subgroup.idx, attr.ordered), "" ) -> 622.731682 | G242: 309.734882 | H242: 205.2227979 | I242: 195.1221209 | J242: 184.4012711 | K242: 171.8395009 | L242: 126.0955518 | M242: 135.884267 | N242: 43.87550495 | O242: 108.5134955 | P242: 63.87401176 | Q242: 109.4757338 | R242: 91.50817901 | S242: 91.93361069 | T242: 46.61287705 | U242: 72.2373995 | V242: 65.42544486 | W242: 77.06915532 | X242: 39.84573468 | Y242: 48.81336959 | Z242: 40.590095 | AA242: 29.08642644 | AB242: 38.16935342 | AC242: 37.03421335 | AD242: 8.886439207 | AE242: 34.96684104 | AF242: 30.03857524 | AG242: 27.47035364 | AH242: 19.54624077 | AI242: 17.52107959 | AJ242: 6.473792286
C243: =IF( subgroup.idx="", "", INDEX(subgroupData.names,subgroup.idx) ) -> Building Blocks - Abellio Greater Anglia - Stansted Express | D243: 30 | E243: 35 | F243: =IF( INDEX(attr.selection, attr.ordered), 100*attr.select.count*INDEX( output.array,subgroup.idx, attr.ordered), "" ) -> 480.5301846 | G243: 203.7914485 | H243: 190.0709345 | I243: 178.0684046 | J243: 181.697597 | K243: 163.1548347 | L243: 147.7880503 | M243: 91.88132822 | N243: 122.3791126 | O243: 84.69424118 | P243: 183.2432266 | Q243: 75.85310227 | R243: 76.38774981 | S243: 67.22524709 | T243: 111.2114414 | U243: 78.25289309 | V243: 73.88018135 | W243: 61.04377949 | X243: 83.5173042 | Y243: 51.16281889 | Z243: 39.81706573 | AA243: 41.99890759 | AB243: 38.30979254 | AC243: 36.78700712 | AD243: 32.31174407 | AE243: 34.92928264 | AF243: 38.61419104 | AG243: 41.72170229 | AH243: 20.60701028 | AI243: 44.10603923 | AJ243: 24.96337692
C244: =IF( subgroup.idx="", "", INDEX(subgroupData.names,subgroup.idx) ) -> Building Blocks - Abellio Greater Anglia - West Anglia | D244: 31 | E244: 67 | F244: =IF( INDEX(attr.selection, attr.ordered), 100*attr.select.count*INDEX( output.array,subgroup.idx, attr.ordered), "" ) -> 583.4840058 | G244: 298.8997078 | H244: 211.7470069 | I244: 211.4415257 | J244: 201.4126647 | K244: 170.3869777 | L244: 146.2661448 | M244: 107.9880987 | N244: 82.95886733 | O244: 88.50825066 | P244: 119.1533221 | Q244: 86.8156386 | R244: 70.52229368 | S244: 75.35972879 | T244: 60.802129 | U244: 61.41790187 | V244: 53.46164025 | W244: 60.94478807 | X244: 47.93431595 | Y244: 57.77600152 | Z244: 36.13474864 | AA244: 39.14049753 | AB244: 34.71463813 | AC244: 33.58294717 | AD244: 18.37715818 | AE244: 30.0590917 | AF244: 29.08677666 | AG244: 29.187923 | AH244: 14.77044955 | AI244: 25.56573684 | AJ244: 12.09902267
C246: =IF( subgroup.idx="", "", INDEX(subgroupData.names,subgroup.idx) ) -> Building Blocks - Arriva Trains Wales - Cardiff & Valleys | D246: 32 | E246: 408 | F246: =IF( INDEX(attr.selection, attr.ordered), 100*attr.select.count*INDEX( output.array,subgroup.idx, attr.ordered), "" ) -> 456.5549984 | G246: 429.0679565 | H246: 156.7655641 | I246: 139.2838622 | J246: 136.3896747 | K246: 146.0551898 | L246: 94.69321472 | M246: 117.0005465 | N246: 85.16186681 | O246: 117.9580819 | P246: 76.75981876 | Q246: 97.6215177 | R246: 100.2694905 | S246: 84.00633412 | T246: 85.70113807 | U246: 66.89490206 | V246: 62.62333313 | W246: 65.91578731 | X246: 67.55267342 | Y246: 69.18820466 | Z246: 50.72229384 | AA246: 48.81283887 | AB246: 49.73425235 | AC246: 48.11659849 | AD246: 33.30981183 | AE246: 45.26148197 | AF246: 44.17074327 | AG246: 44.41485716 | AH246: 34.03086182 | AI246: 23.27084105 | AJ246: 22.69126392
C247: =IF( subgroup.idx="", "", INDEX(subgroupData.names,subgroup.idx) ) -> Building Blocks - Arriva Trains Wales - Inter Urban | D247: 33 | E247: 179 | F247: =IF( INDEX(attr.selection, attr.ordered), 100*attr.select.count*INDEX( output.array,subgroup.idx, attr.ordered), "" ) -> 545.0588578 | G247: 401.6105541 | H247: 130.6894952 | I247: 114.4868342 | J247: 109.9472512 | K247: 141.0776642 | L247: 83.76271414 | M247: 100.3762688 | N247: 107.282274 | O247: 126.2785242 | P247: 123.6932568 | Q247: 84.68654203 | R247: 114.4758399 | S247: 72.40228881 | T247: 76.36971903 | U247: 69.83541932 | V247: 65.18871067 | W247: 69.79155775 | X247: 59.64883251 | Y247: 77.13874672 | Z247: 48.94102091 | AA247: 39.51034872 | AB247: 44.18267299 | AC247: 42.69565742 | AD247: 35.12982088 | AE247: 50.68465208 | AF247: 39.09521814 | AG247: 39.36166866 | AH247: 41.77652836 | AI247: 21.71422449 | AJ247: 23.10683579
C248: =IF( subgroup.idx="", "", INDEX(subgroupData.names,subgroup.idx) ) -> Building Blocks - Arriva Trains Wales - Mid Wales & Borders | D248: 34 | E248: 171 | F248: =IF( INDEX(attr.selection, attr.ordered), 100*attr.select.count*INDEX( output.array,subgroup.idx, attr.ordered), "" ) -> 535.2532919 | G248: 419.2522024 | H248: 132.9929298 | I248: 118.2838181 | J248: 113.7016437 | K248: 136.918667 | L248: 86.41538604 | M248: 100.0626409 | N248: 87.90235922 | O248: 130.2285249 | P248: 94.67344962 | Q248: 83.87549793 | R248: 121.1543987 | S248: 72.29266403 | T248: 68.60963667 | U248: 71.94540986 | V248: 66.68852001 | W248: 74.10558341 | X248: 55.6250576 | Y248: 87.26594506 | Z248: 51.15650379 | AA248: 42.78583419 | AB248: 46.33004007 | AC248: 44.64292527 | AD248: 35.51298443 | AE248: 58.69521836 | AF248: 39.77091898 | AG248: 40.04374599 | AH248: 39.50671637 | AI248: 21.66798073 | AJ248: 22.63950496
C249: =IF( subgroup.idx="", "", INDEX(subgroupData.names,subgroup.idx) ) -> Building Blocks - Arriva Trains Wales - North Wales & Borders | D249: 35 | E249: 102 | F249: =IF( INDEX(attr.selection, attr.ordered), 100*attr.select.count*INDEX( output.array,subgroup.idx, attr.ordered), "" ) -> 549.2404203 | G249: 385.1851835 | H249: 140.973269 | I249: 125.1170316 | J249: 122.8256322 | K249: 144.9923646 | L249: 95.26619909 | M249: 99.84962536 | N249: 66.90673999 | O249: 115.135811 | P249: 114.3758157 | Q249: 84.9360567 | R249: 106.8982979 | S249: 73.05886405 | T249: 66.48762804 | U249: 78.67126179 | V249: 75.19062168 | W249: 78.96596648 | X249: 54.26527295 | Y249: 89.03430567 | Z249: 48.01733168 | AA249: 43.8479669 | AB249: 44.59374091 | AC249: 43.23357179 | AD249: 26.6128078 | AE249: 57.38969018 | AF249: 39.65250071 | AG249: 39.18236567 | AH249: 43.63845589 | AI249: 25.29090582 | AJ249: 21.1642949
C250: =IF( subgroup.idx="", "", INDEX(subgroupData.names,subgroup.idx) ) -> Building Blocks - Arriva Trains Wales - South Wales & Borders / West Wales | D250: 36 | E250: 299 | F250: =IF( INDEX(attr.selection, attr.ordered), 100*attr.select.count*INDEX( output.array,subgroup.idx, attr.ordered), "" ) -> 506.8943848 | G250: 396.6224572 | H250: 137.4477746 | I250: 123.6403981 | J250: 118.3195663 | K250: 134.7517971 | L250: 87.34809871 | M250: 108.1265454 | N250: 125.5146803 | O250: 122.4186601 | P250: 84.97664533 | Q250: 90.63521506 | R250: 106.8246766 | S250: 78.46456837 | T250: 75.54706629 | U250: 67.64879978 | V250: 61.75534757 | W250: 74.82807504 | X250: 60.33559222 | Y250: 77.38086923 | Z250: 51.10741993 | AA250: 43.57471687 | AB250: 49.0381347 | AC250: 47.35939737 | AD250: 47.11346205 | AE250: 50.69015205 | AF250: 41.86078814 | AG250: 41.95192255 | AH250: 36.72259554 | AI250: 23.6331255 | AJ250: 27.46706721
C252: =IF( subgroup.idx="", "", INDEX(subgroupData.names,subgroup.idx) ) -> Building Blocks - c2c - Southend Line | D252: 37 | E252: 220 | F252: =IF( INDEX(attr.selection, attr.ordered), 100*attr.select.count*INDEX( output.array,subgroup.idx, attr.ordered), "" ) -> 527.2913759 | G252: 356.569247 | H252: 160.0914917 | I252: 136.1546596 | J252: 140.2031264 | K252: 148.9054173 | L252: 96.67776414 | M252: 117.3628455 | N252: 107.026155 | O252: 100.3167861 | P252: 74.88518395 | Q252: 98.43552565 | R252: 80.58122648 | S252: 84.15534344 | T252: 97.62669643 | U252: 70.1503278 | V252: 63.76893828 | W252: 81.39167819 | X252: 74.96607319 | Y252: 64.51976508 | Z252: 44.53654594 | AA252: 47.17768789 | AB252: 45.87866535 | AC252: 44.27154765 | AD252: 34.08999013 | AE252: 37.57444035 | AF252: 42.84138677 | AG252: 42.37529388 | AH252: 35.70595925 | AI252: 24.3704575 | AJ252: 20.09839802
... 115 more rows

Sheet Subgroups Alt
C2: Rail Priorities Simulator
C4: Preference
C10: Attribute Number | F10: 1 | G10: 2/22 | H10: 3/4/5 | I10: 6 | J10: 7 | K10: 8 | L10: 9 | M10: 10 | N10: 11 | O10: 12 | P10: 13 | Q10: 14 | R10: 15 | S10: 16 | T10: 17 | U10: 18 | V10: 19 | W10: 20 | X10: 21 | Y10: 23 | Z10: 24 | AA10: 25 | AB10: 26 | AC10: 27 | AD10: 28 | AE10: 29 | AF10: 30 | AG10: 31
C11: Availability | F11: =Subgroups!F11 -> ü | G11: =IF(OR(Subgroups!G11=CHAR(252),Subgroups!AA11=CHAR(252)),CHAR(252),"") -> ü | H11: =IF(OR(Subgroups!H11=CHAR(252),Subgroups!I11=CHAR(252),Subgroups!J11=CHAR(252)),CHAR(252),"") -> ü | I11: =Subgroups!K11 -> ü | J11: =Subgroups!L11 -> ü | K11: =Subgroups!M11 -> ü | L11: =Subgroups!N11 -> ü | M11: =Subgroups!O11 -> ü | N11: =Subgroups!P11 -> ü | O11: =Subgroups!Q11 -> ü | P11: =Subgroups!R11 -> ü | Q11: =Subgroups!S11 -> ü | R11: =Subgroups!T11 -> ü | S11: =Subgroups!U11 -> ü | T11: =Subgroups!V11 -> ü | U11: =Subgroups!W11 -> ü | V11: =Subgroups!X11 -> ü | W11: =Subgroups!Y11 -> ü | X11: =Subgroups!Z11 -> ü | Y11: =Subgroups!AB11 -> ü | Z11: =Subgroups!AC11 -> ü | AA11: =Subgroups!AD11 -> ü | AB11: =Subgroups!AE11 -> ü | AC11: =Subgroups!AF11 -> ü | AD11: =Subgroups!AG11 -> ü | AE11: =Subgroups!AH11 -> ü | AF11: =Subgroups!AI11 -> ü | AG11: =Subgroups!AJ11 -> ü
C12: Groups | D12: (Sub-grp idx) | E12: Unweighted Base | F12: =INDEX(attr.names.comb,attr.ordered.comb) -> Price of train tickets offers better value for money | G12: Able to get a seat / more room to stand | H12: Fewer unplanned disruptions / cancellations / late trains | I12: Trains sufficiently frequent at the times I wish to travel | J12: Less disruption due to engineering works | K12: Train company keeps passengers informed about delays | L12: Free Wi-Fi available on the train | M12: Journey time is reduced | N12: Accurate and timely information available at stations | O12: Inside of train is maintained and cleaned to a high standard | P12: Accurate and timely information provided on trains | Q12: Well-maintained, clean toilet facilities on every train | R12: Improved personal security on the train | S12: Connections with other train services are always good | T12: Good connections with other public transport at stations | U12: Easier to buy the right ticket | V12: Improved personal security at the station | W12: Seating area on train is more comfortable | X12: Stations maintained and cleaned to a high standard | Y12: Train staff have a positive, helpful attitude | Z12: Station staff have a positive, helpful attitude | AA12: Sufficient space on train for passengers’ luggage | AB12: Free Wi-Fi available at the station | AC12: More staff available at stations to help passengers | AD12: More staff available on trains to help passengers | AE12: Access from station entrance to boarding train is step-free | AF12: Easier to claim compensation when delayed | AG12: Better mobile phone signal on trains
C13: =IF( subgroup.idx="", "", INDEX(subgroupData.names,subgroup.idx) ) -> TOTAL (All) | D13: 1 | E13: =INDEX( unweighted.subgroup.member.count, subgroup.idx) -> 12803 | F13: =IF( INDEX(attr.selection.comb, attr.ordered.comb), INDEX( output.array.comb,subgroup.idx, attr.ordered.comb), "" ) -> 0.1729323446 | G13: 0.1140491829 | H13: 0.07746228544 | I13: 0.05900185785 | J13: 0.04576039431 | K13: 0.04268843706 | L13: 0.03720096246 | M13: 0.03617335627 | N13: 0.03538692447 | O13: 0.03515425022 | P13: 0.03055965949 | Q13: 0.03002093071 | R13: 0.02745299394 | S13: 0.02637956861 | T13: 0.02495635773 | U13: 0.02281145664 | V13: 0.02248035214 | W13: 0.02185612057 | X13: 0.01641013037 | Y13: 0.01603845898 | Z13: 0.01560222772 | AA13: 0.01480820735 | AB13: 0.01464988471 | AC13: 0.01461471185 | AD13: 0.01424337107 | AE13: 0.01193340179 | AF13: 0.01021862577 | AG13: 0.009153544947
C15: Custom Subgroup | E15: =IFERROR(unweighted.CustomSubgroup.member.count,"") -> 12803 | F15: =IFERROR(IF( INDEX(attr.selection.comb, attr.ordered.comb), INDEX( output.CustomSub.array.comb,, attr.ordered.comb), "" ),"") -> 0.1729323446 | G15: 0.1140491829 | H15: 0.07746228544 | I15: 0.05900185785 | J15: 0.04576039431 | K15: 0.04268843706 | L15: 0.03720096246 | M15: 0.03617335627 | N15: 0.03538692447 | O15: 0.03515425022 | P15: 0.03055965949 | Q15: 0.03002093071 | R15: 0.02745299394 | S15: 0.02637956861 | T15: 0.02495635773 | U15: 0.02281145664 | V15: 0.02248035214 | W15: 0.02185612057 | X15: 0.01641013037 | Y15: 0.01603845898 | Z15: 0.01560222772 | AA15: 0.01480820735 | AB15: 0.01464988471 | AC15: 0.01461471185 | AD15: 0.01424337107 | AE15: 0.01193340179 | AF15: 0.01021862577 | AG15: 0.009153544947
C17: =IF( subgroup.idx="", "", INDEX(subgroupData.names,subgroup.idx) ) -> Country - England | D17: 2 | E17: =INDEX( unweighted.subgroup.member.count, subgroup.idx) -> 10669 | F17: =IF( INDEX(attr.selection.comb, attr.ordered.comb), INDEX( output.array.comb,subgroup.idx, attr.ordered.comb), "" ) -> 0.171272049 | G17: 0.1122983646 | H17: 0.07851445264 | I17: 0.0594805432 | J17: 0.04640191612 | K17: 0.0430257787 | L17: 0.037160232 | M17: 0.03650744102 | N17: 0.03568467402 | O17: 0.03467152666 | P17: 0.03082769491 | Q17: 0.02949477277 | R17: 0.0277613213 | S17: 0.02647651996 | T17: 0.02509838498 | U17: 0.02254411496 | V17: 0.02276114719 | W17: 0.0216032238 | X17: 0.01638978075 | Y17: 0.0160959545 | Z17: 0.01566651706 | AA17: 0.01465417433 | AB17: 0.01481288479 | AC17: 0.01476590824 | AD17: 0.01436393623 | AE17: 0.01203963909 | AF17: 0.0103911075 | AG17: 0.00923593966
C18: =IF( subgroup.idx="", "", INDEX(subgroupData.names,subgroup.idx) ) -> Country - Wales | D18: 3 | E18: =INDEX( unweighted.subgroup.member.count, subgroup.idx) -> 847 | F18: =IF( INDEX(attr.selection.comb, attr.ordered.comb), INDEX( output.array.comb,subgroup.idx, attr.ordered.comb), "" ) -> 0.1852321868 | G18: 0.1461274966 | H18: 0.0576643157 | I18: 0.05014087513 | J18: 0.03355386852 | K18: 0.03962874215 | L18: 0.03018548174 | M18: 0.02747961235 | N18: 0.03289294665 | O18: 0.0442390102 | P18: 0.0281917847 | Q18: 0.03931125487 | R18: 0.02654469504 | S18: 0.02599504331 | T18: 0.0247048216 | U18: 0.0263693933 | V18: 0.02111961825 | W18: 0.02582203184 | X18: 0.01796322031 | Y18: 0.01685222943 | Z18: 0.01629206608 | AA18: 0.01721557679 | AB18: 0.01088575457 | AC18: 0.01451125012 | AD18: 0.01466325231 | AE18: 0.01126568552 | AF18: 0.007560491008 | AG18: 0.007587295077
C19: =IF( subgroup.idx="", "", INDEX(subgroupData.names,subgroup.idx) ) -> Country - Scotland | D19: 4 | E19: =INDEX( unweighted.subgroup.member.count, subgroup.idx) -> 1287 | F19: =IF( INDEX(attr.selection.comb, attr.ordered.comb), INDEX( output.array.comb,subgroup.idx, attr.ordered.comb), "" ) -> 0.1934589365 | G19: 0.1285938499 | H19: 0.06891490874 | I19: 0.05505890384 | J19: 0.0405992566 | K19: 0.03872614341 | L19: 0.04042382931 | M19: 0.03435408315 | N19: 0.03181288032 | O19: 0.0390750846 | P19: 0.02738792034 | Q19: 0.03452194007 | R19: 0.02312976429 | S19: 0.02505692042 | T19: 0.02290290384 | U19: 0.02553044492 | V19: 0.01874144927 | W19: 0.02420513841 | X19: 0.01614056547 | Y19: 0.01486691448 | Z19: 0.01437404265 | AA19: 0.01624196968 | AB19: 0.01358478772 | AC19: 0.01236762519 | AD19: 0.01226482596 | AE19: 0.0105756267 | AF19: 0.008599178729 | AG19: 0.008490105549
C21: =IF( subgroup.idx="", "", INDEX(subgroupData.names,subgroup.idx) ) -> Region - North Of England | D21: 5 | E21: =INDEX( unweighted.subgroup.member.count, subgroup.idx) -> 2765 | F21: =IF( INDEX(attr.selection.comb, attr.ordered.comb), INDEX( output.array.comb,subgroup.idx, attr.ordered.comb), "" ) -> 0.1655258312 | G21: 0.1167870031 | H21: 0.05551208727 | I21: 0.04906557219 | J21: 0.03345332983 | K21: 0.04014126157 | L21: 0.04339819421 | M21: 0.02985070713 | N21: 0.03405906819 | O21: 0.04051402147 | P21: 0.02970673142 | Q21: 0.03537382243 | R21: 0.03286767231 | S21: 0.02753100792 | T21: 0.02711833622 | U21: 0.02652800011 | V21: 0.0262163471 | W21: 0.02514091305 | X21: 0.01891700227 | Y21: 0.01865388104 | Z21: 0.01808898423 | AA21: 0.01764420197 | AB21: 0.01782609868 | AC21: 0.01715391421 | AD21: 0.01711869362 | AE21: 0.01460572524 | AF21: 0.01032392961 | AG21: 0.01087766238
C22: =IF( subgroup.idx="", "", INDEX(subgroupData.names,subgroup.idx) ) -> Region - North East | D22: 6 | E22: =INDEX( unweighted.subgroup.member.count, subgroup.idx) -> 483 | F22: =IF( INDEX(attr.selection.comb, attr.ordered.comb), INDEX( output.array.comb,subgroup.idx, attr.ordered.comb), "" ) -> 0.1702255497 | G22: 0.1007474442 | H22: 0.050608293 | I22: 0.04737581 | J22: 0.0308852641 | K22: 0.04095093059 | L22: 0.04655514974 | M22: 0.0327981612 | N22: 0.03535258817 | O22: 0.04096326284 | P22: 0.03113889334 | Q22: 0.03665476171 | R22: 0.03259191788 | S22: 0.02773115671 | T22: 0.0275463107 | U22: 0.0288036526 | V22: 0.02656471399 | W22: 0.02497085946 | X22: 0.01960711789 | Y22: 0.01914524431 | Z22: 0.01867654242 | AA22: 0.01857601875 | AB22: 0.01792382546 | AC22: 0.01742662941 | AD22: 0.01709785424 | AE22: 0.01631579711 | AF22: 0.01110366665 | AG22: 0.01166258383
C23: =IF( subgroup.idx="", "", INDEX(subgroupData.names,subgroup.idx) ) -> Region - North West | D23: 7 | E23: =INDEX( unweighted.subgroup.member.count, subgroup.idx) -> 1272 | F23: =IF( INDEX(attr.selection.comb, attr.ordered.comb), INDEX( output.array.comb,subgroup.idx, attr.ordered.comb), "" ) -> 0.1571656381 | G23: 0.1160539273 | H23: 0.05471667777 | I23: 0.04852255939 | J23: 0.03327782516 | K23: 0.04021648033 | L23: 0.04350052425 | M23: 0.02843613509 | N23: 0.03399559363 | O23: 0.04156677783 | P23: 0.02962261755 | Q23: 0.03614252749 | R23: 0.03723292792 | S23: 0.02809562244 | T23: 0.0281054769 | U23: 0.02509154394 | V23: 0.02902202753 | W23: 0.02451952777 | X23: 0.01936288706 | Y23: 0.0193125362 | Z23: 0.01870183017 | AA23: 0.01743593552 | AB23: 0.01793697162 | AC23: 0.01824953454 | AD23: 0.01845821315 | AE23: 0.01519293466 | AF23: 0.009636997172 | AG23: 0.01042774962
C24: =IF( subgroup.idx="", "", INDEX(subgroupData.names,subgroup.idx) ) -> Region - Yorkshire | D24: 8 | E24: =INDEX( unweighted.subgroup.member.count, subgroup.idx) -> 1010 | F24: =IF( INDEX(attr.selection.comb, attr.ordered.comb), INDEX( output.array.comb,subgroup.idx, attr.ordered.comb), "" ) -> 0.1800945821 | G24: 0.1256810932 | H24: 0.05937551197 | I24: 0.05093547627 | J24: 0.03499378157 | K24: 0.03961575482 | L24: 0.04173166575 | M24: 0.03131936433 | N24: 0.03358734139 | O24: 0.03819747806 | P24: 0.02921215605 | Q24: 0.03324115316 | R24: 0.02425219696 | S24: 0.02630748261 | T24: 0.02494305992 | U24: 0.02835151214 | V24: 0.02043558558 | W24: 0.02646421099 | X24: 0.01770444054 | Y24: 0.01710717913 | Z24: 0.01658949803 | AA24: 0.01762993523 | AB24: 0.01755878755 | AC24: 0.01483324495 | AD24: 0.01444542695 | AE24: 0.01263789732 | AF24: 0.01133878796 | AG24: 0.0114153954
C25: =IF( subgroup.idx="", "", INDEX(subgroupData.names,subgroup.idx) ) -> Region - East Midlands | D25: 9 | E25: =INDEX( unweighted.subgroup.member.count, subgroup.idx) -> 746 | F25: =IF( INDEX(attr.selection.comb, attr.ordered.comb), INDEX( output.array.comb,subgroup.idx, attr.ordered.comb), "" ) -> 0.1763798794 | G25: 0.1319226637 | H25: 0.05342777599 | I25: 0.04782197075 | J25: 0.03128441732 | K25: 0.03737024408 | L25: 0.04085880267 | M25: 0.03006357667 | N25: 0.0313476898 | O25: 0.04363029052 | P25: 0.02717067799 | Q25: 0.03951791857 | R25: 0.02714331668 | S25: 0.02528605468 | T25: 0.02402927208 | U25: 0.02731457961 | V25: 0.02215710404 | W25: 0.02896422929 | X25: 0.01899393853 | Y25: 0.01799883535 | Z25: 0.01726786489 | AA25: 0.01990819531 | AB25: 0.01565173107 | AC25: 0.01592302736 | AD25: 0.01634489734 | AE25: 0.01312900284 | AF25: 0.009183321042 | AG25: 0.009908722367
C26: =IF( subgroup.idx="", "", INDEX(subgroupData.names,subgroup.idx) ) -> Region - West Midlands | D26: 10 | E26: 1009 | F26: =IF( INDEX(attr.selection.comb, attr.ordered.comb), INDEX( output.array.comb,subgroup.idx, attr.ordered.comb), "" ) -> 0.1643037883 | G26: 0.1356397474 | H26: 0.05723903526 | I26: 0.05080450651 | J26: 0.03386165419 | K26: 0.03987779152 | L26: 0.04727662589 | M26: 0.03130212664 | N26: 0.0338630559 | O26: 0.03916187705 | P26: 0.02930768758 | Q26: 0.03422562195 | R26: 0.02881968194 | S26: 0.02630545104 | T26: 0.02542662158 | U26: 0.02502087592 | V26: 0.02326068889 | W26: 0.02504555303 | X26: 0.01763394268 | Y26: 0.01732980263 | Z26: 0.01680125804 | AA26: 0.0175410075 | AB26: 0.01780877408 | AC26: 0.01562566794 | AD26: 0.01552018837 | AE26: 0.01157451465 | AF26: 0.009558911237 | AG26: 0.009863542185
C27: =IF( subgroup.idx="", "", INDEX(subgroupData.names,subgroup.idx) ) -> Region - East Of England | D27: 11 | E27: =INDEX( unweighted.subgroup.member.count, subgroup.idx) -> 1070 | F27: =IF( INDEX(attr.selection.comb, attr.ordered.comb), INDEX( output.array.comb,subgroup.idx, attr.ordered.comb), "" ) -> 0.2123182209 | G27: 0.1294094958 | H27: 0.08175210492 | I27: 0.06207066682 | J27: 0.04626448936 | K27: 0.03979762229 | L27: 0.03336399244 | M27: 0.03720832223 | N27: 0.03249540739 | O27: 0.03385956385 | P27: 0.02775958822 | Q27: 0.02773334228 | R27: 0.02215274733 | S27: 0.02288039858 | T27: 0.02018145769 | U27: 0.02327179329 | V27: 0.01788653681 | W27: 0.02068549676 | X27: 0.01391888932 | Y27: 0.01307962684 | Z27: 0.01268593343 | AA27: 0.01183958731 | AB27: 0.01124538603 | AC27: 0.01112825204 | AD27: 0.01088749356 | AE27: 0.008512898074 | AF27: 0.008325681825 | AG27: 0.007285004613
C28: =IF( subgroup.idx="", "", INDEX(subgroupData.names,subgroup.idx) ) -> Region - London | D28: 12 | E28: =INDEX( unweighted.subgroup.member.count, subgroup.idx) -> 2272 | F28: =IF( INDEX(attr.selection.comb, attr.ordered.comb), INDEX( output.array.comb,subgroup.idx, attr.ordered.comb), "" ) -> 0.1449898032 | G28: 0.09512887902 | H28: 0.08646341318 | I28: 0.06630792116 | J28: 0.05155989076 | K28: 0.0470721216 | L28: 0.034310731 | M28: 0.04083630588 | N28: 0.03962657381 | O28: 0.0318706367 | P28: 0.03443361948 | Q28: 0.02717008522 | R28: 0.02912304685 | S28: 0.0294692467 | T28: 0.02917291169 | U28: 0.01930249212 | V28: 0.02466613873 | W28: 0.01956039209 | X28: 0.01703136169 | Y28: 0.01707792226 | Z28: 0.0167671347 | AA28: 0.01397864217 | AB28: 0.01620442162 | AC28: 0.01631340805 | AD28: 0.01548729101 | AE28: 0.01367689308 | AF28: 0.01205712473 | AG28: 0.01034159151
C29: =IF( subgroup.idx="", "", INDEX(subgroupData.names,subgroup.idx) ) -> Region - South East | D29: 13 | E29: =INDEX( unweighted.subgroup.member.count, subgroup.idx) -> 1946 | F29: =IF( INDEX(attr.selection.comb, attr.ordered.comb), INDEX( output.array.comb,subgroup.idx, attr.ordered.comb), "" ) -> 0.1939311665 | G29: 0.1144542314 | H29: 0.09090848385 | I29: 0.0607590328 | J29: 0.05347771558 | K29: 0.0427246608 | L29: 0.03415132441 | M29: 0.03688050204 | N29: 0.03428541059 | O29: 0.03251498095 | P29: 0.02930221378 | Q29: 0.02676704083 | R29: 0.02503938657 | S29: 0.02371256775 | T29: 0.02084608996 | U29: 0.02229210553 | V29: 0.02023331423 | W29: 0.02020963673 | X29: 0.01433582 | Y29: 0.01396070814 | Z29: 0.01353917552 | AA29: 0.01280842591 | AB29: 0.01175510779 | AC29: 0.01250714977 | AD29: 0.01217241757 | AE29: 0.009674881959 | AF29: 0.009422357354 | AG29: 0.007334091621
C30: =IF( subgroup.idx="", "", INDEX(subgroupData.names,subgroup.idx) ) -> Region - South West | D30: 14 | E30: =INDEX( unweighted.subgroup.member.count, subgroup.idx) -> 861 | F30: =IF( INDEX(attr.selection.comb, attr.ordered.comb), INDEX( output.array.comb,subgroup.idx, attr.ordered.comb), "" ) -> 0.1766982975 | G30: 0.1309880655 | H30: 0.06291600937 | I30: 0.05178684566 | J30: 0.03709333406 | K30: 0.03930148941 | L30: 0.04462743747 | M30: 0.03379392443 | N30: 0.03251625495 | O30: 0.03820454869 | P30: 0.02805639218 | Q30: 0.03335324596 | R30: 0.02723375563 | S30: 0.02546144816 | T30: 0.02378420992 | U30: 0.02604992649 | V30: 0.02185689334 | W30: 0.0248641003 | X30: 0.01690771208 | Y30: 0.01618294949 | Z30: 0.01559524759 | AA30: 0.0177086146 | AB30: 0.01530674202 | AC30: 0.01429929478 | AD30: 0.01416309151 | AE30: 0.01202579958 | AF30: 0.009812747702 | AG30: 0.009411621544
C32: =IF( subgroup.idx="", "", INDEX(subgroupData.names,subgroup.idx) ) -> Journey Purpose - Commuting | D32: 15 | E32: =INDEX( unweighted.subgroup.member.count, subgroup.idx) -> 2976 | F32: =IF( INDEX(attr.selection.comb, attr.ordered.comb), INDEX( output.array.comb,subgroup.idx, attr.ordered.comb), "" ) -> 0.1616570005 | G32: 0.1059462906 | H32: 0.08618206472 | I32: 0.06416498744 | J32: 0.0509300434 | K32: 0.04416162457 | L32: 0.0378817559 | M32: 0.04090489248 | N32: 0.03682598888 | O32: 0.03119607954 | P32: 0.03205187486 | Q32: 0.0263114306 | R32: 0.02605806498 | S32: 0.02695461029 | T32: 0.02586550139 | U32: 0.02062861411 | V32: 0.02209887409 | W32: 0.02083371732 | X32: 0.01602445924 | Y32: 0.01579739461 | Z32: 0.01545082199 | AA32: 0.01401926659 | AB32: 0.01651220708 | AC32: 0.01451113134 | AD32: 0.01384491192 | AE32: 0.01084387954 | AF32: 0.01192411675 | AG32: 0.01041839523
C33: =IF( subgroup.idx="", "", INDEX(subgroupData.names,subgroup.idx) ) -> Journey Purpose - Business | D33: 16 | E33: =INDEX( unweighted.subgroup.member.count, subgroup.idx) -> 1298 | F33: =IF( INDEX(attr.selection.comb, attr.ordered.comb), INDEX( output.array.comb,subgroup.idx, attr.ordered.comb), "" ) -> 0.1896113738 | G33: 0.1144293276 | H33: 0.07413793812 | I33: 0.05642477243 | J33: 0.04387222639 | K33: 0.03934915094 | L33: 0.04991037524 | M33: 0.03863921166 | N33: 0.03248155857 | O33: 0.03586604543 | P33: 0.02823337565 | Q33: 0.03100226027 | R33: 0.02227511289 | S33: 0.02406264654 | T33: 0.02224975783 | U33: 0.02367256921 | V33: 0.01876460299 | W33: 0.02346008397 | X33: 0.01594910566 | Y33: 0.01483707076 | Z33: 0.01440899493 | AA33: 0.01472087617 | AB33: 0.01651445611 | AC33: 0.01254721462 | AD33: 0.01222722298 | AE33: 0.009911537788 | AF33: 0.01018806266 | AG33: 0.01025306882
C34: =IF( subgroup.idx="", "", INDEX(subgroupData.names,subgroup.idx) ) -> Journey Purpose - Leisure | D34: 17 | E34: =INDEX( unweighted.subgroup.member.count, subgroup.idx) -> 8496 | F34: =IF( INDEX(attr.selection.comb, attr.ordered.comb), INDEX( output.array.comb,subgroup.idx, attr.ordered.comb), "" ) -> 0.1863637016 | G34: 0.128390702 | H34: 0.06358903687 | I34: 0.05102228024 | J34: 0.03748221236 | K34: 0.04145650025 | L34: 0.03068075272 | M34: 0.02686940559 | N34: 0.03402808279 | O34: 0.04184041722 | P34: 0.0288660741 | Q34: 0.03613991714 | R34: 0.03198490855 | S34: 0.02626586207 | T34: 0.02439432016 | U34: 0.02627694946 | V34: 0.02462782354 | W34: 0.02299539614 | X34: 0.01724658424 | Y34: 0.01691456268 | Z34: 0.01631783843 | AA34: 0.016189472 | AB34: 0.01049644813 | AC34: 0.01559841402 | AD34: 0.01572775849 | AE34: 0.01463712555 | AF34: 0.007184852348 | AG34: 0.006412601278
C36: =IF( subgroup.idx="", "", INDEX(subgroupData.names,subgroup.idx) ) -> Ticket Type - Anytime single/return | D36: 18 | E36: =INDEX( unweighted.subgroup.member.count, subgroup.idx) -> 4190 | F36: =IF( INDEX(attr.selection.comb, attr.ordered.comb), INDEX( output.array.comb,subgroup.idx, attr.ordered.comb), "" ) -> 0.1744327931 | G36: 0.1081378737 | H36: 0.0684059894 | I36: 0.0540334864 | J36: 0.0409908456 | K36: 0.04086551195 | L36: 0.04714751493 | M36: 0.03526135156 | N36: 0.03420410004 | O36: 0.03618252181 | P36: 0.02988302759 | Q36: 0.03141027836 | R36: 0.02791330118 | S36: 0.02593752808 | T36: 0.02498909267 | U36: 0.02441225658 | V36: 0.02306450634 | W36: 0.02277762154 | X36: 0.01734356801 | Y36: 0.01711094357 | Z36: 0.01667537779 | AA36: 0.01551740788 | AB36: 0.01832346909 | AC36: 0.01555256936 | AD36: 0.01522003942 | AE36: 0.01248848823 | AF36: 0.01075843458 | AG36: 0.01096010123
C37: =IF( subgroup.idx="", "", INDEX(subgroupData.names,subgroup.idx) ) -> Ticket Type - Off peak/super off peak | D37: 19 | E37: 4866 | F37: =IF( INDEX(attr.selection.comb, attr.ordered.comb), INDEX( output.array.comb,subgroup.idx, attr.ordered.comb), "" ) -> 0.1972935206 | G37: 0.1216309726 | H37: 0.06612161246 | I37: 0.05187795866 | J37: 0.03942422027 | K37: 0.03936700339 | L37: 0.03572121593 | M37: 0.03316649224 | N37: 0.03238174752 | O37: 0.03814661145 | P37: 0.02787743749 | Q37: 0.03287124056 | R37: 0.02743421755 | S37: 0.02512535154 | T37: 0.02305813643 | U37: 0.02760126362 | V37: 0.02193838852 | W37: 0.023498871 | X37: 0.01657572805 | Y37: 0.01608905471 | Z37: 0.0155297022 | AA37: 0.01624458538 | AB37: 0.01294231432 | AC37: 0.01423536385 | AD37: 0.01415564766 | AE37: 0.01185346779 | AF37: 0.00949138019 | AG37: 0.008346493935
C38: =IF( subgroup.idx="", "", INDEX(subgroupData.names,subgroup.idx) ) -> Ticket Type - Advance single/return | D38: 20 | E38: 2256 | F38: =IF( INDEX(attr.selection.comb, attr.ordered.comb), INDEX( output.array.comb,subgroup.idx, attr.ordered.comb), "" ) -> 0.1729881416 | G38: 0.111481903 | H38: 0.05305012796 | I38: 0.04572944294 | J38: 0.03293977681 | K38: 0.03676083895 | L38: 0.05244662236 | M38: 0.03314001696 | N38: 0.03070789127 | O38: 0.0413149448 | P38: 0.02740545564 | Q38: 0.03802431348 | R38: 0.0256197644 | S38: 0.02634544197 | T38: 0.02627224309 | U38: 0.0275006943 | V38: 0.02189566066 | W38: 0.02711290406 | X38: 0.01932923333 | Y38: 0.01848580414 | Z38: 0.01793749192 | AA38: 0.0200876209 | AB38: 0.02150940343 | AC38: 0.01634026721 | AD38: 0.01600834016 | AE38: 0.01465008767 | AF38: 0.01214513242 | AG38: 0.01277043454
C39: =IF( subgroup.idx="", "", INDEX(subgroupData.names,subgroup.idx) ) -> Ticket Type - PAYG Smartcard | D39: 21 | E39: 1263 | F39: =IF( INDEX(attr.selection.comb, attr.ordered.comb), INDEX( output.array.comb,subgroup.idx, attr.ordered.comb), "" ) -> 0.1384569031 | G39: 0.09823712357 | H39: 0.08508562533 | I39: 0.06545316791 | J39: 0.05162665267 | K39: 0.04731148865 | L39: 0.03156447925 | M39: 0.04072815412 | N39: 0.0398822291 | O39: 0.03117422831 | P39: 0.03446760335 | Q39: 0.02629512747 | R39: 0.03300524346 | S39: 0.02997949937 | T39: 0.02954022451 | U39: 0.01936587419 | V39: 0.02737020687 | W39: 0.01951642078 | X39: 0.01694922372 | Y39: 0.01729737383 | Z39: 0.01693314917 | AA39: 0.01420085412 | AB39: 0.014756906 | AC39: 0.01719894695 | AD39: 0.01647025969 | AE39: 0.01485767304 | AF39: 0.01243716083 | AG39: 0.009838200627
C40: =IF( subgroup.idx="", "", INDEX(subgroupData.names,subgroup.idx) ) -> Ticket Type - Weekly season | D40: 22 | E40: 484 | F40: =IF( INDEX(attr.selection.comb, attr.ordered.comb), INDEX( output.array.comb,subgroup.idx, attr.ordered.comb), "" ) -> 0.1503607096 | G40: 0.09388097885 | H40: 0.07672189577 | I40: 0.05747230833 | J40: 0.04820627719 | K40: 0.04228000945 | L40: 0.03542581922 | M40: 0.04175335841 | N40: 0.03517039183 | O40: 0.03365441735 | P40: 0.03196352033 | Q40: 0.02995872151 | R40: 0.0277384706 | S40: 0.02874880316 | T40: 0.03020705386 | U40: 0.02175318173 | V40: 0.02471500063 | W40: 0.02275656439 | X40: 0.01896883382 | Y40: 0.01897204239 | Z40: 0.01862201464 | AA40: 0.01632818724 | AB40: 0.01849184067 | AC40: 0.01778838702 | AD40: 0.0169661851 | AE40: 0.01317443664 | AF40: 0.01490284219 | AG40: 0.01301774806
C41: =IF( subgroup.idx="", "", INDEX(subgroupData.names,subgroup.idx) ) -> Ticket Type - Monthly season | D41: 23 | E41: 677 | F41: =IF( INDEX(attr.selection.comb, attr.ordered.comb), INDEX( output.array.comb,subgroup.idx, attr.ordered.comb), "" ) -> 0.1537120156 | G41: 0.111251427 | H41: 0.1054355826 | I41: 0.0700186692 | J41: 0.06162959182 | K41: 0.04677148738 | L41: 0.02347334483 | M41: 0.03766612895 | N41: 0.03836392666 | O41: 0.02926435281 | P41: 0.03291719037 | Q41: 0.02441922221 | R41: 0.02447226391 | S41: 0.02630470862 | T41: 0.02486787296 | U41: 0.01810936767 | V41: 0.02100725458 | W41: 0.01985069834 | X41: 0.01528910651 | Y41: 0.0149989056 | Z41: 0.01465444101 | AA41: 0.01372064091 | AB41: 0.012329544 | AC41: 0.01379020168 | AD41: 0.01299114072 | AE41: 0.01149374162 | AF41: 0.01212636067 | AG41: 0.009070811644
C42: =IF( subgroup.idx="", "", INDEX(subgroupData.names,subgroup.idx) ) -> Ticket Type - Annual season | D42: 24 | E42: 345 | F42: =IF( INDEX(attr.selection.comb, attr.ordered.comb), INDEX( output.array.comb,subgroup.idx, attr.ordered.comb), "" ) -> 0.1789457152 | G42: 0.1090787799 | H42: 0.1065736217 | I42: 0.07658586608 | J42: 0.05894547552 | K42: 0.04640702286 | L42: 0.03679567523 | M42: 0.04697620352 | N42: 0.03832604534 | O42: 0.02730921304 | P42: 0.03282496539 | Q42: 0.02136945277 | R42: 0.01876264966 | S42: 0.02492614435 | T42: 0.02268062533 | U42: 0.01647727817 | V42: 0.01618287279 | W42: 0.01728290308 | X42: 0.01256626546 | Y42: 0.01183485396 | Z42: 0.01166437261 | AA42: 0.00961051207 | AB42: 0.0144280945 | AC42: 0.01017552453 | AD42: 0.009334602497 | AE42: 0.006453887718 | AF42: 0.009207611519 | AG42: 0.008273765202
C43: =IF( subgroup.idx="", "", INDEX(subgroupData.names,subgroup.idx) ) -> Ticket Type - Any season | D43: 25 | E43: 1365 | F43: =IF( INDEX(attr.selection.comb, attr.ordered.comb), INDEX( output.array.comb,subgroup.idx, attr.ordered.comb), "" ) -> 0.1628818375 | G43: 0.1086648139 | H43: 0.09934055264 | I43: 0.06950153161 | J43: 0.05780046585 | K43: 0.04543320577 | L43: 0.03022038854 | M43: 0.04157442469 | N43: 0.03742183433 | O43: 0.02945560381 | P43: 0.0324373142 | Q43: 0.02441795886 | R43: 0.02327906841 | S43: 0.02626467791 | T43: 0.02501815652 | U43: 0.01845850183 | V43: 0.02014562779 | W43: 0.01982122142 | X43: 0.01502171137 | Y43: 0.01460895833 | Z43: 0.01430631478 | AA43: 0.01293799958 | AB43: 0.0140721289 | AC43: 0.0132377767 | AD43: 0.01244691595 | AE43: 0.01002136222 | AF43: 0.01170165528 | AG43: 0.009507991216
C44: =IF( subgroup.idx="", "", INDEX(subgroupData.names,subgroup.idx) ) -> Ticket Type - Monthly or longer season | D44: 26 | E44: 989 | F44: =IF( INDEX(attr.selection.comb, attr.ordered.comb), INDEX( output.array.comb,subgroup.idx, attr.ordered.comb), "" ) -> 0.1641776005 | G44: 0.1108761287 | H44: 0.106326734 | I44: 0.07281549156 | J44: 0.06082386884 | K44: 0.0465802999 | L44: 0.02870990864 | M44: 0.04146308042 | N44: 0.03827672885 | O44: 0.02845480656 | P44: 0.03278514137 | Q44: 0.0231615537 | R44: 0.0220990776 | S44: 0.02570873273 | T44: 0.02389097909 | U44: 0.01733927366 | V44: 0.01897360448 | W44: 0.0188385244 | X44: 0.01412073518 | Y44: 0.01359185025 | Z44: 0.01331188457 | AA44: 0.01205698778 | AB44: 0.01307020167 | AC44: 0.0121672762 | AD44: 0.01136676084 | AE44: 0.009385352458 | AF44: 0.01093270566 | AG44: 0.008694710407
C46: =IF( subgroup.idx="", "", INDEX(subgroupData.names,subgroup.idx) ) -> Building Blocks - Abellio Greater Anglia - Intercity | D46: 27 | E46: 92 | F46: =IF( INDEX(attr.selection.comb, attr.ordered.comb), INDEX( output.array.comb,subgroup.idx, attr.ordered.comb), "" ) -> 0.2160200905 | G46: 0.09823671726 | H46: 0.07358621849 | I46: 0.05246648067 | J46: 0.04511863657 | K46: 0.0373778502 | L46: 0.03419236499 | M46: 0.0383880788 | N46: 0.02999597853 | O46: 0.03302942841 | P46: 0.02605547002 | Q46: 0.02770718835 | R46: 0.04205221101 | S46: 0.02316825598 | T46: 0.02101634676 | U46: 0.02595852321 | V46: 0.03073226653 | W46: 0.01889186005 | X46: 0.01527592949 | Y46: 0.01529100634 | Z46: 0.01466004537 | AA46: 0.01298966927 | AB46: 0.009713277084 | AC46: 0.01515454146 | AD46: 0.0159650737 | AE46: 0.009370298523 | AF46: 0.01033368175 | AG46: 0.007252510726
C47: =IF( subgroup.idx="", "", INDEX(subgroupData.names,subgroup.idx) ) -> Building Blocks - Abellio Greater Anglia - Mainline | D47: 28 | E47: 129 | F47: =IF( INDEX(attr.selection.comb, attr.ordered.comb), INDEX( output.array.comb,subgroup.idx, attr.ordered.comb), "" ) -> 0.2530544187 | G47: 0.1216202274 | H47: 0.09367679415 | I47: 0.06223355694 | J47: 0.05500567178 | K47: 0.03844926103 | L47: 0.03687048467 | M47: 0.04337681884 | N47: 0.03003774781 | O47: 0.03181017914 | P47: 0.02547099348 | Q47: 0.02581867822 | R47: 0.01192134424 | S47: 0.0213298067 | T47: 0.01865123623 | U47: 0.02249534277 | V47: 0.01030309972 | W47: 0.0171678043 | X47: 0.01080200432 | Y47: 0.009252616799 | Z47: 0.0089614145 | AA47: 0.009531300059 | AB47: 0.01134321032 | AC47: 0.006484417306 | AD47: 0.006077157525 | AE47: 0.00416623177 | AF47: 0.008037811408 | AG47: 0.00605036986
C48: =IF( subgroup.idx="", "", INDEX(subgroupData.names,subgroup.idx) ) -> Building Blocks - Abellio Greater Anglia - Rural | D48: 29 | E48: =INDEX( unweighted.subgroup.member.count, subgroup.idx) -> 24 | F48: =IF( INDEX(attr.selection.comb, attr.ordered.comb), INDEX( output.array.comb,subgroup.idx, attr.ordered.comb), "" ) -> 0.2237811973 | G48: 0.1117385528 | H48: 0.08918410283 | I48: 0.06557235453 | J48: 0.04970904808 | K48: 0.05176945089 | L48: 0.01477548491 | M48: 0.0234980276 | N48: 0.04171934115 | O48: 0.03900501223 | P48: 0.03483359999 | Q48: 0.03267847619 | R48: 0.01717186391 | S48: 0.026788648 | T48: 0.02408876698 | U48: 0.02701055434 | V48: 0.01473257663 | W48: 0.01736766241 | X48: 0.01470182195 | Y48: 0.013853961 | Z48: 0.01346518793 | AA48: 0.01241865634 | AB48: 0.003081438618 | AC48: 0.01101150347 | AD48: 0.009992167518 | AE48: 0.007200855548 | AF48: 0.006500428951 | AG48: 0.002349257828
C49: =IF( subgroup.idx="", "", INDEX(subgroupData.names,subgroup.idx) ) -> Building Blocks - Abellio Greater Anglia - Stansted Express | D49: 30 | E49: =INDEX( unweighted.subgroup.member.count, subgroup.idx) -> 35 | F49: =IF( INDEX(attr.selection.comb, attr.ordered.comb), INDEX( output.array.comb,subgroup.idx, attr.ordered.comb), "" ) -> 0.1758049975 | G49: 0.07480112418 | H49: 0.07853360638 | I49: 0.0628475254 | J49: 0.05852927816 | K49: 0.03455621906 | L49: 0.0417548367 | M49: 0.07145391665 | N49: 0.02841729461 | O49: 0.02980405314 | P49: 0.02517311709 | Q49: 0.02674397028 | R49: 0.03795326358 | S49: 0.02959870551 | T49: 0.02778318928 | U49: 0.02222988268 | V49: 0.02881751148 | W49: 0.01850452722 | X49: 0.01421950335 | Y49: 0.01366596055 | Z49: 0.01313436631 | AA49: 0.01273489298 | AB49: 0.0112909956 | AC49: 0.01363385213 | AD49: 0.01452648295 | AE49: 0.007530984194 | AF49: 0.01710495963 | AG49: 0.008850983458
C50: =IF( subgroup.idx="", "", INDEX(subgroupData.names,subgroup.idx) ) -> Building Blocks - Abellio Greater Anglia - West Anglia | D50: 31 | E50: =INDEX( unweighted.subgroup.member.count, subgroup.idx) -> 67 | F50: =IF( INDEX(attr.selection.comb, attr.ordered.comb), INDEX( output.array.comb,subgroup.idx, attr.ordered.comb), "" ) -> 0.2124628316 | G50: 0.1080274315 | H50: 0.09968752114 | I50: 0.06601493393 | J50: 0.06045386683 | K50: 0.04143255733 | L50: 0.02885998974 | M50: 0.04524932427 | N50: 0.03310928958 | O50: 0.03167643734 | P50: 0.0286183347 | Q50: 0.0251763721 | R50: 0.02130721515 | S50: 0.02332300425 | T50: 0.02019179166 | U50: 0.02155289176 | V50: 0.01698616054 | W50: 0.02076351074 | X50: 0.01301067886 | Y50: 0.01241431564 | Z50: 0.01201538933 | AA50: 0.01095400151 | AB50: 0.006464400588 | AC50: 0.01035542518 | AD50: 0.0102775649 | AE50: 0.005351139969 | AF50: 0.009928916102 | AG50: 0.004334703733
C52: =IF( subgroup.idx="", "", INDEX(subgroupData.names,subgroup.idx) ) -> Building Blocks - Arriva Trains Wales - Cardiff & Valleys | D52: 32 | E52: =INDEX( unweighted.subgroup.member.count, subgroup.idx) -> 408 | F52: =IF( INDEX(attr.selection.comb, attr.ordered.comb), INDEX( output.array.comb,subgroup.idx, attr.ordered.comb), "" ) -> 0.1629434947 | G52: 0.1523368133 | H52: 0.06611012127 | I52: 0.05431693721 | J52: 0.036678661 | K52: 0.04295941185 | L52: 0.02912874129 | M52: 0.02801261998 | N52: 0.03567680909 | O52: 0.04121635214 | P52: 0.03063565308 | Q52: 0.03486340831 | R52: 0.02971834438 | S52: 0.0240241947 | T52: 0.02234330435 | U52: 0.02284611731 | V52: 0.02355975329 | W52: 0.02418327167 | X52: 0.01779503905 | Y52: 0.01741701751 | Z52: 0.01686032968 | AA52: 0.01579267567 | AB52: 0.01152615143 | AC52: 0.01543410833 | AD52: 0.01544022268 | AE52: 0.01180855495 | AF52: 0.008441076082 | AG52: 0.007930815708
C53: =IF( subgroup.idx="", "", INDEX(subgroupData.names,subgroup.idx) ) -> Building Blocks - Arriva Trains Wales - Inter Urban | D53: 33 | E53: =INDEX( unweighted.subgroup.member.count, subgroup.idx) -> 179 | F53: =IF( INDEX(attr.selection.comb, attr.ordered.comb), INDEX( output.array.comb,subgroup.idx, attr.ordered.comb), "" ) -> 0.1904272723 | G53: 0.1393284803 | H53: 0.05167142882 | I53: 0.05115856594 | J53: 0.03123883681 | K53: 0.0359326725 | L53: 0.03654663332 | M53: 0.04482133552 | N53: 0.03025917063 | O53: 0.04353467415 | P53: 0.02586179245 | Q53: 0.03935253788 | R53: 0.02625915101 | S53: 0.02488902258 | T53: 0.02323853739 | U53: 0.02406611871 | V53: 0.02061410046 | W53: 0.02667646799 | X53: 0.01697877509 | Y53: 0.01532762474 | Z53: 0.01482096604 | AA53: 0.01753481709 | AB53: 0.0120650772 | AC53: 0.01355193563 | AD53: 0.01358090663 | AE53: 0.01440371174 | AF53: 0.007838174491 | AG53: 0.008021212611
C54: =IF( subgroup.idx="", "", INDEX(subgroupData.names,subgroup.idx) ) -> Building Blocks - Arriva Trains Wales - Mid Wales & Borders | D54: 34 | E54: 171 | F54: =IF( INDEX(attr.selection.comb, attr.ordered.comb), INDEX( output.array.comb,subgroup.idx, attr.ordered.comb), "" ) -> 0.1882741671 | G54: 0.1454382018 | H54: 0.05358288238 | I54: 0.05035393382 | J54: 0.03287348371 | K54: 0.03584963112 | L54: 0.02989575925 | M54: 0.03497163258 | N54: 0.02999858437 | O54: 0.04487451331 | P54: 0.02583967789 | Q54: 0.0415996756 | R54: 0.02367166332 | S54: 0.02569766569 | T54: 0.02375960612 | U54: 0.02550511 | V54: 0.01928068832 | W54: 0.03006136676 | X54: 0.0177376128 | Y54: 0.01605005194 | Z54: 0.0154748987 | AA54: 0.02018738977 | AB54: 0.01214958747 | AC54: 0.01377010544 | AD54: 0.01381082577 | AE54: 0.0136421426 | AF54: 0.007796903863 | AG54: 0.007852238566
C55: =IF( subgroup.idx="", "", INDEX(subgroupData.names,subgroup.idx) ) -> Building Blocks - Arriva Trains Wales - North Wales & Borders | D55: 35 | E55: 102 | F55: =IF( INDEX(attr.selection.comb, attr.ordered.comb), INDEX( output.array.comb,subgroup.idx, attr.ordered.comb), "" ) -> 0.1926519407 | G55: 0.1338060667 | H55: 0.05712195713 | I55: 0.05376780852 | J55: 0.03643818494 | K55: 0.03614658964 | L55: 0.0230566756 | M55: 0.04269169251 | N55: 0.03069727613 | O55: 0.03965976103 | P55: 0.02638653 | Q55: 0.036682277 | R55: 0.02299218953 | S55: 0.02839379956 | T55: 0.02709927144 | U55: 0.02729738289 | V55: 0.01886934369 | W55: 0.0307166992 | X55: 0.01669275349 | Y55: 0.01550055404 | Z55: 0.01503824136 | AA55: 0.01984424334 | AB55: 0.009311532379 | AC55: 0.01378454327 | AD55: 0.01354877095 | AE55: 0.01517970776 | AF55: 0.009186343293 | AG55: 0.007437863976
C56: =IF( subgroup.idx="", "", INDEX(subgroupData.names,subgroup.idx) ) -> Building Blocks - Arriva Trains Wales - South Wales & Borders / West Wales | D56: 36 | E56: 299 | F56: =IF( INDEX(attr.selection.comb, attr.ordered.comb), INDEX( output.array.comb,subgroup.idx, attr.ordered.comb), "" ) -> 0.1787633854 | G56: 0.1382177863 | H56: 0.05683169784 | I56: 0.04932316664 | J56: 0.03335827353 | K56: 0.03918417131 | L56: 0.04259607157 | M56: 0.03079974925 | N56: 0.03269397199 | O56: 0.04239180018 | P56: 0.02826230634 | Q56: 0.03686435173 | R56: 0.02616757766 | S56: 0.02411469006 | T56: 0.02192731843 | U56: 0.0258133734 | V56: 0.02101523789 | W56: 0.0267692382 | X56: 0.01780684212 | Y56: 0.01707557312 | Z56: 0.01650104897 | AA56: 0.01755791289 | AB56: 0.01612927475 | AC56: 0.01457467 | AD56: 0.01453812682 | AE56: 0.01268578594 | AF56: 0.008522977119 | AG56: 0.009513620582
C58: =IF( subgroup.idx="", "", INDEX(subgroupData.names,subgroup.idx) ) -> Building Blocks - c2c - Southend Line | D58: 37 | E58: 220 | F58: =IF( INDEX(attr.selection.comb, attr.ordered.comb), INDEX( output.array.comb,subgroup.idx, attr.ordered.comb), "" ) -> 0.1857885087 | G58: 0.1271631481 | H58: 0.06630521863 | I58: 0.0555793484 | J58: 0.0372230916 | K58: 0.04332309148 | L58: 0.03628676318 | M58: 0.02762325439 | N58: 0.03622976497 | O58: 0.03508015414 | P58: 0.030925362 | Q58: 0.02804969989 | R58: 0.03398215441 | S58: 0.02539549965 | T58: 0.02301970568 | U58: 0.02822360083 | V58: 0.02625754767 | W58: 0.02261842153 | X58: 0.0157071123 | Y58: 0.01618158753 | Z58: 0.01563147803 | AA58: 0.01320455925 | AB58: 0.0117516971 | AC58: 0.01510362892 | AD58: 0.01484805327 | AE58: 0.01251450248 | AF58: 0.008926529709 | AG58: 0.007056516232
C59: =IF( subgroup.idx="", "", INDEX(subgroupData.names,subgroup.idx) ) -> Building Blocks - c2c - Tilbury Line | D59: 38 | E59: 199 | F59: =IF( INDEX(attr.selection.comb, attr.ordered.comb), INDEX( output.array.comb,subgroup.idx, attr.ordered.comb), "" ) -> 0.1826742788 | G59: 0.1366850486 | H59: 0.05800919317 | I59: 0.05559242296 | J59: 0.03317789813 | K59: 0.03901504499 | L59: 0.06016016401 | M59: 0.03299662232 | N59: 0.03321256903 | O59: 0.03360142215 | P59: 0.02831591284 | Q59: 0.02704345531 | R59: 0.02763879053 | S59: 0.02616899589 | T59: 0.02408408279 | U59: 0.02656943216 | V59: 0.0220067872 | W59: 0.02257468128 | X59: 0.01479408866 | Y59: 0.01472469687 | Z59: 0.01423409608 | AA59: 0.01284672081 | AB59: 0.01812360749 | AC59: 0.01326871197 | AD59: 0.01292146278 | AE59: 0.01132799462 | AF59: 0.009182158834 | AG59: 0.009049659811
C61: =IF( subgroup.idx="", "", INDEX(subgroupData.names,subgroup.idx) ) -> Building Blocks - Chiltern Railways - Commuter | D61: 39 | E61: 141 | F61: =IF( INDEX(attr.selection.comb, attr.ordered.comb), INDEX( output.array.comb,subgroup.idx, attr.ordered.comb), "" ) -> 0.1616894787 | G61: 0.146056957 | H61: 0.06508862706 | I61: 0.0572091401 | J61: 0.03561024533 | K61: 0.04279781632 | L61: 0.06682759021 | M61: 0.03414163881 | N61: 0.03761972092 | O61: 0.03368284118 | P61: 0.03272064463 | Q61: 0.02762797155 | R61: 0.01621574585 | S61: 0.02475117955 | T61: 0.02626223073 | U61: 0.01899005459 | V61: 0.01465329279 | W61: 0.0269273034 | X61: 0.01445391227 | Y61: 0.01287769997 | Z61: 0.01285249328 | AA61: 0.01370714104 | AB61: 0.02455581897 | AC61: 0.01064995473 | AD61: 0.009452761866 | AE61: 0.00987140429 | AF61: 0.009266605067 | AG61: 0.01343972979
C62: =IF( subgroup.idx="", "", INDEX(subgroupData.names,subgroup.idx) ) -> Building Blocks - Chiltern Railways - Metro | D62: 40 | E62: 81 | F62: =IF( INDEX(attr.selection.comb, attr.ordered.comb), INDEX( output.array.comb,subgroup.idx, attr.ordered.comb), "" ) -> 0.1827966582 | G62: 0.168348176 | H62: 0.05309419225 | I62: 0.05438331615 | J62: 0.02867041713 | K62: 0.03774081149 | L62: 0.02555785465 | M62: 0.03340536031 | N62: 0.03254202789 | O62: 0.04417582866 | P62: 0.02816217765 | Q62: 0.03719361963 | R62: 0.02256597915 | S62: 0.02404801501 | T62: 0.02211287393 | U62: 0.02553462317 | V62: 0.01829057187 | W62: 0.03699686112 | X62: 0.01753937152 | Y62: 0.01534460383 | Z62: 0.01476740399 | AA62: 0.01756710675 | AB62: 0.009744524058 | AC62: 0.01245476988 | AD62: 0.01244054839 | AE62: 0.009073062515 | AF62: 0.007995796876 | AG62: 0.007453447939
C63: =IF( subgroup.idx="", "", INDEX(subgroupData.names,subgroup.idx) ) -> Building Blocks - Chiltern Railways - Oxford | D63: 41 | E63: 22 | F63: =IF( INDEX(attr.selection.comb, attr.ordered.comb), INDEX( output.array.comb,subgroup.idx, attr.ordered.comb), "" ) -> 0.2509717336 | G63: 0.1491350771 | H63: 0.08700698781 | I63: 0.05488645806 | J63: 0.05069019739 | K63: 0.03894905514 | L63: 0.01205373612 | M63: 0.02736691284 | N63: 0.02882279463 | O63: 0.03415823241 | P63: 0.02396737895 | Q63: 0.02726277673 | R63: 0.02909538566 | S63: 0.0198425122 | T63: 0.01532421421 | U63: 0.01859273421 | V63: 0.02276585339 | W63: 0.02059928187 | X63: 0.01222775713 | Y63: 0.01161681812 | Z63: 0.0109419515 | AA63: 0.01293687177 | AB63: 0.003370176128 | AC63: 0.01129542532 | AD63: 0.01153590565 | AE63: 0.00445972292 | AF63: 0.006690395952 | AG63: 0.003433653253
C64: =IF( subgroup.idx="", "", INDEX(subgroupData.names,subgroup.idx) ) -> Building Blocks - Chiltern Railways - West Midlands | D64: 42 | E64: 139 | F64: =IF( INDEX(attr.selection.comb, attr.ordered.comb), INDEX( output.array.comb,subgroup.idx, attr.ordered.comb), "" ) -> 0.1979953817 | G64: 0.1763457929 | H64: 0.04836147447 | I64: 0.04765295264 | J64: 0.0255099765 | K64: 0.03343488876 | L64: 0.05413425533 | M64: 0.02847968947 | N64: 0.02900475687 | O64: 0.04094131621 | P64: 0.02447849503 | Q64: 0.03632314801 | R64: 0.02122778222 | S64: 0.02079475682 | T64: 0.0185799824 | U64: 0.02644798987 | V64: 0.01673644634 | W64: 0.02904840221 | X64: 0.0160160081 | Y64: 0.01432803569 | Z64: 0.01377528301 | AA64: 0.01835157723 | AB64: 0.01458243182 | AC64: 0.01154707245 | AD64: 0.01187895232 | AE64: 0.009258687674 | AF64: 0.006072938749 | AG64: 0.008691525194
C66: =IF( subgroup.idx="", "", INDEX(subgroupData.names,subgroup.idx) ) -> Building Blocks - CrossCountry - East-West | D66: 43 | E66: 117 | F66: =IF( INDEX(attr.selection.comb, attr.ordered.comb), INDEX( output.array.comb,subgroup.idx, attr.ordered.comb), "" ) -> 0.1832312492 | G66: 0.1255869016 | H66: 0.05690807558 | I66: 0.04583816496 | J66: 0.03488384565 | K66: 0.03945954649 | L66: 0.0388326124 | M66: 0.02650899204 | N66: 0.0332241892 | O66: 0.03913869769 | P66: 0.02846956182 | Q66: 0.03586355759 | R66: 0.02879152524 | S66: 0.02572614645 | T66: 0.02597912862 | U66: 0.02818195613 | V66: 0.02328357855 | W66: 0.02570984019 | X66: 0.01722940621 | Y66: 0.01716027697 | Z66: 0.01674107014 | AA66: 0.01856055529 | AB66: 0.01606579801 | AC66: 0.01707240387 | AD66: 0.01713522119 | AE66: 0.01579918538 | AF66: 0.009374777881 | AG66: 0.009243735717
C67: =IF( subgroup.idx="", "", INDEX(subgroupData.names,subgroup.idx) ) -> Building Blocks - CrossCountry - North-South Manchester | D67: 44 | E67: 124 | F67: =IF( INDEX(attr.selection.comb, attr.ordered.comb), INDEX( output.array.comb,subgroup.idx, attr.ordered.comb), "" ) -> 0.2381770358 | G67: 0.1234126586 | H67: 0.05378025607 | I67: 0.04949665415 | J67: 0.03002057905 | K67: 0.03796173822 | L67: 0.04693027092 | M67: 0.03100509544 | N67: 0.03120121999 | O67: 0.03946429282 | P67: 0.02671798308 | Q67: 0.03582211024 | R67: 0.01839203912 | S67: 0.02424818531 | T67: 0.02175985094 | U67: 0.03247181852 | V67: 0.01513228319 | W67: 0.02495638377 | X67: 0.01540184713 | Y67: 0.01386760102 | Z67: 0.01331689636 | AA67: 0.01822023197 | AB67: 0.01459054272 | AC67: 0.01036100615 | AD67: 0.01027989853 | AE67: 0.007798599908 | AF67: 0.006982188844 | AG67: 0.00823073219
C68: =IF( subgroup.idx="", "", INDEX(subgroupData.names,subgroup.idx) ) -> Building Blocks - CrossCountry - North-South Scotland & North East | D68: 45 | E68: 190 | F68: =IF( INDEX(attr.selection.comb, attr.ordered.comb), INDEX( output.array.comb,subgroup.idx, attr.ordered.comb), "" ) -> 0.2384301491 | G68: 0.1207408357 | H68: 0.05108318185 | I68: 0.04690592425 | J68: 0.02942653622 | K68: 0.03643193065 | L68: 0.05024084307 | M68: 0.02924798227 | N68: 0.02995678052 | O68: 0.04013093053 | P68: 0.0257892196 | Q68: 0.03539203636 | R68: 0.0226926896 | S68: 0.02337025433 | T68: 0.02060490413 | U68: 0.0344995788 | V68: 0.01798625857 | W68: 0.02405626124 | X68: 0.01581027179 | Y68: 0.01442467359 | Z68: 0.01385463343 | AA68: 0.01664882267 | AB68: 0.01574201322 | AC68: 0.01126386266 | AD68: 0.0113349626 | AE68: 0.008694614536 | AF68: 0.006837664814 | AG68: 0.008402183951
C70: =IF( subgroup.idx="", "", INDEX(subgroupData.names,subgroup.idx) ) -> Building Blocks - East Midlands Trains - Liverpool - Norwich | D70: 46 | E70: 113 | F70: =IF( INDEX(attr.selection.comb, attr.ordered.comb), INDEX( output.array.comb,subgroup.idx, attr.ordered.comb), "" ) -> 0.1934167494 | G70: 0.1454361449 | H70: 0.05728343479 | I70: 0.0484677007 | J70: 0.03105402309 | K70: 0.0409849812 | L70: 0.04008809473 | M70: 0.02427187162 | N70: 0.03400222872 | O70: 0.04406648408 | P70: 0.02885609648 | Q70: 0.03950555265 | R70: 0.0263405274 | S70: 0.0214451805 | T70: 0.01892400716 | U70: 0.02519870037 | V70: 0.02115882268 | W70: 0.02489661307 | X70: 0.01762201558 | Y70: 0.01608880552 | Z70: 0.01553759265 | AA70: 0.01763355343 | AB70: 0.01279350634 | AC70: 0.01354321156 | AD70: 0.01372997969 | AE70: 0.01203188578 | AF70: 0.007075377808 | AG70: 0.008546858142
C71: =IF( subgroup.idx="", "", INDEX(subgroupData.names,subgroup.idx) ) -> Building Blocks - East Midlands Trains - Local | D71: 47 | E71: 176 | F71: =IF( INDEX(attr.selection.comb, attr.ordered.comb), INDEX( output.array.comb,subgroup.idx, attr.ordered.comb), "" ) -> 0.168629444 | G71: 0.1329492075 | H71: 0.06079360044 | I71: 0.05215286271 | J71: 0.03424741109 | K71: 0.04345484126 | L71: 0.03444863811 | M71: 0.02577960919 | N71: 0.03653814357 | O71: 0.04182999402 | P71: 0.03118118439 | Q71: 0.03618870298 | R71: 0.03302493701 | S71: 0.02627386008 | T71: 0.02402305998 | U71: 0.02675406661 | V71: 0.02576996518 | W71: 0.02312568648 | X71: 0.01843073965 | Y71: 0.01818083829 | Z71: 0.01742652202 | AA71: 0.0176683468 | AB71: 0.01185908434 | AC71: 0.01624491514 | AD71: 0.01685958065 | AE71: 0.009755793599 | AF71: 0.00844091699 | AG71: 0.007968048
C72: =IF( subgroup.idx="", "", INDEX(subgroupData.names,subgroup.idx) ) -> Building Blocks - East Midlands Trains - London | D72: 48 | E72: 297 | F72: =IF( INDEX(attr.selection.comb, attr.ordered.comb), INDEX( output.array.comb,subgroup.idx, attr.ordered.comb), "" ) -> 0.1994027323 | G72: 0.1410116246 | H72: 0.05352001177 | I72: 0.04894100076 | J72: 0.03031833866 | K72: 0.03728966457 | L72: 0.04980016656 | M72: 0.02911718148 | N72: 0.0311985016 | O72: 0.04258381828 | P72: 0.02670774307 | Q72: 0.03788501912 | R72: 0.02342863595 | S72: 0.02293308075 | T72: 0.02067926164 | U72: 0.02817075633 | V72: 0.01882463983 | W72: 0.02545834622 | X72: 0.01689969007 | Y72: 0.01534685181 | Z72: 0.0147576992 | AA72: 0.01759169318 | AB72: 0.01572342977 | AC72: 0.0123746577 | AD72: 0.01247935488 | AE72: 0.01022514823 | AF72: 0.008091650565 | AG72: 0.009239301113
C74: =IF( subgroup.idx="", "", INDEX(subgroupData.names,subgroup.idx) ) -> Building Blocks - First TransPennine Express - North | D74: 49 | E74: =INDEX( unweighted.subgroup.member.count, subgroup.idx) -> 238 | F74: =IF( INDEX(attr.selection.comb, attr.ordered.comb), INDEX( output.array.comb,subgroup.idx, attr.ordered.comb), "" ) -> 0.1858525878 | G74: 0.1433881224 | H74: 0.07047167569 | I74: 0.05322500707 | J74: 0.04156392722 | K74: 0.03874283678 | L74: 0.03573417678 | M74: 0.03258585796 | N74: 0.03134257655 | O74: 0.03998198748 | P74: 0.02674890882 | Q74: 0.03527874307 | R74: 0.02011175151 | S74: 0.02410500475 | T74: 0.02179207315 | U74: 0.02491595233 | V74: 0.01667531411 | W74: 0.0270660906 | X74: 0.01619395457 | Y74: 0.01499520623 | Z74: 0.01442032441 | AA74: 0.01880410044 | AB74: 0.01222991092 | AC74: 0.01282846428 | AD74: 0.01295332117 | AE74: 0.01060269523 | AF74: 0.009615972975 | AG74: 0.007773455655
C75: =IF( subgroup.idx="", "", INDEX(subgroupData.names,subgroup.idx) ) -> Building Blocks - First TransPennine Express - North West | D75: 50 | E75: 56 | F75: =IF( INDEX(attr.selection.comb, attr.ordered.comb), INDEX( output.array.comb,subgroup.idx, attr.ordered.comb), "" ) -> 0.1746245889 | G75: 0.150770754 | H75: 0.07498789556 | I75: 0.0457114611 | J75: 0.04680513811 | K75: 0.04188679162 | L75: 0.03322658192 | M75: 0.02895230039 | N75: 0.03143770977 | O75: 0.05188250573 | P75: 0.02699654064 | Q75: 0.04607073127 | R75: 0.01890929823 | S75: 0.02125166197 | T75: 0.01902125533 | U75: 0.02137288068 | V75: 0.01590353094 | W75: 0.02735620805 | X75: 0.01729479847 | Y75: 0.01461603988 | Z75: 0.01387268328 | AA75: 0.01756078507 | AB75: 0.009651041986 | AC75: 0.01114001818 | AD75: 0.01123558369 | AE75: 0.01151133468 | AF75: 0.01022014674 | AG75: 0.005729733741
C76: =IF( subgroup.idx="", "", INDEX(subgroupData.names,subgroup.idx) ) -> Building Blocks - First TransPennine Express - South | D76: 51 | E76: 81 | F76: =IF( INDEX(attr.selection.comb, attr.ordered.comb), INDEX( output.array.comb,subgroup.idx, attr.ordered.comb), "" ) -> 0.2100613962 | G76: 0.142665668 | H76: 0.05249414581 | I76: 0.04820177973 | J76: 0.03266662466 | K76: 0.03463594269 | L76: 0.04677321848 | M76: 0.03488786284 | N76: 0.02842437051 | O76: 0.04175191651 | P76: 0.02492137628 | Q76: 0.03521597956 | R76: 0.01990244371 | S76: 0.02437939811 | T76: 0.02261046604 | U76: 0.02779238262 | V76: 0.01662584623 | W76: 0.02855236189 | X76: 0.0160834873 | Y76: 0.01406001117 | Z76: 0.01354873298 | AA76: 0.0150309139 | AB76: 0.01769940893 | AC76: 0.01101968839 | AD76: 0.01069722063 | AE76: 0.009359643511 | AF76: 0.01006595801 | AG76: 0.00987175528
C78: =IF( subgroup.idx="", "", INDEX(subgroupData.names,subgroup.idx) ) -> Building Blocks - Grand Central - London - Bradford | D78: 52 | E78: 38 | F78: =IF( INDEX(attr.selection.comb, attr.ordered.comb), INDEX( output.array.comb,subgroup.idx, attr.ordered.comb), "" ) -> 0.172446429 | G78: 0.1548638298 | H78: 0.0395149603 | I78: 0.0349644439 | J78: 0.02178630816 | K78: 0.03176091076 | L78: 0.0678827577 | M78: 0.02420742817 | N78: 0.0253486903 | O78: 0.05742891859 | P78: 0.02302890801 | Q78: 0.05497930969 | R78: 0.02435067036 | S78: 0.01760079175 | T78: 0.0167563756 | U78: 0.02727090264 | V78: 0.01943492783 | W78: 0.03900453626 | X78: 0.02028121252 | Y78: 0.01662365796 | Z78: 0.01593565474 | AA78: 0.02495742768 | AB78: 0.01955383181 | AC78: 0.01213076266 | AD78: 0.01267910287 | AE78: 0.005900009001 | AF78: 0.006834743608 | AG78: 0.01247249833
C79: =IF( subgroup.idx="", "", INDEX(subgroupData.names,subgroup.idx) ) -> Building Blocks - Grand Central - London - Sunderland | D79: 53 | E79: 68 | F79: =IF( INDEX(attr.selection.comb, attr.ordered.comb), INDEX( output.array.comb,subgroup.idx, attr.ordered.comb), "" ) -> 0.2354321252 | G79: 0.131896591 | H79: 0.04301942042 | I79: 0.04139709994 | J79: 0.02387594818 | K79: 0.03331603704 | L79: 0.06686401205 | M79: 0.02513785907 | N79: 0.02746635094 | O79: 0.04948375104 | P79: 0.02399012155 | Q79: 0.04496508672 | R79: 0.01241234793 | S79: 0.0238520784 | T79: 0.02153306067 | U79: 0.03493734748 | V79: 0.01087436444 | W79: 0.02937239676 | X79: 0.01700711208 | Y79: 0.01499930226 | Z79: 0.01461039542 | AA79: 0.01634648212 | AB79: 0.01626229955 | AC79: 0.009969486723 | AD79: 0.009799454 | AE79: 0.006324249513 | AF79: 0.005813545327 | AG79: 0.009041674213
C81: =IF( subgroup.idx="", "", INDEX(subgroupData.names,subgroup.idx) ) -> Building Blocks - Great Western Railway - Any London Thames Valley | D81: 54 | E81: 195 | F81: =IF( INDEX(attr.selection.comb, attr.ordered.comb), INDEX( output.array.comb,subgroup.idx, attr.ordered.comb), "" ) -> 0.1886744859 | G81: 0.1325959459 | H81: 0.07910083131 | I81: 0.06297833165 | J81: 0.04550611241 | K81: 0.04201209811 | L81: 0.03404356638 | M81: 0.03876794969 | N81: 0.03428456854 | O81: 0.03427380752 | P81: 0.0295772953 | Q81: 0.02902689269 | R81: 0.0224985955 | S81: 0.02415584737 | T81: 0.02181339017 | U81: 0.02240907257 | V81: 0.018609873 | W81: 0.02165396398 | X81: 0.01499303431 | Y81: 0.0140008977 | Z81: 0.01358972482 | AA81: 0.01420384166 | AB81: 0.01278197575 | AC81: 0.011627736 | AD81: 0.01126347305 | AE81: 0.007877121139 | AF81: 0.009597854392 | AG81: 0.008081713201
C82: =IF( subgroup.idx="", "", INDEX(subgroupData.names,subgroup.idx) ) -> Building Blocks - Great Western Railway - Any West | D82: 55 | E82: 349 | F82: =IF( INDEX(attr.selection.comb, attr.ordered.comb), INDEX( output.array.comb,subgroup.idx, attr.ordered.comb), "" ) -> 0.1687869745 | G82: 0.1528537439 | H82: 0.06560587689 | I82: 0.05515240332 | J82: 0.03794588916 | K82: 0.03914830771 | L82: 0.04649006763 | M82: 0.03642358219 | N82: 0.0327189892 | O82: 0.03675385743 | P82: 0.02772678489 | Q82: 0.03238966542 | R82: 0.01979385585 | S82: 0.0268253366 | T82: 0.02527025672 | U82: 0.02473899087 | V82: 0.01631833304 | W82: 0.02665590457 | X82: 0.01559604036 | Y82: 0.01446275438 | Z82: 0.01392756408 | AA82: 0.0180847407 | AB82: 0.01519056178 | AC82: 0.01209968986 | AD82: 0.01185761361 | AE82: 0.009661428682 | AF82: 0.008668582801 | AG82: 0.008852203805
C83: =IF( subgroup.idx="", "", INDEX(subgroupData.names,subgroup.idx) ) -> Building Blocks - Great Western Railway - Any Long Distance | D83: 56 | E83: 608 | F83: =IF( INDEX(attr.selection.comb, attr.ordered.comb), INDEX( output.array.comb,subgroup.idx, attr.ordered.comb), "" ) -> 0.2066844681 | G83: 0.1520830003 | H83: 0.06549380441 | I83: 0.05380903455 | J83: 0.03714393413 | K83: 0.03702001729 | L83: 0.04535762287 | M83: 0.03556256886 | N83: 0.03012748171 | O83: 0.03856218603 | P83: 0.02575745868 | Q83: 0.03365589396 | R83: 0.01867479402 | S83: 0.02245284114 | T83: 0.01990725688 | U83: 0.0242646322 | V83: 0.01514534435 | W83: 0.02561295916 | X83: 0.01479713547 | Y83: 0.01284860098 | Z83: 0.01239458057 | AA83: 0.01553973859 | AB83: 0.01349480384 | AC83: 0.009921354843 | AD83: 0.009877347983 | AE83: 0.008313729889 | AF83: 0.007469500856 | AG83: 0.008027908387
C84: =IF( subgroup.idx="", "", INDEX(subgroupData.names,subgroup.idx) ) -> Building Blocks - Great Western Railway - London Thames Valley & Long Distance | D84: 57 | E84: 128 | F84: =IF( INDEX(attr.selection.comb, attr.ordered.comb), INDEX( output.array.comb,subgroup.idx, attr.ordered.comb), "" ) -> 0.2051193367 | G84: 0.1553928552 | H84: 0.08375191391 | I84: 0.0618933442 | J84: 0.04720469367 | K84: 0.03985869785 | L84: 0.0187760733 | M84: 0.03972176446 | N84: 0.03186905289 | O84: 0.03454297141 | P84: 0.02726952529 | Q84: 0.02899272434 | R84: 0.02216241241 | S84: 0.02169256747 | T84: 0.01853213037 | U84: 0.02147345987 | V84: 0.01773776442 | W84: 0.0232046284 | X84: 0.01390544711 | Y84: 0.01244745616 | Z84: 0.01204059613 | AA84: 0.01389142034 | AB84: 0.007118663851 | AC84: 0.009957036568 | AD84: 0.00978839655 | AE84: 0.006828201449 | AF84: 0.008865035687 | AG84: 0.005961829981
C85: =IF( subgroup.idx="", "", INDEX(subgroupData.names,subgroup.idx) ) -> Building Blocks - Great Western Railway - London Thames Valley only | D85: 58 | E85: 67 | F85: =IF( INDEX(attr.selection.comb, attr.ordered.comb), INDEX( output.array.comb,subgroup.idx, attr.ordered.comb), "" ) -> 0.1680210579 | G85: 0.1039648365 | H85: 0.07325944055 | I85: 0.0643409898 | J85: 0.04337282912 | K85: 0.04471659799 | L85: 0.05321832645 | M85: 0.037570034 | N85: 0.03731826457 | O85: 0.03393575902 | P85: 0.03247567135 | Q85: 0.02906980542 | R85: 0.0229208148 | S85: 0.02724953149 | T85: 0.02593439217 | U85: 0.02358412789 | V85: 0.01970517218 | W85: 0.01970645249 | X85: 0.01635895754 | Y85: 0.01595189702 | Z85: 0.01553530754 | AA85: 0.01459621806 | AB85: 0.0198946462 | AC85: 0.01372600193 | AD85: 0.0131160521 | AE85: 0.009194481053 | AF85: 0.01051821655 | AG85: 0.01074411834
C86: =IF( subgroup.idx="", "", INDEX(subgroupData.names,subgroup.idx) ) -> Building Blocks - Great Western Railway - Long Distance & West | D86: 59 | E86: 262 | F86: =IF( INDEX(attr.selection.comb, attr.ordered.comb), INDEX( output.array.comb,subgroup.idx, attr.ordered.comb), "" ) -> 0.1702510791 | G86: 0.1605025345 | H86: 0.05721746886 | I86: 0.05254846376 | J86: 0.03242063107 | K86: 0.03740961515 | L86: 0.06049258148 | M86: 0.03272178343 | N86: 0.03136097889 | O86: 0.0383526893 | P86: 0.02675689546 | Q86: 0.03341943454 | R86: 0.02056569255 | S86: 0.02432538123 | T86: 0.02263534731 | U86: 0.02400429277 | V86: 0.01664359721 | W86: 0.02771222901 | X86: 0.01576678633 | Y86: 0.01414209479 | Z86: 0.01364530249 | AA86: 0.01701072421 | AB86: 0.01970176847 | AC86: 0.01136966143 | AD86: 0.01132384645 | AE86: 0.009411998654 | AF86: 0.008089979954 | AG86: 0.01019714165
C87: =IF( subgroup.idx="", "", INDEX(subgroupData.names,subgroup.idx) ) -> Building Blocks - Great Western Railway - Long Distance only | D87: 60 | E87: 218 | F87: =IF( INDEX(attr.selection.comb, attr.ordered.comb), INDEX( output.array.comb,subgroup.idx, attr.ordered.comb), "" ) -> 0.2469674637 | G87: 0.1406323422 | H87: 0.06112394034 | I87: 0.04929113649 | J87: 0.0349109277 | K87: 0.03453943416 | L87: 0.04840421998 | M87: 0.0355936901 | N87: 0.02753708972 | O87: 0.04170678131 | P87: 0.02358526332 | Q87: 0.03729721922 | R87: 0.01410974884 | S87: 0.02099312944 | T87: 0.01797491354 | U87: 0.02657182341 | V87: 0.01165243931 | W87: 0.02510676123 | X87: 0.01440299709 | Y87: 0.0117501835 | Z87: 0.011307863 | AA87: 0.01515654275 | AB87: 0.01145722483 | AC87: 0.008339293132 | AD87: 0.008387760765 | AE87: 0.008212754069 | AF87: 0.005789126236 | AG87: 0.007197930566
C88: =IF( subgroup.idx="", "", INDEX(subgroupData.names,subgroup.idx) ) -> Building Blocks - Great Western Railway - West only | D88: 61 | E88: 87 | F88: =IF( INDEX(attr.selection.comb, attr.ordered.comb), INDEX( output.array.comb,subgroup.idx, attr.ordered.comb), "" ) -> 0.1663894733 | G88: 0.1403286922 | H88: 0.07934206733 | I88: 0.05941640784 | J88: 0.04699361278 | K88: 0.04199545249 | L88: 0.02356066361 | M88: 0.04248535368 | N88: 0.03494275897 | O88: 0.03413573739 | P88: 0.02931499876 | Q88: 0.03070339734 | R88: 0.01852995738 | S88: 0.03091906487 | T88: 0.02958497501 | U88: 0.02594207411 | V88: 0.01578570627 | W88: 0.0249261516 | X88: 0.01531644034 | Y88: 0.01498784105 | Z88: 0.01438977325 | AA88: 0.01984346476 | AB88: 0.007803368153 | AC88: 0.01329512641 | AD88: 0.0127316683 | AE88: 0.01006987547 | AF88: 0.009616056846 | AG88: 0.006649840459
C90: =IF( subgroup.idx="", "", INDEX(subgroupData.names,subgroup.idx) ) -> Building Blocks - London Midland - London Commuter | D90: 62 | E90: 114 | F90: =IF( INDEX(attr.selection.comb, attr.ordered.comb), INDEX( output.array.comb,subgroup.idx, attr.ordered.comb), "" ) -> 0.2150475842 | G90: 0.1549827532 | H90: 0.06556453197 | I90: 0.05622160195 | J90: 0.03792663676 | K90: 0.03489938403 | L90: 0.04018689862 | M90: 0.03928751041 | N90: 0.02872060689 | O90: 0.03632372459 | P90: 0.02423220966 | Q90: 0.03055786215 | R90: 0.01805891561 | S90: 0.02230963901 | T90: 0.01926923278 | U90: 0.02407877934 | V90: 0.01472425442 | W90: 0.025242835 | X90: 0.01371965031 | Y90: 0.01242363659 | Z90: 0.01197023172 | AA90: 0.01393342992 | AB90: 0.013319338 | AC90: 0.01051621011 | AD90: 0.0105024879 | AE90: 0.01157166163 | AF90: 0.006941392425 | AG90: 0.007467000739
C91: =IF( subgroup.idx="", "", INDEX(subgroupData.names,subgroup.idx) ) -> Building Blocks - London Midland - West Coast | D91: 63 | E91: 162 | F91: =IF( INDEX(attr.selection.comb, attr.ordered.comb), INDEX( output.array.comb,subgroup.idx, attr.ordered.comb), "" ) -> 0.1881634379 | G91: 0.1460918428 | H91: 0.0584195204 | I91: 0.05058950426 | J91: 0.0343857129 | K91: 0.03582131406 | L91: 0.04671259208 | M91: 0.03413205486 | N91: 0.02988501378 | O91: 0.03893615714 | P91: 0.02551478693 | Q91: 0.03554283877 | R91: 0.01786899614 | S91: 0.02603234013 | T91: 0.02476901048 | U91: 0.02649637108 | V91: 0.01534674369 | W91: 0.02874413303 | X91: 0.01570585978 | Y91: 0.01415438465 | Z91: 0.01383376449 | AA91: 0.01898981493 | AB91: 0.0166971184 | AC91: 0.01212775221 | AD91: 0.01159202151 | AE91: 0.01581637554 | AF91: 0.007844144125 | AG91: 0.009786393886
C92: =IF( subgroup.idx="", "", INDEX(subgroupData.names,subgroup.idx) ) -> Building Blocks - London Midland - West Midlands | D92: 64 | E92: 283 | F92: =IF( INDEX(attr.selection.comb, attr.ordered.comb), INDEX( output.array.comb,subgroup.idx, attr.ordered.comb), "" ) -> 0.1653643744 | G92: 0.1529905484 | H92: 0.06532675008 | I92: 0.05704450215 | J92: 0.03702235121 | K92: 0.04341397447 | L92: 0.03616355526 | M92: 0.03023721794 | N92: 0.03663805926 | O92: 0.03846393681 | P92: 0.03118294913 | Q92: 0.03197686342 | R92: 0.02825491812 | S92: 0.02553102404 | T92: 0.02393727212 | U92: 0.02259871547 | V92: 0.02250507313 | W92: 0.02458176287 | X92: 0.01625529938 | Y92: 0.01578004115 | Z92: 0.01530272218 | AA92: 0.01488893499 | AB92: 0.01322483027 | AC92: 0.0138227896 | AD92: 0.01367696357 | AE92: 0.008353407358 | AF92: 0.007883258148 | AG92: 0.007577905122
C94: =IF( subgroup.idx="", "", INDEX(subgroupData.names,subgroup.idx) ) -> Building Blocks - London Overground - Gospel Oak - Barking | D94: 65 | E94: 11 | F94: =IF( INDEX(attr.selection.comb, attr.ordered.comb), INDEX( output.array.comb,subgroup.idx, attr.ordered.comb), "" ) -> 0.1364283702 | G94: 0.05763646331 | H94: 0.06314337348 | I94: 0.05836863443 | J94: 0.04479986102 | K94: 0.05249771165 | L94: 0.01434075067 | M94: 0.05194369477 | N94: 0.04428018541 | O94: 0.03300398842 | P94: 0.03886054565 | Q94: 0.03154156463 | R94: 0.02732969791 | S94: 0.04774462665 | T94: 0.05399877345 | U94: 0.02805744084 | V94: 0.02529084784 | W94: 0.01805987148 | X94: 0.020733566 | Y94: 0.02202586962 | Z94: 0.02170377175 | AA94: 0.01928433332 | AB94: 0.009736437466 | AC94: 0.02097013599 | AD94: 0.01921661366 | AE94: 0.0147110599 | AF94: 0.01484570346 | AG94: 0.009446107026
C95: =IF( subgroup.idx="", "", INDEX(subgroupData.names,subgroup.idx) ) -> Building Blocks - London Overground - Highbury & Islington - Croydon | D95: 66 | E95: 50 | F95: =IF( INDEX(attr.selection.comb, attr.ordered.comb), INDEX( output.array.comb,subgroup.idx, attr.ordered.comb), "" ) -> 0.1528552529 | G95: 0.07156755645 | H95: 0.07939538624 | I95: 0.06944392745 | J95: 0.04556088929 | K95: 0.04978453739 | L95: 0.0276244332 | M95: 0.03643222902 | N95: 0.04321008533 | O95: 0.03101382342 | P95: 0.03642156053 | Q95: 0.02691242107 | R95: 0.04009014395 | S95: 0.03807180947 | T95: 0.03966283394 | U95: 0.0215220269 | V95: 0.03207423707 | W95: 0.0170106329 | X95: 0.01682257958 | Y95: 0.01750933645 | Z95: 0.01709782689 | AA95: 0.01360097963 | AB95: 0.01178881557 | AC95: 0.01790313884 | AD95: 0.01743735455 | AE95: 0.01199000205 | AF95: 0.008783729211 | AG95: 0.008412450665
C96: =IF( subgroup.idx="", "", INDEX(subgroupData.names,subgroup.idx) ) -> Building Blocks - London Overground - Richmond/Clapham Junction - Stratford | D96: 67 | E96: 70 | F96: =IF( INDEX(attr.selection.comb, attr.ordered.comb), INDEX( output.array.comb,subgroup.idx, attr.ordered.comb), "" ) -> 0.129001679 | G96: 0.08608255356 | H96: 0.07337467351 | I96: 0.06823202135 | J96: 0.04444941707 | K96: 0.04976402534 | L96: 0.02951025949 | M96: 0.03961862765 | N96: 0.04295475977 | O96: 0.03038029824 | P96: 0.03692969869 | Q96: 0.02445354467 | R96: 0.05287363572 | S96: 0.03365987293 | T96: 0.0329853533 | U96: 0.01905187715 | V96: 0.04150471307 | W96: 0.01909443104 | X96: 0.01675833481 | Y96: 0.01768786932 | Z96: 0.01719639078 | AA96: 0.01317527072 | AB96: 0.0116463843 | AC96: 0.01922343503 | AD96: 0.01859027602 | AE96: 0.01249898854 | AF96: 0.01178857428 | AG96: 0.007513034697
C97: =IF( subgroup.idx="", "", INDEX(subgroupData.names,subgroup.idx) ) -> Building Blocks - London Overground - Watford - Euston | D97: 68 | E97: 41 | F97: =IF( INDEX(attr.selection.comb, attr.ordered.comb), INDEX( output.array.comb,subgroup.idx, attr.ordered.comb), "" ) -> 0.1537078774 | G97: 0.07629829636 | H97: 0.08363023655 | I97: 0.06587534908 | J97: 0.05262553278 | K97: 0.04873637146 | L97: 0.01011722937 | M97: 0.02729781822 | N97: 0.04021312225 | O97: 0.02925599354 | P97: 0.03342409202 | Q97: 0.02372667959 | R97: 0.06119065608 | S97: 0.03580765438 | T97: 0.0343154395 | U97: 0.0225521952 | V97: 0.04537725644 | W97: 0.01372922824 | X97: 0.01562471325 | Y97: 0.0175051803 | Z97: 0.01693120373 | AA97: 0.01124631993 | AB97: 0.0043466582 | AC97: 0.02122240297 | AD97: 0.02104925611 | AE97: 0.02085763996 | AF97: 0.009505126535 | AG97: 0.003830470533
C98: =IF( subgroup.idx="", "", INDEX(subgroupData.names,subgroup.idx) ) -> Building Blocks - London Overground - West Anglia | D98: 69 | E98: 65 | F98: =IF( INDEX(attr.selection.comb, attr.ordered.comb), INDEX( output.array.comb,subgroup.idx, attr.ordered.comb), "" ) -> 0.1311910771 | G98: 0.1161521862 | H98: 0.09685773219 | I98: 0.07553387514 | J98: 0.05400620791 | K98: 0.0524456366 | L98: 0.01885918681 | M98: 0.03444582382 | N98: 0.04522944907 | O98: 0.03234030409 | P98: 0.03787600665 | Q98: 0.0270883048 | R98: 0.03295988798 | S98: 0.02870858708 | T98: 0.02746387582 | U98: 0.01473343192 | V98: 0.02644707272 | W98: 0.0172988242 | X98: 0.0160230705 | Y98: 0.01587009509 | Z98: 0.01571968579 | AA98: 0.01166778147 | AB98: 0.006857841291 | AC98: 0.01620480307 | AD98: 0.01544306749 | AE98: 0.01813711328 | AF98: 0.008946305774 | AG98: 0.005492766158
C100: =IF( subgroup.idx="", "", INDEX(subgroupData.names,subgroup.idx) ) -> Building Blocks - Merseyrail - Northern | D100: 70 | E100: 137 | F100: =IF( INDEX(attr.selection.comb, attr.ordered.comb), INDEX( output.array.comb,subgroup.idx, attr.ordered.comb), "" ) -> 0.132301866 | G100: 0.1080659377 | H100: 0.0505894221 | I100: 0.04802555529 | J100: 0.03040830273 | K100: 0.04282929773 | L100: 0.04338537682 | M100: 0.02364807865 | N100: 0.03659142989 | O100: 0.04372754433 | P100: 0.03184790742 | Q100: 0.03603848049 | R100: 0.05376922894 | S100: 0.0314342752 | T100: 0.0338123728 | U100: 0.022971406 | V100: 0.04012832121 | W100: 0.02146388891 | X100: 0.02042472146 | Y100: 0.02162823481 | Z100: 0.02092831992 | AA100: 0.01409737386 | AB100: 0.01568460156 | AC100: 0.02190242567 | AD100: 0.02253678494 | AE100: 0.01642264614 | AF100: 0.007344290707 | AG100: 0.007991908749
C101: =IF( subgroup.idx="", "", INDEX(subgroupData.names,subgroup.idx) ) -> Building Blocks - Merseyrail - Wirral | D101: 71 | E101: 123 | F101: =IF( INDEX(attr.selection.comb, attr.ordered.comb), INDEX( output.array.comb,subgroup.idx, attr.ordered.comb), "" ) -> 0.1831127467 | G101: 0.09974557525 | H101: 0.05134478803 | I101: 0.04868241384 | J101: 0.03293959987 | K101: 0.04425982781 | L101: 0.03395276869 | M101: 0.02292482991 | N101: 0.03702322739 | O101: 0.04155038817 | P101: 0.0317225236 | Q101: 0.03587894949 | R101: 0.04187492132 | S101: 0.03440693954 | T101: 0.03368752349 | U101: 0.03250106563 | V101: 0.03152409209 | W101: 0.01565494529 | X101: 0.01869448887 | Y101: 0.02006761112 | Z101: 0.01934118988 | AA101: 0.01581452584 | AB101: 0.0095593894 | AC101: 0.01942051178 | AD101: 0.01990636208 | AE101: 0.01150024705 | AF101: 0.007263561228 | AG101: 0.005644986599
C103: =IF( subgroup.idx="", "", INDEX(subgroupData.names,subgroup.idx) ) -> Building Blocks - Northern - Central | D103: 72 | E103: 240 | F103: =IF( INDEX(attr.selection.comb, attr.ordered.comb), INDEX( output.array.comb,subgroup.idx, attr.ordered.comb), "" ) -> 0.1751091902 | G103: 0.1486683555 | H103: 0.05721510341 | I103: 0.05190299188 | J103: 0.03303682651 | K103: 0.0386315283 | L103: 0.0299845663 | M103: 0.02954411459 | N103: 0.0324589693 | O103: 0.0414035602 | P103: 0.02786125687 | Q103: 0.03374633153 | R103: 0.03648251711 | S103: 0.0244994625 | T103: 0.02269966179 | U103: 0.02365858247 | V103: 0.02706736975 | W103: 0.02627723027 | X103: 0.0174368786 | Y103: 0.01690360846 | Z103: 0.01627854914 | AA103: 0.01524044724 | AB103: 0.01295246143 | AC103: 0.01553114801 | AD103: 0.01604875733 | AE103: 0.01336526606 | AF103: 0.007778365974 | AG103: 0.008216899266
C104: =IF( subgroup.idx="", "", INDEX(subgroupData.names,subgroup.idx) ) -> Building Blocks - Northern - East | D104: 73 | E104: 280 | F104: =IF( INDEX(attr.selection.comb, attr.ordered.comb), INDEX( output.array.comb,subgroup.idx, attr.ordered.comb), "" ) -> 0.1787860502 | G104: 0.1388072026 | H104: 0.06271209821 | I104: 0.05317412499 | J104: 0.0357052517 | K104: 0.04174401131 | L104: 0.03601037763 | M104: 0.02853112946 | N104: 0.03508540569 | O104: 0.04005327742 | P104: 0.03014151523 | Q104: 0.03388007268 | R104: 0.02544079707 | S104: 0.02512146943 | T104: 0.02285033775 | U104: 0.02530457838 | V104: 0.02080610393 | W104: 0.02707530888 | X104: 0.017423765 | Y104: 0.01668630807 | Z104: 0.01615187842 | AA104: 0.01601429379 | AB104: 0.01403218381 | AC104: 0.0143823243 | AD104: 0.0142061048 | AE104: 0.0117505181 | AF104: 0.009000878184 | AG104: 0.009122632921
C105: =IF( subgroup.idx="", "", INDEX(subgroupData.names,subgroup.idx) ) -> Building Blocks - Northern - North East | D105: 74 | E105: 64 | F105: =IF( INDEX(attr.selection.comb, attr.ordered.comb), INDEX( output.array.comb,subgroup.idx, attr.ordered.comb), "" ) -> 0.2009694631 | G105: 0.1001522397 | H105: 0.050808597 | I105: 0.04650181951 | J105: 0.03297985169 | K105: 0.03915065374 | L105: 0.02782985502 | M105: 0.03216265076 | N105: 0.03304765584 | O105: 0.03911373097 | P105: 0.02894449591 | Q105: 0.03481183428 | R105: 0.03507766792 | S105: 0.02798143605 | T105: 0.02618981894 | U105: 0.03262540949 | V105: 0.02755694742 | W105: 0.02301801968 | X105: 0.01916450527 | Y105: 0.01901955197 | Z105: 0.01832890921 | AA105: 0.019077766 | AB105: 0.01413887712 | AC105: 0.0173123858 | AD105: 0.01740291117 | AE105: 0.01318264043 | AF105: 0.01261599376 | AG105: 0.01083431222
C106: =IF( subgroup.idx="", "", INDEX(subgroupData.names,subgroup.idx) ) -> Building Blocks - Northern - West | D106: 75 | E106: 172 | F106: =IF( INDEX(attr.selection.comb, attr.ordered.comb), INDEX( output.array.comb,subgroup.idx, attr.ordered.comb), "" ) -> 0.154923989 | G106: 0.1320561776 | H106: 0.06619409098 | I106: 0.05418584571 | J106: 0.03941097618 | K106: 0.0401110743 | L106: 0.03453273992 | M106: 0.03136312649 | N106: 0.0334666487 | O106: 0.04017527058 | P106: 0.02880343877 | Q106: 0.03315159194 | R106: 0.03681328439 | S106: 0.02721899846 | T106: 0.02646447797 | U106: 0.02053620895 | V106: 0.02757662806 | W106: 0.02470409915 | X106: 0.01781219076 | Y106: 0.01737697601 | Z106: 0.01677437551 | AA106: 0.01481090977 | AB106: 0.01613616679 | AC106: 0.01630672941 | AD106: 0.01666343785 | AE106: 0.0139253856 | AF106: 0.008683130902 | AG106: 0.009822030281
C108: =IF( subgroup.idx="", "", INDEX(subgroupData.names,subgroup.idx) ) -> Building Blocks - ScotRail - Interurban | D108: 76 | E108: 364 | F108: =IF( INDEX(attr.selection.comb, attr.ordered.comb), INDEX( output.array.comb,subgroup.idx, attr.ordered.comb), "" ) -> 0.1872472736 | G108: 0.130445525 | H108: 0.05882296913 | I108: 0.05064056027 | J108: 0.03548770049 | K108: 0.03616213044 | L108: 0.05147749835 | M108: 0.03839654118 | N108: 0.03008276793 | O108: 0.04192956968 | P108: 0.02623751407 | Q108: 0.03825351544 | R108: 0.02094123625 | S108: 0.02543528477 | T108: 0.02389217451 | U108: 0.02741162028 | V108: 0.01745945388 | W108: 0.02595038765 | X108: 0.01665648691 | Y108: 0.01508544792 | Z108: 0.01459877088 | AA108: 0.0178064154 | AB108: 0.01704313268 | AC108: 0.01213398082 | AD108: 0.01196074269 | AE108: 0.009768352105 | AF108: 0.008998436409 | AG108: 0.009674511302
C109: =IF( subgroup.idx="", "", INDEX(subgroupData.names,subgroup.idx) ) -> Building Blocks - ScotRail - Rural | D109: 77 | E109: 85 | F109: =IF( INDEX(attr.selection.comb, attr.ordered.comb), INDEX( output.array.comb,subgroup.idx, attr.ordered.comb), "" ) -> 0.1915841435 | G109: 0.1153238986 | H109: 0.05371191503 | I109: 0.04868671834 | J109: 0.03260473841 | K109: 0.0329700561 | L109: 0.08874616466 | M109: 0.03060291772 | N109: 0.02817528145 | O109: 0.03978360101 | P109: 0.02399838077 | Q109: 0.03877703343 | R109: 0.01990970785 | S109: 0.02438811954 | T109: 0.02268151584 | U109: 0.0255072351 | V109: 0.01653256014 | W109: 0.02545334476 | X109: 0.01575545026 | Y109: 0.0141468785 | Z109: 0.01378107362 | AA109: 0.01636700321 | AB109: 0.02411374988 | AC109: 0.01180050879 | AD109: 0.01158561093 | AE109: 0.01370673874 | AF109: 0.007807608964 | AG109: 0.01149804486
C110: =IF( subgroup.idx="", "", INDEX(subgroupData.names,subgroup.idx) ) -> Building Blocks - ScotRail - Strathclyde | D110: 78 | E110: 524 | F110: =IF( INDEX(attr.selection.comb, attr.ordered.comb), INDEX( output.array.comb,subgroup.idx, attr.ordered.comb), "" ) -> 0.2015433957 | G110: 0.12978447 | H110: 0.08189329139 | I110: 0.06033086622 | J110: 0.04766531066 | K110: 0.04161006067 | L110: 0.02598687156 | M110: 0.03151363066 | N110: 0.03381281639 | O110: 0.03625855507 | P110: 0.02852636545 | Q110: 0.03071373409 | R110: 0.0267364821 | S110: 0.02448177527 | T110: 0.02173727729 | U110: 0.02339893716 | V110: 0.02061543109 | W110: 0.02094305453 | X110: 0.01468819127 | Y110: 0.01374985563 | Z110: 0.01331135203 | AA110: 0.01340505872 | AB110: 0.00885552902 | AC110: 0.01191897863 | AD110: 0.01186572312 | AE110: 0.01118854854 | AF110: 0.007417041896 | AG110: 0.006047395873
C111: =IF( subgroup.idx="", "", INDEX(subgroupData.names,subgroup.idx) ) -> Building Blocks - ScotRail - Urban | D111: 79 | E111: 316 | F111: =IF( INDEX(attr.selection.comb, attr.ordered.comb), INDEX( output.array.comb,subgroup.idx, attr.ordered.comb), "" ) -> 0.1979893528 | G111: 0.1569621154 | H111: 0.07144551591 | I111: 0.05798815574 | J111: 0.04014130235 | K111: 0.03676991816 | L111: 0.02953420415 | M111: 0.03633250271 | N111: 0.02989910233 | O111: 0.03892835826 | P111: 0.02536557474 | Q111: 0.03409166181 | R111: 0.02058438589 | S111: 0.02331489909 | T111: 0.0203716591 | U111: 0.02396200345 | V111: 0.01663560833 | W111: 0.02651723047 | X111: 0.01492359398 | Y111: 0.01323366976 | Z111: 0.01271298136 | AA111: 0.0167413239 | AB111: 0.01037320556 | AC111: 0.01064683354 | AD111: 0.01061096484 | AE111: 0.009649955487 | AF111: 0.007730615914 | AG111: 0.006543304916
C113: =IF( subgroup.idx="", "", INDEX(subgroupData.names,subgroup.idx) ) -> Building Blocks - Southeastern - High-Speed | D113: 80 | E113: 135 | F113: =IF( INDEX(attr.selection.comb, attr.ordered.comb), INDEX( output.array.comb,subgroup.idx, attr.ordered.comb), "" ) -> 0.1745092851 | G113: 0.1193507669 | H113: 0.07080822588 | I113: 0.05183356952 | J113: 0.0405458895 | K113: 0.04081174594 | L113: 0.07836431781 | M113: 0.02704541711 | N113: 0.03273815526 | O113: 0.0373736849 | P113: 0.02822000628 | Q113: 0.03040737305 | R113: 0.02781232095 | S113: 0.01983864513 | T113: 0.01746837404 | U113: 0.02337514314 | V113: 0.02230577898 | W113: 0.02118202019 | X113: 0.01565881059 | Y113: 0.01574783888 | Z113: 0.01518194334 | AA113: 0.01208485894 | AB113: 0.0230283314 | AC113: 0.01395861384 | AD113: 0.01396294987 | AE113: 0.008290831605 | AF113: 0.008040696504 | AG113: 0.01005440537
C114: =IF( subgroup.idx="", "", INDEX(subgroupData.names,subgroup.idx) ) -> Building Blocks - Southeastern - Mainline | D114: 81 | E114: 205 | F114: =IF( INDEX(attr.selection.comb, attr.ordered.comb), INDEX( output.array.comb,subgroup.idx, attr.ordered.comb), "" ) -> 0.196469246 | G114: 0.1131347107 | H114: 0.08352685941 | I114: 0.06251277531 | J114: 0.04812337407 | K114: 0.04386437891 | L114: 0.03735859788 | M114: 0.03586150133 | N114: 0.03517922407 | O114: 0.03360264586 | P114: 0.03014556556 | Q114: 0.02706881938 | R114: 0.02749957434 | S114: 0.02407005271 | T114: 0.0219327415 | U114: 0.02257955736 | V114: 0.02197593083 | W114: 0.01679143893 | X114: 0.01498006492 | Y114: 0.01511370428 | Z114: 0.01469735602 | AA114: 0.01048596206 | AB114: 0.01224015688 | AC114: 0.01365755817 | AD114: 0.01340713377 | AE114: 0.008968786907 | AF114: 0.007876272717 | AG114: 0.006876010152
C115: =IF( subgroup.idx="", "", INDEX(subgroupData.names,subgroup.idx) ) -> Building Blocks - Southeastern - Metro | D115: 82 | E115: 251 | F115: =IF( INDEX(attr.selection.comb, attr.ordered.comb), INDEX( output.array.comb,subgroup.idx, attr.ordered.comb), "" ) -> 0.1725636281 | G115: 0.1243081112 | H115: 0.09976172598 | I115: 0.0737332259 | J115: 0.05573584933 | K115: 0.04636377633 | L115: 0.02252117296 | M115: 0.03890716135 | N115: 0.03785681387 | O115: 0.03106249619 | P115: 0.03191760604 | Q115: 0.02410960999 | R115: 0.02491689473 | S115: 0.02456211552 | T115: 0.02176836796 | U115: 0.01749051955 | V115: 0.02017908086 | W115: 0.01844940106 | X115: 0.01424397656 | Y115: 0.01390800638 | Z115: 0.01356209435 | AA115: 0.01076487709 | AB115: 0.008719817277 | AC115: 0.01293057364 | AD115: 0.01244031148 | AE115: 0.01325865089 | AF115: 0.007906545487 | AG115: 0.006057589956
C117: =IF( subgroup.idx="", "", INDEX(subgroupData.names,subgroup.idx) ) -> Building Blocks - Southern - Metro | D117: 83 | E117: 151 | F117: =IF( INDEX(attr.selection.comb, attr.ordered.comb), INDEX( output.array.comb,subgroup.idx, attr.ordered.comb), "" ) -> 0.1482511053 | G117: 0.09358977934 | H117: 0.1191993495 | I117: 0.07805114158 | J117: 0.06983359075 | K117: 0.05212891994 | L117: 0.01338248733 | M117: 0.04183897987 | N117: 0.04269383897 | O117: 0.02634800926 | P117: 0.03632022621 | Q117: 0.02098808567 | R117: 0.02592744749 | S117: 0.02998771971 | T117: 0.02812903268 | U117: 0.01712518593 | V117: 0.02196925755 | W117: 0.01571027892 | X117: 0.01422578985 | Y117: 0.01458427368 | Z117: 0.01430072851 | AA117: 0.01175470499 | AB117: 0.00890703877 | AC117: 0.01389375121 | AD117: 0.01289479297 | AE117: 0.009310294421 | AF117: 0.01188998924 | AG117: 0.006764200341
C118: =IF( subgroup.idx="", "", INDEX(subgroupData.names,subgroup.idx) ) -> Building Blocks - Southern - Sussex Coast | D118: 84 | E118: 306 | F118: =IF( INDEX(attr.selection.comb, attr.ordered.comb), INDEX( output.array.comb,subgroup.idx, attr.ordered.comb), "" ) -> 0.1848774387 | G118: 0.104209299 | H118: 0.1277489254 | I118: 0.07345178233 | J118: 0.07417028344 | K118: 0.04917411164 | L118: 0.02001472803 | M118: 0.03547343916 | N118: 0.03919837842 | O118: 0.02593421996 | P118: 0.03261811485 | Q118: 0.02061326571 | R118: 0.02009545964 | S118: 0.02564262187 | T118: 0.02189111505 | U118: 0.01798422156 | V118: 0.01693314806 | W118: 0.01434873011 | X118: 0.01181073858 | Y118: 0.01146336118 | Z118: 0.01117148806 | AA118: 0.01007071253 | AB118: 0.008182229481 | AC118: 0.01009500727 | AD118: 0.009364196913 | AE118: 0.007653805895 | AF118: 0.009901628159 | AG118: 0.005907549084
C120: =IF( subgroup.idx="", "", INDEX(subgroupData.names,subgroup.idx) ) -> Building Blocks - South West Trains - Island Line | D120: 85 | E120: 4 | F120: =IF( INDEX(attr.selection.comb, attr.ordered.comb), INDEX( output.array.comb,subgroup.idx, attr.ordered.comb), "" ) -> 0.3322115285 | G120: 0.196806571 | H120: 0.03252953642 | I120: 0.03684270404 | J120: 0.02090665776 | K120: 0.02734093535 | L120: 0.02015372692 | M120: 0.0161354453 | N120: 0.02246145365 | O120: 0.0358581498 | P120: 0.01921082603 | Q120: 0.03688129031 | R120: 0.009515457883 | S120: 0.02151247685 | T120: 0.01735447475 | U120: 0.03646080524 | V120: 0.008464073239 | W120: 0.02439686781 | X120: 0.01142799391 | Y120: 0.009571833838 | Z120: 0.008974987962 | AA120: 0.02504294801 | AB120: 0.003837867801 | AC120: 0.00694239475 | AD120: 0.006631667918 | AE120: 0.002873932617 | AF120: 0.005976545374 | AG120: 0.003676846917
C121: =IF( subgroup.idx="", "", INDEX(subgroupData.names,subgroup.idx) ) -> Building Blocks - South West Trains - Longer Distance | D121: 86 | E121: 289 | F121: =IF( INDEX(attr.selection.comb, attr.ordered.comb), INDEX( output.array.comb,subgroup.idx, attr.ordered.comb), "" ) -> 0.214547886 | G121: 0.1307490188 | H121: 0.06983354232 | I121: 0.05730605123 | J121: 0.04143539715 | K121: 0.037082297 | L121: 0.03208458097 | M121: 0.04703766587 | N121: 0.03031461901 | O121: 0.03548253984 | P121: 0.02586129977 | Q121: 0.02967449312 | R121: 0.02851302198 | S121: 0.0227896507 | T121: 0.01992322186 | U121: 0.0228281 | V121: 0.02196711176 | W121: 0.0220563309 | X121: 0.0142698385 | Y121: 0.01350813151 | Z121: 0.01301774816 | AA121: 0.01328251712 | AB121: 0.009708537943 | AC121: 0.01210251138 | AD121: 0.01207494866 | AE121: 0.008197844545 | AF121: 0.007944505245 | AG121: 0.006406588651
C122: =IF( subgroup.idx="", "", INDEX(subgroupData.names,subgroup.idx) ) -> Building Blocks - South West Trains - Metro | D122: 87 | E122: 161 | F122: =IF( INDEX(attr.selection.comb, attr.ordered.comb), INDEX( output.array.comb,subgroup.idx, attr.ordered.comb), "" ) -> 0.1895551245 | G122: 0.1203861986 | H122: 0.08590609489 | I122: 0.06804321518 | J122: 0.05073548966 | K122: 0.04225601115 | L122: 0.02374025839 | M122: 0.04657998432 | N122: 0.03490717668 | O122: 0.03216234081 | P122: 0.03028541833 | Q122: 0.02662291634 | R122: 0.02257859475 | S122: 0.02730807931 | T122: 0.02527795165 | U122: 0.02037748636 | V122: 0.0191852166 | W122: 0.01916376142 | X122: 0.01476296982 | Y122: 0.01407877852 | Z122: 0.01381934861 | AA122: 0.01140288747 | AB122: 0.01021005795 | AC122: 0.01256162724 | AD122: 0.01178026817 | AE122: 0.009041545812 | AF122: 0.009768295007 | AG122: 0.007502902477
C123: =IF( subgroup.idx="", "", INDEX(subgroupData.names,subgroup.idx) ) -> Building Blocks - South West Trains - Outer Suburban & Local | D123: 88 | E123: 245 | F123: =IF( INDEX(attr.selection.comb, attr.ordered.comb), INDEX( output.array.comb,subgroup.idx, attr.ordered.comb), "" ) -> 0.190063546 | G123: 0.1229525251 | H123: 0.07875844525 | I123: 0.06322320594 | J123: 0.04676148568 | K123: 0.04085308742 | L123: 0.03409157262 | M123: 0.04728731258 | N123: 0.03417642705 | O123: 0.03095244988 | P123: 0.02970111344 | Q123: 0.02530534844 | R123: 0.02263804212 | S123: 0.02391151183 | T123: 0.02160719169 | U123: 0.0216341291 | V123: 0.01934690105 | W123: 0.0211578495 | X123: 0.01465367882 | Y123: 0.01443803202 | Z123: 0.01416142021 | AA123: 0.0126569363 | AB123: 0.01475719203 | AC123: 0.01306316856 | AD123: 0.01226181276 | AE123: 0.009897630195 | AF123: 0.01051094613 | AG123: 0.009177038251
C125: =IF( subgroup.idx="", "", INDEX(subgroupData.names,subgroup.idx) ) -> Building Blocks - Thameslink - Kent | D125: 89 | E125: 216 | F125: =IF( INDEX(attr.selection.comb, attr.ordered.comb), INDEX( output.array.comb,subgroup.idx, attr.ordered.comb), "" ) -> 0.1909522795 | G125: 0.1242182159 | H125: 0.1099336538 | I125: 0.07105769179 | J125: 0.06250089161 | K125: 0.04661908044 | L125: 0.02368714388 | M125: 0.03990471538 | N125: 0.03785677339 | O125: 0.03023462903 | P125: 0.03133247237 | Q125: 0.02468634026 | R125: 0.01912406791 | S125: 0.02292552737 | T125: 0.01950106679 | U125: 0.01776144415 | V125: 0.01610266449 | W125: 0.01620684716 | X125: 0.01260832871 | Y125: 0.01179073974 | Z125: 0.01157554947 | AA125: 0.01023102919 | AB125: 0.0083659606 | AC125: 0.01011984139 | AD125: 0.009503399054 | AE125: 0.008449704439 | AF125: 0.007644867158 | AG125: 0.00510507506
C126: =IF( subgroup.idx="", "", INDEX(subgroupData.names,subgroup.idx) ) -> Building Blocks - Thameslink - Loop | D126: 90 | E126: 224 | F126: =IF( INDEX(attr.selection.comb, attr.ordered.comb), INDEX( output.array.comb,subgroup.idx, attr.ordered.comb), "" ) -> 0.1925162975 | G126: 0.1218681354 | H126: 0.112751907 | I126: 0.06891276088 | J126: 0.06458862756 | K126: 0.04711720339 | L126: 0.0222947693 | M126: 0.03684073758 | N126: 0.03788309919 | O126: 0.03077340089 | P126: 0.03142916112 | Q126: 0.02533218917 | R126: 0.0191279077 | S126: 0.02260303909 | T126: 0.01909895094 | U126: 0.01796415782 | V126: 0.0161699568 | W126: 0.01618915651 | X126: 0.01280320682 | Y126: 0.01201341197 | Z126: 0.01176772334 | AA126: 0.01048658008 | AB126: 0.008039754869 | AC126: 0.01029135926 | AD126: 0.009715292652 | AE126: 0.008473207866 | AF126: 0.007914438102 | AG126: 0.005033567192
C127: =IF( subgroup.idx="", "", INDEX(subgroupData.names,subgroup.idx) ) -> Building Blocks - Thameslink - North / South | D127: 91 | E127: 264 | F127: =IF( INDEX(attr.selection.comb, attr.ordered.comb), INDEX( output.array.comb,subgroup.idx, attr.ordered.comb), "" ) -> 0.1956488882 | G127: 0.1177671302 | H127: 0.1063980714 | I127: 0.06822560488 | J127: 0.06145146293 | K127: 0.0452487836 | L127: 0.02655073766 | M127: 0.03827586137 | N127: 0.03659748781 | O127: 0.03078255419 | P127: 0.03039668255 | Q127: 0.02555303912 | R127: 0.01960861055 | S127: 0.0239106331 | T127: 0.02056857007 | U127: 0.01896119314 | V127: 0.01646322462 | W127: 0.01662516116 | X127: 0.01310657522 | Y127: 0.01225767825 | Z127: 0.01198775569 | AA127: 0.01120535501 | AB127: 0.009027608973 | AC127: 0.01055927708 | AD127: 0.01003229113 | AE127: 0.008968161066 | AF127: 0.008066520569 | AG127: 0.005755080481
C129: =IF( subgroup.idx="", "", INDEX(subgroupData.names,subgroup.idx) ) -> Building Blocks - Virgin Trains - Birmingham - Scotland | D129: 92 | E129: 226 | F129: =IF( INDEX(attr.selection.comb, attr.ordered.comb), INDEX( output.array.comb,subgroup.idx, attr.ordered.comb), "" ) -> 0.2308074359 | G129: 0.1508591524 | H129: 0.04792917499 | I129: 0.04400498445 | J129: 0.02715997521 | K129: 0.03428579166 | L129: 0.04680939273 | M129: 0.02579511297 | N129: 0.02831071954 | O129: 0.04555807993 | P129: 0.02459453324 | Q129: 0.04043501229 | R129: 0.01860651252 | S129: 0.02120938471 | T129: 0.01851677076 | U129: 0.03287774592 | V129: 0.01504152928 | W129: 0.02886721227 | X129: 0.01647988984 | Y129: 0.01458524685 | Z129: 0.01405704014 | AA129: 0.01732742099 | AB129: 0.01286938718 | AC129: 0.01081672562 | AD129: 0.01086552588 | AE129: 0.007195811393 | AF129: 0.006497756014 | AG129: 0.007636675302
C130: =IF( subgroup.idx="", "", INDEX(subgroupData.names,subgroup.idx) ) -> Building Blocks - Virgin Trains - London - Liverpool | D130: 93 | E130: 89 | F130: =IF( INDEX(attr.selection.comb, attr.ordered.comb), INDEX( output.array.comb,subgroup.idx, attr.ordered.comb), "" ) -> 0.202609422 | G130: 0.1328510472 | H130: 0.04924747058 | I130: 0.04452269875 | J130: 0.02884675857 | K130: 0.03650113994 | L130: 0.04893046917 | M130: 0.02613385923 | N130: 0.03046512658 | O130: 0.0437286431 | P130: 0.02624715274 | Q130: 0.03786102429 | R130: 0.03004691187 | S130: 0.02441634332 | T130: 0.02170151156 | U130: 0.02990622948 | V130: 0.0230908478 | W130: 0.02822154472 | X130: 0.0173761928 | Y130: 0.0166775855 | Z130: 0.0160134962 | AA130: 0.0167908408 | AB130: 0.0122066423 | AC130: 0.01487542924 | AD130: 0.01523254932 | AE130: 0.01052280949 | AF130: 0.007101087208 | AG130: 0.00787516634
C131: =IF( subgroup.idx="", "", INDEX(subgroupData.names,subgroup.idx) ) -> Building Blocks - Virgin Trains - London - Manchester | D131: 94 | E131: 250 | F131: =IF( INDEX(attr.selection.comb, attr.ordered.comb), INDEX( output.array.comb,subgroup.idx, attr.ordered.comb), "" ) -> 0.2131734094 | G131: 0.140005016 | H131: 0.05111898745 | I131: 0.04604111501 | J131: 0.02984725354 | K131: 0.03547750547 | L131: 0.04312577897 | M131: 0.02699284697 | N131: 0.02932246954 | O131: 0.0443964322 | P131: 0.02508832687 | Q131: 0.03956350987 | R131: 0.02606341329 | S131: 0.02418461931 | T131: 0.02181128937 | U131: 0.0303447381 | V131: 0.01991962282 | W131: 0.02751119674 | X131: 0.01655052165 | Y131: 0.01498949309 | Z131: 0.01438850787 | AA131: 0.01743734769 | AB131: 0.01255687888 | AC131: 0.01237942895 | AD131: 0.01266628556 | AE131: 0.01073782246 | AF131: 0.006729488697 | AG131: 0.007576694195
C132: =IF( subgroup.idx="", "", INDEX(subgroupData.names,subgroup.idx) ) -> Building Blocks - Virgin Trains - London - North Wales | D132: 95 | E132: 145 | F132: =IF( INDEX(attr.selection.comb, attr.ordered.comb), INDEX( output.array.comb,subgroup.idx, attr.ordered.comb), "" ) -> 0.2055466806 | G132: 0.1445341787 | H132: 0.05166787887 | I132: 0.04608031424 | J132: 0.03057437417 | K132: 0.03676043117 | L132: 0.03944803109 | M132: 0.02820663265 | N132: 0.02970401337 | O132: 0.04861709458 | P132: 0.02567743117 | Q132: 0.04396104471 | R132: 0.02160963999 | S132: 0.02579053872 | T132: 0.0236415554 | U132: 0.0288638567 | V132: 0.01732465328 | W132: 0.0292366069 | X132: 0.01756201545 | Y132: 0.01528843039 | Z132: 0.01468449454 | AA132: 0.01820210862 | AB132: 0.01140112452 | AC132: 0.01173710094 | AD132: 0.01181488389 | AE132: 0.008496313861 | AF132: 0.006802958578 | AG132: 0.0067656129
C133: =IF( subgroup.idx="", "", INDEX(subgroupData.names,subgroup.idx) ) -> Building Blocks - Virgin Trains - London - Scotland | D133: 96 | E133: 145 | F133: =IF( INDEX(attr.selection.comb, attr.ordered.comb), INDEX( output.array.comb,subgroup.idx, attr.ordered.comb), "" ) -> 0.2487929629 | G133: 0.1431188816 | H133: 0.05009801046 | I133: 0.04365881106 | J133: 0.02903052131 | K133: 0.03303999663 | L133: 0.05131261725 | M133: 0.02710107774 | N133: 0.02714619607 | O133: 0.04160148965 | P133: 0.02337788206 | Q133: 0.03730279007 | R133: 0.01668461433 | S133: 0.02148493696 | T133: 0.01854515095 | U133: 0.03363258072 | V133: 0.0137536326 | W133: 0.02755238766 | X133: 0.01508497455 | Y133: 0.01339509147 | Z133: 0.01288419734 | AA133: 0.01696098892 | AB133: 0.01235762952 | AC133: 0.01002753509 | AD133: 0.009998131873 | AE133: 0.007895471271 | AF133: 0.006522264196 | AG133: 0.007639175748
C134: =IF( subgroup.idx="", "", INDEX(subgroupData.names,subgroup.idx) ) -> Building Blocks - Virgin Trains - London - Wolverhampton | D134: 97 | E134: 161 | F134: =IF( INDEX(attr.selection.comb, attr.ordered.comb), INDEX( output.array.comb,subgroup.idx, attr.ordered.comb), "" ) -> 0.1979091759 | G134: 0.1491763508 | H134: 0.05111303631 | I134: 0.04624360758 | J134: 0.02955557455 | K134: 0.03669752984 | L134: 0.03983639914 | M134: 0.02537559893 | N134: 0.03023897632 | O134: 0.04793480124 | P134: 0.02599449435 | Q134: 0.04213782971 | R134: 0.02730813847 | S134: 0.02354575427 | T134: 0.02121311847 | U134: 0.028169154 | V134: 0.02099278602 | W134: 0.02916243666 | X134: 0.01770478178 | Y134: 0.01590539189 | Z134: 0.01526655812 | AA134: 0.01741769545 | AB134: 0.012118236 | AC134: 0.01280388286 | AD134: 0.01308582123 | AE134: 0.009364628034 | AF134: 0.006545922827 | AG134: 0.00718231917
C136: =IF( subgroup.idx="", "", INDEX(subgroupData.names,subgroup.idx) ) -> Building Blocks - Virgin Trains East Coast: London – Leeds and West Yorkshire | D136: 98 | E136: 189 | F136: =IF( INDEX(attr.selection.comb, attr.ordered.comb), INDEX( output.array.comb,subgroup.idx, attr.ordered.comb), "" ) -> 0.220136702 | G136: 0.1339739 | H136: 0.05856224732 | I136: 0.04586153334 | J136: 0.03400163011 | K136: 0.03519005543 | L136: 0.06236612223 | M136: 0.03245446525 | N136: 0.0282341491 | O136: 0.04310629188 | P136: 0.02414128806 | Q136: 0.03756229845 | R136: 0.01838095835 | S136: 0.01981793142 | T136: 0.01666933313 | U136: 0.02690424094 | V136: 0.01510152951 | W136: 0.02527099106 | X136: 0.01516464526 | Y136: 0.01329816064 | Z136: 0.01277173092 | AA136: 0.01515060759 | AB136: 0.01895769279 | AC136: 0.01025707688 | AD136: 0.01009692185 | AE136: 0.009943049179 | AF136: 0.006923825971 | AG136: 0.00970062131
C137: =IF( subgroup.idx="", "", INDEX(subgroupData.names,subgroup.idx) ) -> Building Blocks - Virgin Trains East Coast: London – Newcastle/Sunderland and East Yorkshire | D137: 99 | E137: 260 | F137: =IF( INDEX(attr.selection.comb, attr.ordered.comb), INDEX( output.array.comb,subgroup.idx, attr.ordered.comb), "" ) -> 0.2168000964 | G137: 0.1323971998 | H137: 0.05270540164 | I137: 0.04556460612 | J137: 0.03027026507 | K137: 0.03562951734 | L137: 0.04802395361 | M137: 0.03113303801 | N137: 0.02899591491 | O137: 0.04530334472 | P137: 0.02500709246 | Q137: 0.03955553308 | R137: 0.02107789185 | S137: 0.02098516581 | T137: 0.0182740193 | U137: 0.02953841932 | V137: 0.01679129564 | W137: 0.02645938926 | X137: 0.01671243769 | Y137: 0.0151619857 | Z137: 0.01466322469 | AA137: 0.01598510033 | AB137: 0.01548522756 | AC137: 0.01256560958 | AD137: 0.01238139303 | AE137: 0.01764362032 | AF137: 0.006591366206 | AG137: 0.008297890496
C138: =IF( subgroup.idx="", "", INDEX(subgroupData.names,subgroup.idx) ) -> Building Blocks - Virgin Trains East Coast: London - Scotland | D138: 100 | E138: 433 | F138: =IF( INDEX(attr.selection.comb, attr.ordered.comb), INDEX( output.array.comb,subgroup.idx, attr.ordered.comb), "" ) -> 0.2101878537 | G138: 0.1311321556 | H138: 0.05203589108 | I138: 0.04488126848 | J138: 0.0305135858 | K138: 0.03480260217 | L138: 0.05572685213 | M138: 0.03172936191 | N138: 0.02851410537 | O138: 0.0438235909 | P138: 0.02467796435 | Q138: 0.03903661121 | R138: 0.02133665778 | S138: 0.02130152159 | T138: 0.01912980442 | U138: 0.02813954737 | V138: 0.01728474456 | W138: 0.02605203117 | X138: 0.01681590364 | Y138: 0.01552517952 | Z138: 0.01505569101 | AA138: 0.01664077668 | AB138: 0.01674946113 | AC138: 0.01328974541 | AD138: 0.01311966218 | AE138: 0.01640868894 | AF138: 0.007231676921 | AG138: 0.008857065023
C140: =IF( subgroup.idx="", "", INDEX(subgroupData.names,subgroup.idx) ) -> NR Route - Anglia | D140: 101 | E140: =INDEX( unweighted.subgroup.member.count, subgroup.idx) -> 1380 | F140: =IF( INDEX(attr.selection.comb, attr.ordered.comb), INDEX( output.array.comb,subgroup.idx, attr.ordered.comb), "" ) -> 0.1788484026 | G140: 0.1071748236 | H140: 0.08420575465 | I140: 0.06465399726 | J140: 0.04937787461 | K140: 0.04432217698 | L140: 0.03356849984 | M140: 0.03974452922 | N140: 0.03680847606 | O140: 0.03230702242 | P140: 0.03159926514 | Q140: 0.02669697616 | R140: 0.0290733979 | S140: 0.02714986131 | T140: 0.02549774277 | U140: 0.02111114875 | V140: 0.02344425409 | W140: 0.0193679686 | X140: 0.01517160559 | Y140: 0.01502591846 | Z140: 0.01464678904 | AA140: 0.0123276435 | AB140: 0.01167938336 | AC140: 0.01417550993 | AD140: 0.01374345829 | AE140: 0.01093357824 | AF140: 0.009747471859 | AG140: 0.007596469776
C141: =IF( subgroup.idx="", "", INDEX(subgroupData.names,subgroup.idx) ) -> NR Route - London North East / East Midlands | D141: 102 | E141: 2599 | F141: =IF( INDEX(attr.selection.comb, attr.ordered.comb), INDEX( output.array.comb,subgroup.idx, attr.ordered.comb), "" ) -> 0.1829246038 | G141: 0.119849024 | H141: 0.0711712614 | I141: 0.05576607942 | J141: 0.04193938809 | K141: 0.04121346375 | L141: 0.04231890188 | M141: 0.03505871062 | N141: 0.03447330331 | O141: 0.03692952038 | P141: 0.02959592726 | Q141: 0.03210612428 | R141: 0.0242325028 | S141: 0.0252165458 | T141: 0.02336635905 | U141: 0.02454146883 | V141: 0.01997957847 | W141: 0.02285531438 | X141: 0.01624455598 | Y141: 0.01551931445 | Z141: 0.01506624221 | AA141: 0.01539230896 | AB141: 0.01609821396 | AC141: 0.01358982011 | AD141: 0.01330150693 | AE141: 0.01199111938 | AF141: 0.009829842575 | AG141: 0.009428997908
C142: =IF( subgroup.idx="", "", INDEX(subgroupData.names,subgroup.idx) ) -> NR Route - London North West | D142: 103 | E142: 2564 | F142: =IF( INDEX(attr.selection.comb, attr.ordered.comb), INDEX( output.array.comb,subgroup.idx, attr.ordered.comb), "" ) -> 0.1614457654 | G142: 0.1198718801 | H142: 0.0589855616 | I142: 0.05173861642 | J142: 0.03546908637 | K142: 0.04055351343 | L142: 0.04373323764 | M142: 0.03132354172 | N142: 0.03429728281 | O142: 0.03952935112 | P142: 0.02971884872 | Q142: 0.0343109186 | R142: 0.03349814792 | S142: 0.02749135336 | T142: 0.02690891973 | U142: 0.02473539482 | V142: 0.02642547023 | W142: 0.02450794868 | X142: 0.01829650759 | Y142: 0.01810596353 | Z142: 0.01754273857 | AA142: 0.01695271409 | AB142: 0.01722296754 | AC142: 0.01687205013 | AD142: 0.01693428964 | AE142: 0.01377185257 | AF142: 0.009802493872 | AG142: 0.009953583812
C143: =IF( subgroup.idx="", "", INDEX(subgroupData.names,subgroup.idx) ) -> NR Route - Scotland | D143: 104 | E143: 1368 | F143: =IF( INDEX(attr.selection.comb, attr.ordered.comb), INDEX( output.array.comb,subgroup.idx, attr.ordered.comb), "" ) -> 0.1738330992 | G143: 0.1158758853 | H143: 0.06510824466 | I143: 0.05268512756 | J143: 0.03927814842 | K143: 0.03905592572 | L143: 0.04173953504 | M143: 0.03506101137 | N143: 0.03247093811 | O143: 0.03903590212 | P143: 0.02854788372 | Q143: 0.03505551486 | R143: 0.02568254452 | S143: 0.02606946137 | T143: 0.02510548023 | U143: 0.02567027093 | V143: 0.02153753813 | W143: 0.02505527762 | X143: 0.01808391959 | Y143: 0.01727167242 | Z143: 0.01677187502 | AA143: 0.01799573273 | AB143: 0.01719472397 | AC143: 0.01515225112 | AD143: 0.01484013656 | AE143: 0.01341296658 | AF143: 0.01126377003 | AG143: 0.01114516306
C144: =IF( subgroup.idx="", "", INDEX(subgroupData.names,subgroup.idx) ) -> NR Route - South East | D144: 105 | E144: 1533 | F144: =IF( INDEX(attr.selection.comb, attr.ordered.comb), INDEX( output.array.comb,subgroup.idx, attr.ordered.comb), "" ) -> 0.167118615 | G144: 0.1054134986 | H144: 0.1016596703 | I144: 0.06898163244 | J144: 0.05887308468 | K144: 0.04756783131 | L144: 0.0293344417 | M144: 0.03762610453 | N144: 0.03870814262 | O144: 0.03116699782 | P144: 0.03303633631 | Q144: 0.02543749056 | R144: 0.02500685035 | S144: 0.02616123746 | T144: 0.02401429698 | U144: 0.01869292637 | V144: 0.02089824116 | W144: 0.01805091985 | X144: 0.01489923533 | Y144: 0.01470649098 | Z144: 0.0143806226 | AA144: 0.01196507411 | AB144: 0.01153907831 | AC144: 0.01349668205 | AD144: 0.01281374594 | AE144: 0.01102667462 | AF144: 0.00982658182 | AG144: 0.007597496179
C145: =IF( subgroup.idx="", "", INDEX(subgroupData.names,subgroup.idx) ) -> NR Route - Wales | D145: 106 | E145: 1038 | F145: =IF( INDEX(attr.selection.comb, attr.ordered.comb), INDEX( output.array.comb,subgroup.idx, attr.ordered.comb), "" ) -> 0.143843 | G145: 0.118432403 | H145: 0.0518692893 | I145: 0.04611737963 | J145: 0.03235735985 | K145: 0.03932036366 | L145: 0.03715261186 | M145: 0.03070814585 | N145: 0.03347102335 | O145: 0.04221014553 | P145: 0.0298464636 | Q145: 0.03921675851 | R145: 0.02899372095 | S145: 0.02826151306 | T145: 0.02884094185 | U145: 0.02727215736 | V145: 0.02496432702 | W145: 0.0296599163 | X145: 0.02148731741 | Y145: 0.02103846587 | Z145: 0.02045045287 | AA145: 0.02281013766 | AB145: 0.01838723369 | AC145: 0.01927141463 | AD145: 0.01891852572 | AE145: 0.01778966607 | AF145: 0.01390687434 | AG145: 0.01340239104
C146: =IF( subgroup.idx="", "", INDEX(subgroupData.names,subgroup.idx) ) -> NR Route - Western | D146: 107 | E146: 1035 | F146: =IF( INDEX(attr.selection.comb, attr.ordered.comb), INDEX( output.array.comb,subgroup.idx, attr.ordered.comb), "" ) -> 0.1720257695 | G146: 0.1264609154 | H146: 0.07168320121 | I146: 0.05432344664 | J146: 0.0426877823 | K146: 0.04138410671 | L146: 0.04293683199 | M146: 0.03491803456 | N146: 0.03434691798 | O146: 0.03608750778 | P146: 0.03004765563 | Q146: 0.03144499789 | R146: 0.02240819073 | S146: 0.02509866732 | T146: 0.02360852697 | U146: 0.0254180287 | V146: 0.01920953129 | W146: 0.02442910946 | X146: 0.0166796972 | Y146: 0.01599444183 | Z146: 0.01558897823 | AA146: 0.0167089483 | AB146: 0.01647074932 | AC146: 0.01382629417 | AD146: 0.01325825914 | AE146: 0.01158067659 | AF146: 0.0109040812 | AG146: 0.010468652
C147: =IF( subgroup.idx="", "", INDEX(subgroupData.names,subgroup.idx) ) -> NR Route - Wessex | D147: 108 | E147: 748 | F147: =IF( INDEX(attr.selection.comb, attr.ordered.comb), INDEX( output.array.comb,subgroup.idx, attr.ordered.comb), "" ) -> 0.1985399802 | G147: 0.1244533796 | H147: 0.07419267244 | I147: 0.05832993544 | J147: 0.04380203421 | K147: 0.03935379131 | L147: 0.03260333462 | M147: 0.04009655873 | N147: 0.03229009102 | O147: 0.03449114544 | P147: 0.02783528242 | Q147: 0.02889267195 | R147: 0.0275902798 | S147: 0.02468702556 | T147: 0.02248214137 | U147: 0.02353673094 | V147: 0.02192494838 | W147: 0.02196864185 | X147: 0.01519532796 | Y147: 0.01455089299 | Z147: 0.01408021423 | AA147: 0.01387836599 | AB147: 0.01264188716 | AC147: 0.01303659383 | AD147: 0.01287017053 | AE147: 0.009397679634 | AF147: 0.009325177539 | AG147: 0.007953044883
C148: =IF( subgroup.idx="", "", INDEX(subgroupData.names,subgroup.idx) ) -> NR Route - Non Network Rail Route/Not specified | D148: 109 | E148: 538 | F148: =IF( INDEX(attr.selection.comb, attr.ordered.comb), INDEX( output.array.comb,subgroup.idx, attr.ordered.comb), "" ) -> 0.1358067436 | G148: 0.08335931941 | H148: 0.06158372976 | I148: 0.04940259119 | J148: 0.03934678328 | K148: 0.04345237652 | L148: 0.05553647804 | M148: 0.0321225691 | N148: 0.03694912434 | O148: 0.03510207532 | P148: 0.03288735175 | Q148: 0.03166043138 | R148: 0.03348423161 | S148: 0.03170140085 | T148: 0.03393964102 | U148: 0.02519602628 | V148: 0.02849756492 | W148: 0.0231786361 | X148: 0.01975713026 | Y148: 0.02024314642 | Z148: 0.01978903557 | AA148: 0.01820518061 | AB148: 0.02560172093 | AC148: 0.01951337708 | AD148: 0.01882749561 | AE148: 0.01594314999 | AF148: 0.01403885872 | AG148: 0.01487383033
C150: =IF( subgroup.idx="", "", INDEX(subgroupData.names,subgroup.idx) ) -> Gender - Male | D150: 110 | E150: =INDEX( unweighted.subgroup.member.count, subgroup.idx) -> 6145 | F150: =IF( INDEX(attr.selection.comb, attr.ordered.comb), INDEX( output.array.comb,subgroup.idx, attr.ordered.comb), "" ) -> 0.1808395827 | G150: 0.1131797122 | H150: 0.07568695519 | I150: 0.05907592482 | J150: 0.04478708738 | K150: 0.04111383387 | L150: 0.04429805464 | M150: 0.03939782221 | N150: 0.03415592869 | O150: 0.03408910269 | P150: 0.02988600052 | Q150: 0.02911070989 | R150: 0.02266836365 | S150: 0.02589928 | T150: 0.02457487802 | U150: 0.0237348988 | V150: 0.01931595832 | W150: 0.02243295396 | X150: 0.01606600877 | Y150: 0.01543244123 | Z150: 0.01504471918 | AA150: 0.01465453453 | AB150: 0.01705318294 | AC150: 0.01345039591 | AD150: 0.01293697432 | AE150: 0.009920719257 | AF150: 0.01088856026 | AG150: 0.01030541597
C151: =IF( subgroup.idx="", "", INDEX(subgroupData.names,subgroup.idx) ) -> Gender - Female | D151: 111 | E151: =INDEX( unweighted.subgroup.member.count, subgroup.idx) -> 6641 | F151: =IF( INDEX(attr.selection.comb, attr.ordered.comb), INDEX( output.array.comb,subgroup.idx, attr.ordered.comb), "" ) -> 0.1661718818 | G151: 0.1148264658 | H151: 0.078980287 | I151: 0.05893697391 | J151: 0.04659534455 | K151: 0.04404616092 | L151: 0.03106679431 | M151: 0.03340290338 | N151: 0.03644861379 | O151: 0.03605911034 | P151: 0.03114136825 | Q151: 0.03078741516 | R151: 0.03157329733 | S151: 0.02680017904 | T151: 0.02529251986 | U151: 0.02202417717 | V151: 0.02520479289 | W151: 0.02135795034 | X151: 0.01670202346 | Y151: 0.01655787321 | Z151: 0.01607958889 | AA151: 0.01493736657 | AB151: 0.01257068469 | AC151: 0.01561545495 | AD151: 0.0153669417 | AE151: 0.01365480439 | AF151: 0.009642329337 | AG151: 0.008156696979
C153: =IF( subgroup.idx="", "", INDEX(subgroupData.names,subgroup.idx) ) -> Age - 16-25 | D153: 112 | E153: =INDEX( unweighted.subgroup.member.count, subgroup.idx) -> 1559 | F153: =IF( INDEX(attr.selection.comb, attr.ordered.comb), INDEX( output.array.comb,subgroup.idx, attr.ordered.comb), "" ) -> 0.1411440948 | G153: 0.08165799852 | H153: 0.07041499485 | I153: 0.05376917799 | J153: 0.04441795682 | K153: 0.04140551012 | L153: 0.07381137174 | M153: 0.04509915415 | N153: 0.03513191374 | O153: 0.03161315433 | P153: 0.03138020496 | Q153: 0.02850553276 | R153: 0.02456099876 | S153: 0.02695846794 | T153: 0.02712619906 | U153: 0.0227504426 | V153: 0.02200383042 | W153: 0.02224356441 | X153: 0.01771485971 | Y153: 0.01754171918 | Z153: 0.01725337988 | AA153: 0.01659739934 | AB153: 0.03011973475 | AC153: 0.01593140656 | AD153: 0.0149848427 | AE153: 0.01418880206 | AF153: 0.014862232 | AG153: 0.0168110559
C154: =IF( subgroup.idx="", "", INDEX(subgroupData.names,subgroup.idx) ) -> Age - 26-44 | D154: 113 | E154: =INDEX( unweighted.subgroup.member.count, subgroup.idx) -> 4397 | F154: =IF( INDEX(attr.selection.comb, attr.ordered.comb), INDEX( output.array.comb,subgroup.idx, attr.ordered.comb), "" ) -> 0.1568178945 | G154: 0.09636518293 | H154: 0.08180048797 | I154: 0.0594054586 | J154: 0.04998211427 | K154: 0.04280055905 | L154: 0.04130597609 | M154: 0.04021516468 | N154: 0.03558609996 | O154: 0.03247011251 | P154: 0.03131655028 | Q154: 0.02840707092 | R154: 0.02728477967 | S154: 0.02733724221 | T154: 0.02689617924 | U154: 0.02175178475 | V154: 0.02341346773 | W154: 0.02223112998 | X154: 0.0172667174 | Y154: 0.01702896792 | Z154: 0.0166503031 | AA154: 0.01594890088 | AB154: 0.01849128889 | AC154: 0.01576868632 | AD154: 0.01505544833 | AE154: 0.01317246193 | AF154: 0.01335049683 | AG154: 0.0118794731
C155: =IF( subgroup.idx="", "", INDEX(subgroupData.names,subgroup.idx) ) -> Age - 45-64 | D155: 114 | E155: =INDEX( unweighted.subgroup.member.count, subgroup.idx) -> 4665 | F155: =IF( INDEX(attr.selection.comb, attr.ordered.comb), INDEX( output.array.comb,subgroup.idx, attr.ordered.comb), "" ) -> 0.1939723791 | G155: 0.132829705 | H155: 0.07868317684 | I155: 0.0621364264 | J155: 0.04440118632 | K155: 0.04229341575 | L155: 0.03030709889 | M155: 0.03381232016 | N155: 0.0349449761 | O155: 0.03490946311 | P155: 0.02951352966 | Q155: 0.02848728564 | R155: 0.02802023708 | S155: 0.02490105343 | T155: 0.02215325761 | U155: 0.0232304839 | V155: 0.02177914884 | W155: 0.02069034173 | X155: 0.01455050505 | Y155: 0.01416674296 | Z155: 0.01369056008 | AA155: 0.01255748304 | AB155: 0.009801712683 | AC155: 0.01280762566 | AD155: 0.01275510143 | AE155: 0.009274158245 | AF155: 0.00729169475 | AG155: 0.00603893059
C156: =IF( subgroup.idx="", "", INDEX(subgroupData.names,subgroup.idx) ) -> Age - 65+ | D156: 115 | E156: =INDEX( unweighted.subgroup.member.count, subgroup.idx) -> 2182 | F156: =IF( INDEX(attr.selection.comb, attr.ordered.comb), INDEX( output.array.comb,subgroup.idx, attr.ordered.comb), "" ) -> 0.1829074177 | G156: 0.1363211964 | H156: 0.065985569 | I156: 0.05225905487 | J156: 0.03805086204 | K156: 0.04459215519 | L156: 0.01657126702 | M156: 0.02389231667 | N156: 0.03634482418 | O156: 0.04700357947 | P156: 0.03080864369 | Q156: 0.04094062635 | R156: 0.02853245892 | S156: 0.02754123974 | T156: 0.02591809446 | U156: 0.02482454193 | V156: 0.022159438 | W156: 0.02399658467 | X156: 0.01847985364 | Y156: 0.0175746182 | Z156: 0.01696639651 | AA156: 0.01682521198 | AB156: 0.005434772309 | AC156: 0.01559759185 | AD156: 0.0157529031 | AE156: 0.01453753754 | AF156: 0.005915349339 | AG156: 0.004265895237
C158: =IF( subgroup.idx="", "", INDEX(subgroupData.names,subgroup.idx) ) -> Disabilty - Any | D158: 116 | E158: =INDEX( unweighted.subgroup.member.count, subgroup.idx) -> 1483 | F158: =IF( INDEX(attr.selection.comb, attr.ordered.comb), INDEX( output.array.comb,subgroup.idx, attr.ordered.comb), "" ) -> 0.1413317459 | G158: 0.1155051814 | H158: 0.05560304674 | I158: 0.04784177832 | J158: 0.03470605837 | K158: 0.04165069201 | L158: 0.03258720255 | M158: 0.02960746543 | N158: 0.03547870278 | O158: 0.04185213987 | P158: 0.03049754938 | Q158: 0.03866656432 | R158: 0.03241386292 | S158: 0.02767169149 | T158: 0.02735836562 | U158: 0.02369722381 | V158: 0.02679622384 | W158: 0.02657304949 | X158: 0.02070462892 | Y158: 0.02065105373 | Z158: 0.020203665 | AA158: 0.02080014281 | AB158: 0.01596747562 | AC158: 0.02056285739 | AD158: 0.01997539038 | AE158: 0.0291944426 | AF158: 0.01128186815 | AG158: 0.01081993122
C159: =IF( subgroup.idx="", "", INDEX(subgroupData.names,subgroup.idx) ) -> Disabilty - None | D159: 117 | E159: 11320 | F159: =IF( INDEX(attr.selection.comb, attr.ordered.comb), INDEX( output.array.comb,subgroup.idx, attr.ordered.comb), "" ) -> 0.1761098188 | G159: 0.1139027807 | H159: 0.0796602554 | I159: 0.06012401585 | J159: 0.04687191968 | K159: 0.04279278344 | L159: 0.03766488098 | M159: 0.03683356366 | N159: 0.03537769606 | O159: 0.03448077021 | P159: 0.03056590472 | Q159: 0.02915160296 | R159: 0.02695417323 | S159: 0.02624964427 | T159: 0.02471483326 | U159: 0.0227223918 | V159: 0.0220463866 | W159: 0.02138182829 | X159: 0.01597831392 | Y159: 0.01557465762 | Z159: 0.01513954826 | AA159: 0.0142057118 | AB159: 0.01451739952 | AC159: 0.01401661942 | AD159: 0.01366701037 | AE159: 0.01019778558 | AF159: 0.01011171561 | AG159: 0.008985988015
